BIOGUIDE_ID,OFFICE,QUARTER,CATEGORY,DATE,PAYEE,START DATE,END DATE,PURPOSE,AMOUNT,YEAR,TRANSCODE,TRANSCODELONG,RECORDID,RECIP (orig.)
,OFFICE OF THE SPEAKER,2016Q1,SUPPLIES AND MATERIALS,03-18,CITI PCARD-GALLERIA FLORIST,01/29/16,02/28/16,HABITATION EXPENSE,380.00,2016,AP,Accounts payable,00849255,CITI PCARD-GALLERIA FLORIST
,OFFICE OF THE SPEAKER,2016Q1,PERSONNEL COMPENSATION,"","ALTHOUSE,JOSHUA S",02/01/16,03/31/16,CONSERV COALITION OUTREACH COR,"6,666.67",2016,"","","","ALTHOUSE,JOSHUA S"
,OFFICE OF THE SPEAKER,2016Q1,PERSONNEL COMPENSATION,"","ANDRES,DOUGLAS R",01/03/16,03/31/16,PRESS SECRETARY,"25,666.67",2016,"","","","ANDRES,DOUGLAS R"
,OFFICE OF THE SPEAKER,2016Q1,PERSONNEL COMPENSATION,"","ANDREWS,THOMAS S",01/03/16,03/31/16,MEMBER SERVICES COORDINATOR,"18,333.33",2016,"","","","ANDREWS,THOMAS S"
,OFFICE OF THE SPEAKER,2016Q1,PERSONNEL COMPENSATION,"","ANTELL,GEOFFREY",01/28/16,03/31/16,ASST TO THE SPEAKER FOR POLICY,"26,250.00",2016,"","","","ANTELL,GEOFFREY"
,OFFICE OF THE SPEAKER,2016Q1,PERSONNEL COMPENSATION,"","BAILEY,BRADLEY",01/03/16,01/30/16,ASSIST TO SPEAKER FOR POLICY,"9,333.33",2016,"","","","BAILEY,BRADLEY"
,OFFICE OF THE SPEAKER,2016Q1,PERSONNEL COMPENSATION,"","BENJAMIN, WILLIAM C",01/03/16,03/31/16,DIR OF INFORMATION TECHNOLOGY,"23,955.57",2016,"","","","BENJAMIN, WILLIAM C"
,OFFICE OF THE SPEAKER,2016Q1,PERSONNEL COMPENSATION,"","BLAKE,KRISTENE",01/03/16,03/31/16,DIR OF ADMIN OPERATIONS,"31,777.77",2016,"","","","BLAKE,KRISTENE"
,OFFICE OF THE SPEAKER,2016Q1,PERSONNEL COMPENSATION,"","BLANKENSHIP, APRIL L",01/03/16,03/31/16,FINANCIAL ADMINISTRATOR,"6,844.43",2016,"","","","BLANKENSHIP, APRIL L"
,OFFICE OF THE SPEAKER,2016Q1,PERSONNEL COMPENSATION,"","BOLDUC, BRIAN J",01/03/16,03/31/16,DIRECTOR OF SPEECHWRITING,"25,666.67",2016,"","","","BOLDUC, BRIAN J"
,OFFICE OF THE SPEAKER,2016Q1,PERSONNEL COMPENSATION,"","BROWN,MARYAM S",01/03/16,01/30/16,APPOINTMENT DESK ASSISTANT,"13,066.67",2016,"","","","BROWN,MARYAM S"
,OFFICE OF THE SPEAKER,2016Q1,PERSONNEL COMPENSATION,"","BROWN,MARYAM S",02/01/16,03/31/16,ASST TO SPEAKER FOR POLICY,"28,000.00",2016,"","","","BROWN,MARYAM S"
,OFFICE OF THE SPEAKER,2016Q1,PERSONNEL COMPENSATION,"","BUCK,BRENDAN K",01/03/16,03/31/16,CHIEF ADV ON COMMUNICATIONS,"42,166.67",2016,"","","","BUCK,BRENDAN K"
,OFFICE OF THE SPEAKER,2016Q1,PERSONNEL COMPENSATION,"","BURKS,JONATHAN",01/03/16,03/31/16,ASST TO SPEAKER FOR POLICY,"32,099.23",2016,"","","","BURKS,JONATHAN"
,OFFICE OF THE SPEAKER,2016Q1,PERSONNEL COMPENSATION,"","CALLAS,GEORGE A",01/03/16,03/31/16,CHIEF TAX COUNSEL,"41,725.70",2016,"","","","CALLAS,GEORGE A"
,OFFICE OF THE SPEAKER,2016Q1,PERSONNEL COMPENSATION,"","CASTINE,PETER L",01/27/16,03/31/16,STAFF ASSISTANT,"6,222.23",2016,"","","","CASTINE,PETER L"
,OFFICE OF THE SPEAKER,2016Q1,PERSONNEL COMPENSATION,"","CASTINE,PETER L",02/01/16,02/29/16,STAFF ASSISTANT (OVERTIME),416.46,2016,"","","","CASTINE,PETER L"
,OFFICE OF THE SPEAKER,2016Q1,PERSONNEL COMPENSATION,"","COYLE,SARAH M",01/03/16,03/31/16,FLOOR ASSISTANT,"10,866.66",2016,"","","","COYLE,SARAH M"
,OFFICE OF THE SPEAKER,2016Q1,PERSONNEL COMPENSATION,"","CRAVEN, KELLY F",01/03/16,03/31/16,DIRECTOR OF HOUSE OPERATIONS,"42,166.67",2016,"","","","CRAVEN, KELLY F"
,OFFICE OF THE SPEAKER,2016Q1,PERSONNEL COMPENSATION,"","DAY,VANESSA",01/03/16,03/31/16,SENIOR COMMUNICATIONS ADVISOR,"25,666.67",2016,"","","","DAY,VANESSA"
,OFFICE OF THE SPEAKER,2016Q1,PERSONNEL COMPENSATION,"","DIXON, KELLY A",02/01/16,03/31/16,SHARED EMPLOYEE,"16,666.66",2016,"","","","DIXON, KELLY A"
,OFFICE OF THE SPEAKER,2016Q1,PERSONNEL COMPENSATION,"","DOCKERY,DERRICK D",01/04/16,03/31/16,BUSINESS/STATE GOV OUTREACH CO,"18,125.00",2016,"","","","DOCKERY,DERRICK D"
,OFFICE OF THE SPEAKER,2016Q1,PERSONNEL COMPENSATION,"","EASBY-SMITH,ANNE S",01/03/16,03/31/16,SPECIAL EVENTS COORDINATOR,"18,333.33",2016,"","","","EASBY-SMITH,ANNE S"
,OFFICE OF THE SPEAKER,2016Q1,PERSONNEL COMPENSATION,"","EDWARDS,SPENCER M",01/03/16,03/31/16,DEPUTY PRESS SECRETARY,"13,444.43",2016,"","","","EDWARDS,SPENCER M"
,OFFICE OF THE SPEAKER,2016Q1,PERSONNEL COMPENSATION,"","EICHHORN, JARED D",01/03/16,03/31/16,CLOAKROOM DIRECTOR,"22,000.00",2016,"","","","EICHHORN, JARED D"
,OFFICE OF THE SPEAKER,2016Q1,PERSONNEL COMPENSATION,"","EPLEY,MARK D",01/03/16,03/31/16,GENERAL COUNSEL/OVERSIGHT,"42,166.67",2016,"","","","EPLEY,MARK D"
,OFFICE OF THE SPEAKER,2016Q1,PERSONNEL COMPENSATION,"","FOLTZ,DEVON N",01/03/16,03/31/16,COUNSEL,"29,333.33",2016,"","","","FOLTZ,DEVON N"
,OFFICE OF THE SPEAKER,2016Q1,PERSONNEL COMPENSATION,"","GEFFERT,REBEKAH L",01/03/16,03/31/16,STAFF ASSISTANT,"8,555.57",2016,"","","","GEFFERT,REBEKAH L"
,OFFICE OF THE SPEAKER,2016Q1,PERSONNEL COMPENSATION,"","GEFFERT,REBEKAH L",01/01/16,02/29/16,STAFF ASSISTANT (OVERTIME),"1,060.08",2016,"","","","GEFFERT,REBEKAH L"
,OFFICE OF THE SPEAKER,2016Q1,PERSONNEL COMPENSATION,"","GILLESPIE,JAMES M",01/25/16,03/31/16,CLERICAL TECHNICAN,"6,416.67",2016,"","","","GILLESPIE,JAMES M"
,OFFICE OF THE SPEAKER,2016Q1,PERSONNEL COMPENSATION,"","GILLESPIE,JAMES M",02/01/16,02/29/16,CLERICAL TECHNICAN (OVERTIME),25.24,2016,"","","","GILLESPIE,JAMES M"
,OFFICE OF THE SPEAKER,2016Q1,PERSONNEL COMPENSATION,"","GOLDOUST,CARAH S",01/03/16,03/31/16,STAFF ASSISTANT,"8,555.57",2016,"","","","GOLDOUST,CARAH S"
,OFFICE OF THE SPEAKER,2016Q1,PERSONNEL COMPENSATION,"","GOLDOUST,CARAH S",01/01/16,02/29/16,STAFF ASSISTANT (OVERTIME),"1,583.81",2016,"","","","GOLDOUST,CARAH S"
,OFFICE OF THE SPEAKER,2016Q1,PERSONNEL COMPENSATION,"","HERRLE, CYNTHIA A",01/03/16,01/30/16,LOGISTICS & DIST SPEC (A),"13,066.67",2016,"","","","HERRLE, CYNTHIA A"
,OFFICE OF THE SPEAKER,2016Q1,PERSONNEL COMPENSATION,"","HERRLE, CYNTHIA A",02/01/16,03/31/16,ASST TO THE SPEAKER FOR POLICY,"28,000.00",2016,"","","","HERRLE, CYNTHIA A"
,OFFICE OF THE SPEAKER,2016Q1,PERSONNEL COMPENSATION,"","HIGGINS,CASEY",01/03/16,03/31/16,ASSIST TO SPEAKER FOR POLICY,"24,444.43",2016,"","","","HIGGINS,CASEY"
,OFFICE OF THE SPEAKER,2016Q1,PERSONNEL COMPENSATION,"","HOFFMANN, MATTHEW",01/03/16,03/31/16,ASSIST TO SPEAKER FOR POLICY,"37,888.90",2016,"","","","HOFFMANN, MATTHEW"
,OFFICE OF THE SPEAKER,2016Q1,PERSONNEL COMPENSATION,"","HOPPE,JOHN D",01/03/16,03/31/16,CHIEF OF STAFF,"42,166.67",2016,"","","","HOPPE,JOHN D"
,OFFICE OF THE SPEAKER,2016Q1,PERSONNEL COMPENSATION,"","HUSTON,JOHNATHON B",01/16/16,03/31/16,SHARED EMPLOYEE,"10,750.00",2016,"","","","HUSTON,JOHNATHON B"
,OFFICE OF THE SPEAKER,2016Q1,PERSONNEL COMPENSATION,"","JORDON,BENJAMIN D",01/03/16,03/28/16,SPECIAL ASST TO THE SPEAKER,"11,944.45",2016,"","","","JORDON,BENJAMIN D"
,OFFICE OF THE SPEAKER,2016Q1,PERSONNEL COMPENSATION,"","JORDON,BENJAMIN D",03/29/16,03/31/16,STAFF ASSISTANT,194.44,2016,"","","","JORDON,BENJAMIN D"
,OFFICE OF THE SPEAKER,2016Q1,PERSONNEL COMPENSATION,"","KITTLE,ALLIE M",01/03/16,01/10/16,SHARED EMPLOYEE,408.33,2016,"","","","KITTLE,ALLIE M"
,OFFICE OF THE SPEAKER,2016Q1,PERSONNEL COMPENSATION,"","LEOPOLD,PATRICK R",01/03/16,03/31/16,SHARED EMPLOYEE,"24,444.43",2016,"","","","LEOPOLD,PATRICK R"
,OFFICE OF THE SPEAKER,2016Q1,PERSONNEL COMPENSATION,"","LOZUPONE, AMY S",01/03/16,01/30/16,TRANSITION ADVISOR,"1,089.97",2016,"","","","LOZUPONE, AMY S"
,OFFICE OF THE SPEAKER,2016Q1,PERSONNEL COMPENSATION,"","MACDONALD, BRIAN C",01/03/16,03/31/16,SHARED EMPLOYEE,"24,444.43",2016,"","","","MACDONALD, BRIAN C"
,OFFICE OF THE SPEAKER,2016Q1,PERSONNEL COMPENSATION,"","MARROLETTI,CHRISTOPHER V",01/03/16,03/25/16,SENIOR STAFF ASSISTANT,"9,683.34",2016,"","","","MARROLETTI,CHRISTOPHER V"
,OFFICE OF THE SPEAKER,2016Q1,PERSONNEL COMPENSATION,"","MARROLETTI,CHRISTOPHER V",01/01/16,02/29/16,SENIOR STAFF ASSISTANT (OVERTIME),832.92,2016,"","","","MARROLETTI,CHRISTOPHER V"
,OFFICE OF THE SPEAKER,2016Q1,PERSONNEL COMPENSATION,"","MATTHEWS,TITUS V",03/14/16,03/31/16,INTERN,"1,652.78",2016,"","","","MATTHEWS,TITUS V"
,OFFICE OF THE SPEAKER,2016Q1,PERSONNEL COMPENSATION,"","MCCALLIE,CARLY L",01/06/16,03/31/16,ASSOCIATE COUNSEL,"12,986.10",2016,"","","","MCCALLIE,CARLY L"
,OFFICE OF THE SPEAKER,2016Q1,PERSONNEL COMPENSATION,"","MCCANN, EDWARD D",01/03/16,03/31/16,ASSIST TO SPEAKER FOR POLICY,"37,888.90",2016,"","","","MCCANN, EDWARD D"
,OFFICE OF THE SPEAKER,2016Q1,PERSONNEL COMPENSATION,"","MEYER, JOYCE Y",01/03/16,03/31/16,DEPUTY CHIEF OF STAFF,"42,166.67",2016,"","","","MEYER, JOYCE Y"
,OFFICE OF THE SPEAKER,2016Q1,PERSONNEL COMPENSATION,"","MINKLER,ANN W",01/03/16,03/31/16,FLOOR ASSISTANT,"15,888.90",2016,"","","","MINKLER,ANN W"
,OFFICE OF THE SPEAKER,2016Q1,PERSONNEL COMPENSATION,"","MITCHELL,MAUREEN E",01/03/16,03/31/16,DIRECTOR OF SCHEDULING,"26,888.90",2016,"","","","MITCHELL,MAUREEN E"
,OFFICE OF THE SPEAKER,2016Q1,PERSONNEL COMPENSATION,"","O'TOOLE,RYAN T",01/13/16,03/31/16,FLOOR ASSISTANT,"8,450.00",2016,"","","","O'TOOLE,RYAN T"
,OFFICE OF THE SPEAKER,2016Q1,PERSONNEL COMPENSATION,"","PLANNING,DAVID M",01/03/16,01/30/16,STAFF ASSISTANT,194.44,2016,"","","","PLANNING,DAVID M"
,OFFICE OF THE SPEAKER,2016Q1,PERSONNEL COMPENSATION,"","POINTER,KATHERINE C",01/03/16,03/31/16,STAFF ASSISTANT,"8,555.57",2016,"","","","POINTER,KATHERINE C"
,OFFICE OF THE SPEAKER,2016Q1,PERSONNEL COMPENSATION,"","POINTER,KATHERINE C",01/01/16,02/29/16,STAFF ASSISTANT (OVERTIME),"1,527.02",2016,"","","","POINTER,KATHERINE C"
,OFFICE OF THE SPEAKER,2016Q1,PERSONNEL COMPENSATION,"","RENZ, BRANDON",01/03/16,03/31/16,SHARED EMPLOYEE,"24,444.43",2016,"","","","RENZ, BRANDON"
,OFFICE OF THE SPEAKER,2016Q1,PERSONNEL COMPENSATION,"","RICCI,MICHAEL",01/03/16,03/31/16,DIRECTOR OF COMMUNICATIONS,"40,333.33",2016,"","","","RICCI,MICHAEL"
,OFFICE OF THE SPEAKER,2016Q1,PERSONNEL COMPENSATION,"","SAGER,MICHAEL J",01/03/16,03/31/16,SYSTEMS ADMINISTRATOR,"20,777.77",2016,"","","","SAGER,MICHAEL J"
,OFFICE OF THE SPEAKER,2016Q1,PERSONNEL COMPENSATION,"","SHAPIRO, MICHAEL I",01/03/16,03/31/16,COMMUNICATIONS ADVISOR,"14,666.67",2016,"","","","SHAPIRO, MICHAEL I"
,OFFICE OF THE SPEAKER,2016Q1,PERSONNEL COMPENSATION,"","SLINGSBY, JULIA K",01/03/16,03/31/16,DEPUTY COMMUNICATIONS DIRECTOR,"22,000.00",2016,"","","","SLINGSBY, JULIA K"
,OFFICE OF THE SPEAKER,2016Q1,PERSONNEL COMPENSATION,"","SMITH, CALEB J",01/03/16,03/31/16,DIGITAL COMMUNICATIONS DIRECTO,"30,555.57",2016,"","","","SMITH, CALEB J"
,OFFICE OF THE SPEAKER,2016Q1,PERSONNEL COMPENSATION,"","SMYTHE,AUGUSTINE",01/03/16,03/31/16,POLICY DIRECTOR,"42,166.67",2016,"","","","SMYTHE,AUGUSTINE"
,OFFICE OF THE SPEAKER,2016Q1,PERSONNEL COMPENSATION,"","SPETH, ANDREW D",01/03/16,03/31/16,SENIOR ADVISOR,"21,083.33",2016,"","","","SPETH, ANDREW D"
,OFFICE OF THE SPEAKER,2016Q1,PERSONNEL COMPENSATION,"","STRONG,ASHLEE A",01/03/16,03/31/16,PRESS SECRETARY,"36,666.67",2016,"","","","STRONG,ASHLEE A"
,OFFICE OF THE SPEAKER,2016Q1,PERSONNEL COMPENSATION,"","STRUNK, LYDIA",01/03/16,03/31/16,DEPUTY FLOOR DIRECTOR,"28,111.10",2016,"","","","STRUNK, LYDIA"
,OFFICE OF THE SPEAKER,2016Q1,PERSONNEL COMPENSATION,"","SWINEHART,SARAH V",01/03/16,03/31/16,DIRECTOR OF MEDIA AFFAIRS,"25,666.67",2016,"","","","SWINEHART,SARAH V"
,OFFICE OF THE SPEAKER,2016Q1,PERSONNEL COMPENSATION,"","THORSEN, ANNE B",01/03/16,03/31/16,FLOOR DIRECTOR,"42,166.67",2016,"","","","THORSEN, ANNE B"
,OFFICE OF THE SPEAKER,2016Q1,PERSONNEL COMPENSATION,"","VREEBURG,JACOBUS A",01/16/16,03/31/16,SHARED EMPLOYEE,"16,666.67",2016,"","","","VREEBURG,JACOBUS A"
,OFFICE OF THE SPEAKER,2016Q1,PERSONNEL COMPENSATION,"","WHITE,JERRY L",01/15/16,01/30/16,CHIEF CLERK/ OFC MGR/LEG COOR,"3,333.33",2016,"","","","WHITE,JERRY L"
,OFFICE OF THE SPEAKER,2016Q1,PERSONNEL COMPENSATION,"","WICKISER,VICTORIA H",01/03/16,03/31/16,DEPUTY DIRECTOR OF SCHEDULING,"18,333.33",2016,"","","","WICKISER,VICTORIA H"
,OFFICE OF THE SPEAKER,2016Q1,PERSONNEL COMPENSATION,"","ZULKOSKY,ERIC T",01/03/16,03/31/16,SHARED EMPLOYEE,"24,444.44",2016,"","","","ZULKOSKY,ERIC T"
,OFFICE OF THE SPEAKER,2016Q1,TRAVEL,02-26,"CALLAS, GEORGE A",02/22/16,02/22/16,TAXI/PARKING/TOLLS,23.00,2016,AP,Accounts payable,E0375432,"CALLAS, GEORGE A"
,OFFICE OF THE SPEAKER,2016Q1,TRAVEL,03-29,"ALTHOUSE, JOSHUA",03/16/16,03/16/16,TAXI/PARKING/TOLLS,24.27,2016,AP,Accounts payable,E0386169,"ALTHOUSE, JOSHUA"
,OFFICE OF THE SPEAKER,2016Q1,"RENT, COMMUNICATION, UTILITIES",02-18,CITI PCARD-CAPITOL HOST,01/03/16,01/28/16,EQUIP RENTAL (EFF 1/3/03),90.00,2016,AP,Accounts payable,00843664,CITI PCARD-CAPITOL HOST
,OFFICE OF THE SPEAKER,2016Q1,"RENT, COMMUNICATION, UTILITIES",03-23,FEDEX,03/04/16,03/04/16,POSTAGE / COURIER / BOX RENTAL,12.65,2016,AP,Accounts payable,E0384825,FEDEX
,OFFICE OF THE SPEAKER,2016Q1,PRINTING AND REPRODUCTION,01-28,"",01/01/16,01/31/16,PHOTOGRAPHIC (TRANSFER),418.00,2016,GL,General ledger,PIX0055591,""
,OFFICE OF THE SPEAKER,2016Q1,PRINTING AND REPRODUCTION,02-24,"",02/01/16,02/29/16,PHOTOGRAPHIC (TRANSFER),6.40,2016,GL,General ledger,PIX0056298,""
,OFFICE OF THE SPEAKER,2016Q1,PRINTING AND REPRODUCTION,03-23,"",03/01/16,03/31/16,PHOTOGRAPHIC (TRANSFER),377.80,2016,GL,General ledger,PIX0057090,""
,OFFICE OF THE SPEAKER,2016Q1,OTHER SERVICES,02-11,ENGAGE CONCEPTS LLC,01/21/16,01/21/16,NON-TECHNOLOGY SERVICE CONTR,"2,447.81",2016,AP,Accounts payable,E0367835,ENGAGE CONCEPTS LLC
,OFFICE OF THE SPEAKER,2016Q1,OTHER SERVICES,03-18,CITI PCARD-ALSOFT INC,01/29/16,02/28/16,TECHNOLOGY SERVICE CONTRACTS,128.90,2016,AP,Accounts payable,00849255,CITI PCARD-ALSOFT INC
,OFFICE OF THE SPEAKER,2016Q1,SUPPLIES AND MATERIALS,01-22,ALICIA BARTON,01/06/16,01/06/16,HABITATION EXPENSE,200.00,2016,AP,Accounts payable,E0363979,ALICIA BARTON
,OFFICE OF THE SPEAKER,2016Q1,SUPPLIES AND MATERIALS,02-02,FIRST CHOICE COFFEE SERVICES,01/14/16,01/14/16,FOOD & BEVERAGE,315.45,2016,AP,Accounts payable,E0366507,FIRST CHOICE COFFEE SERVICES
,OFFICE OF THE SPEAKER,2016Q1,SUPPLIES AND MATERIALS,02-02,FIRST CHOICE COFFEE SERVICES,01/11/16,01/11/16,FOOD & BEVERAGE,397.50,2016,AP,Accounts payable,E0366508,FIRST CHOICE COFFEE SERVICES
,OFFICE OF THE SPEAKER,2016Q1,SUPPLIES AND MATERIALS,02-02,FIRST CHOICE COFFEE SERVICES,01/07/16,01/07/16,FOOD & BEVERAGE,525.31,2016,AP,Accounts payable,E0366509,FIRST CHOICE COFFEE SERVICES
,OFFICE OF THE SPEAKER,2016Q1,SUPPLIES AND MATERIALS,02-04,"EASBY-SMITH, ANNE S",02/01/16,02/01/16,FOOD & BEVERAGE,51.13,2016,AP,Accounts payable,E0367838,"EASBY-SMITH, ANNE S"
,OFFICE OF THE SPEAKER,2016Q1,SUPPLIES AND MATERIALS,02-08,FIRST CHOICE COFFEE SERVICES,02/03/16,02/03/16,FOOD & BEVERAGE,498.21,2016,AP,Accounts payable,E0369581,FIRST CHOICE COFFEE SERVICES
,OFFICE OF THE SPEAKER,2016Q1,SUPPLIES AND MATERIALS,02-08,DAIOHS FIRST CHOICE COFFEE SERVICES,01/20/16,01/20/16,FOOD & BEVERAGE,190.42,2016,AP,Accounts payable,E0369582,DAIOHS FIRST CHOICE COFFEE SERVICES
,OFFICE OF THE SPEAKER,2016Q1,SUPPLIES AND MATERIALS,02-08,FIRST CHOICE COFFEE SERVICES,02/04/16,02/04/16,FOOD & BEVERAGE,119.90,2016,AP,Accounts payable,E0369583,FIRST CHOICE COFFEE SERVICES
,OFFICE OF THE SPEAKER,2016Q1,SUPPLIES AND MATERIALS,02-18,CITI PCARD-ADOBE CREATIVE CLOUD,01/03/16,01/28/16,SOFTWARE LESS THAN $500,158.59,2016,AP,Accounts payable,00843664,CITI PCARD-ADOBE CREATIVE CLOUD
,OFFICE OF THE SPEAKER,2016Q1,SUPPLIES AND MATERIALS,02-18,CITI PCARD-BUCA DI BEPPO,01/03/16,01/28/16,FOOD & BEVERAGE,363.50,2016,AP,Accounts payable,00843664,CITI PCARD-BUCA DI BEPPO
,OFFICE OF THE SPEAKER,2016Q1,SUPPLIES AND MATERIALS,02-18,CITI PCARD-DT,01/03/16,01/28/16,FOOD & BEVERAGE,265.60,2016,AP,Accounts payable,00843664,CITI PCARD-DT
,OFFICE OF THE SPEAKER,2016Q1,SUPPLIES AND MATERIALS,02-18,CITI PCARD-EINSTEIN BROS,01/03/16,01/28/16,FOOD & BEVERAGE,244.92,2016,AP,Accounts payable,00843664,CITI PCARD-EINSTEIN BROS
,OFFICE OF THE SPEAKER,2016Q1,SUPPLIES AND MATERIALS,02-18,CITI PCARD-SAFEWAY STORE,01/03/16,01/28/16,HABITATION EXPENSE,21.18,2016,AP,Accounts payable,00843664,CITI PCARD-SAFEWAY STORE
,OFFICE OF THE SPEAKER,2016Q1,SUPPLIES AND MATERIALS,02-18,CITI PCARD-TAYLOR GOURMET,01/03/16,01/28/16,FOOD & BEVERAGE,84.38,2016,AP,Accounts payable,00843664,CITI PCARD-TAYLOR GOURMET
,OFFICE OF THE SPEAKER,2016Q1,SUPPLIES AND MATERIALS,02-18,CITI PCARD-WHOLEFDS PST,01/03/16,01/28/16,FOOD & BEVERAGE,510.92,2016,AP,Accounts payable,00843664,CITI PCARD-WHOLEFDS PST
,OFFICE OF THE SPEAKER,2016Q1,SUPPLIES AND MATERIALS,02-19,POLITICO LLC,02/13/16,02/12/17,PUBLICATIONS/REFERENCE MAT'L,"9,990.00",2016,AP,Accounts payable,E0373269,POLITICO LLC
,OFFICE OF THE SPEAKER,2016Q1,SUPPLIES AND MATERIALS,02-26,FIRST CHOICE COFFEE SERVICES,02/11/16,02/11/16,FOOD & BEVERAGE,837.07,2016,AP,Accounts payable,E0375425,FIRST CHOICE COFFEE SERVICES
,OFFICE OF THE SPEAKER,2016Q1,SUPPLIES AND MATERIALS,02-26,FIRST CHOICE COFFEE SERVICES,02/18/16,02/18/16,FOOD & BEVERAGE,219.57,2016,AP,Accounts payable,E0375426,FIRST CHOICE COFFEE SERVICES
,OFFICE OF THE SPEAKER,2016Q1,SUPPLIES AND MATERIALS,02-26,FIRST CHOICE COFFEE SERVICES,02/19/16,02/19/16,FOOD & BEVERAGE,129.50,2016,AP,Accounts payable,E0375428,FIRST CHOICE COFFEE SERVICES
,OFFICE OF THE SPEAKER,2016Q1,SUPPLIES AND MATERIALS,02-26,COCA-COLA REFRESHMENTS USA INC,02/23/16,02/23/16,FOOD & BEVERAGE,120.00,2016,AP,Accounts payable,E0375429,COCA-COLA REFRESHMENTS USA INC
,OFFICE OF THE SPEAKER,2016Q1,SUPPLIES AND MATERIALS,02-26,FIRST CHOICE COFFEE SERVICES,02/08/16,02/08/16,FOOD & BEVERAGE,297.00,2016,AP,Accounts payable,E0375430,FIRST CHOICE COFFEE SERVICES
,OFFICE OF THE SPEAKER,2016Q1,SUPPLIES AND MATERIALS,02-26,"VREEBURG, JACOBUS A",02/02/16,02/02/16,FOOD & BEVERAGE,166.63,2016,AP,Accounts payable,E0375431,"VREEBURG, JACOBUS A"
,OFFICE OF THE SPEAKER,2016Q1,SUPPLIES AND MATERIALS,02-26,"BLANKENSHIP, APRIL L",02/24/16,02/24/16,OFFICE SUPPLIES (OUTSIDE),2.12,2016,AP,Accounts payable,E0375435,"BLANKENSHIP, APRIL L"
,OFFICE OF THE SPEAKER,2016Q1,SUPPLIES AND MATERIALS,02-29,FIRST CHOICE COFFEE SERVICES,02/25/16,02/25/16,FOOD & BEVERAGE,617.95,2016,AP,Accounts payable,E0376362,FIRST CHOICE COFFEE SERVICES
,OFFICE OF THE SPEAKER,2016Q1,SUPPLIES AND MATERIALS,03-01,DESIGN CUISINE,01/12/16,01/12/16,FOOD & BEVERAGE,"2,915.00",2016,AP,Accounts payable,E0376654,DESIGN CUISINE
,OFFICE OF THE SPEAKER,2016Q1,SUPPLIES AND MATERIALS,03-07,FIRST CHOICE COFFEE SERVICES,03/02/16,03/02/16,FOOD & BEVERAGE,274.54,2016,AP,Accounts payable,E0378829,FIRST CHOICE COFFEE SERVICES
,OFFICE OF THE SPEAKER,2016Q1,SUPPLIES AND MATERIALS,03-09,"VREEBURG, JACOBUS A",02/28/16,02/28/16,WATER,7.98,2016,AP,Accounts payable,E0379693,"VREEBURG, JACOBUS A"
,OFFICE OF THE SPEAKER,2016Q1,SUPPLIES AND MATERIALS,03-09,"VREEBURG, JACOBUS A",03/02/16,03/02/16,FOOD & BEVERAGE,166.63,2016,AP,Accounts payable,E0379693,"VREEBURG, JACOBUS A"
,OFFICE OF THE SPEAKER,2016Q1,SUPPLIES AND MATERIALS,03-18,CITI PCARD-ADOBE CREATIVE CLOUD,01/29/16,02/28/16,SOFTWARE LESS THAN $500,158.59,2016,AP,Accounts payable,00849255,CITI PCARD-ADOBE CREATIVE CLOUD
,OFFICE OF THE SPEAKER,2016Q1,SUPPLIES AND MATERIALS,03-18,CITI PCARD-AMAZON MKTPLACE PMTS,01/29/16,02/28/16,FOOD & BEVERAGE,114.62,2016,AP,Accounts payable,00849255,CITI PCARD-AMAZON MKTPLACE PMTS
,OFFICE OF THE SPEAKER,2016Q1,SUPPLIES AND MATERIALS,03-18,CITI PCARD-BOB EVANS REST,01/29/16,02/28/16,FOOD & BEVERAGE,"1,813.00",2016,AP,Accounts payable,00849255,CITI PCARD-BOB EVANS REST
,OFFICE OF THE SPEAKER,2016Q1,SUPPLIES AND MATERIALS,03-18,CITI PCARD-BUCA DI BEPPO,01/29/16,02/28/16,FOOD & BEVERAGE,587.67,2016,AP,Accounts payable,00849255,CITI PCARD-BUCA DI BEPPO
,OFFICE OF THE SPEAKER,2016Q1,SUPPLIES AND MATERIALS,03-18,CITI PCARD-CAFE RIO MEXICAN GRILL,01/29/16,02/28/16,FOOD & BEVERAGE,285.67,2016,AP,Accounts payable,00849255,CITI PCARD-CAFE RIO MEXICAN GRILL
,OFFICE OF THE SPEAKER,2016Q1,SUPPLIES AND MATERIALS,03-18,CITI PCARD-CAPITOLHOST,01/29/16,02/28/16,FOOD & BEVERAGE,11.25,2016,AP,Accounts payable,00849255,CITI PCARD-CAPITOLHOST
,OFFICE OF THE SPEAKER,2016Q1,SUPPLIES AND MATERIALS,03-18,CITI PCARD-CORNER BAKERY,01/29/16,02/28/16,FOOD & BEVERAGE,704.00,2016,AP,Accounts payable,00849255,CITI PCARD-CORNER BAKERY
,OFFICE OF THE SPEAKER,2016Q1,SUPPLIES AND MATERIALS,03-18,CITI PCARD-DRI STELLAR PHOENIX SW,01/29/16,02/28/16,SOFTWARE LESS THAN $500,39.00,2016,AP,Accounts payable,00849255,CITI PCARD-DRI STELLAR PHOENIX SW
,OFFICE OF THE SPEAKER,2016Q1,SUPPLIES AND MATERIALS,03-18,CITI PCARD-EINSTEIN BROS-ONLINE C,01/29/16,02/28/16,FOOD & BEVERAGE,78.97,2016,AP,Accounts payable,00849255,CITI PCARD-EINSTEIN BROS-ONLINE C
,OFFICE OF THE SPEAKER,2016Q1,SUPPLIES AND MATERIALS,03-18,CITI PCARD-FTP FINANCIAL TIMES,01/29/16,02/28/16,PUBLICATIONS/REFERENCE MAT'L,335.40,2016,AP,Accounts payable,00849255,CITI PCARD-FTP FINANCIAL TIMES
,OFFICE OF THE SPEAKER,2016Q1,SUPPLIES AND MATERIALS,03-18,CITI PCARD-PRET A MANGER,01/29/16,02/28/16,FOOD & BEVERAGE,55.69,2016,AP,Accounts payable,00849255,CITI PCARD-PRET A MANGER
,OFFICE OF THE SPEAKER,2016Q1,SUPPLIES AND MATERIALS,03-18,CITI PCARD-TAYLOR GOURMET,01/29/16,02/28/16,FOOD & BEVERAGE,445.19,2016,AP,Accounts payable,00849255,CITI PCARD-TAYLOR GOURMET
,OFFICE OF THE SPEAKER,2016Q1,SUPPLIES AND MATERIALS,03-23,FIRST CHOICE COFFEE SERVICES,03/10/16,03/10/16,FOOD & BEVERAGE,"1,183.34",2016,AP,Accounts payable,E0384828,FIRST CHOICE COFFEE SERVICES
,OFFICE OF THE SPEAKER,2016Q1,SUPPLIES AND MATERIALS,03-23,FIRST CHOICE COFFEE SERVICES,03/16/16,03/16/16,FOOD & BEVERAGE,832.15,2016,AP,Accounts payable,E0384829,FIRST CHOICE COFFEE SERVICES
,OFFICE OF THE SPEAKER,2016Q1,EQUIPMENT,03-03,"THORSEN, ANNE B",01/26/16,01/26/16,MAINTENANCE / REPAIRS,115.54,2016,AP,Accounts payable,E0377897,"THORSEN, ANNE B"
,OFFICE OF THE SPEAKER,2016Q1,PERSONNEL COMPENSATION,"","ANDRES,DOUGLAS R",01/01/16,01/02/16,PRESS SECRETARY,583.33,2015,"","","","ANDRES,DOUGLAS R"
,OFFICE OF THE SPEAKER,2016Q1,PERSONNEL COMPENSATION,"","ANDREWS,THOMAS S",01/01/16,01/02/16,MEMBER SERVICES COORDINATOR,416.67,2015,"","","","ANDREWS,THOMAS S"
,OFFICE OF THE SPEAKER,2016Q1,PERSONNEL COMPENSATION,"","BAILEY,BRADLEY",01/01/16,01/02/16,ASSIST TO SPEAKER FOR POLICY,666.67,2015,"","","","BAILEY,BRADLEY"
,OFFICE OF THE SPEAKER,2016Q1,PERSONNEL COMPENSATION,"","BAILEY,BRADLEY",01/01/16,01/02/16,ASSIST TO SPEAKER FOR POLICY (OTHER COMPENSATION),"4,000.00",2015,"","","","BAILEY,BRADLEY"
,OFFICE OF THE SPEAKER,2016Q1,PERSONNEL COMPENSATION,"","BENJAMIN, WILLIAM C",01/01/16,01/02/16,DIR OF INFORMATION TECHNOLOGY,544.44,2015,"","","","BENJAMIN, WILLIAM C"
,OFFICE OF THE SPEAKER,2016Q1,PERSONNEL COMPENSATION,"","BLAKE,KRISTENE",01/01/16,01/02/16,DIR OF ADMIN OPERATIONS,722.22,2015,"","","","BLAKE,KRISTENE"
,OFFICE OF THE SPEAKER,2016Q1,PERSONNEL COMPENSATION,"","BLANKENSHIP, APRIL L",01/01/16,01/02/16,FINANCIAL ADMINISTRATOR,155.56,2015,"","","","BLANKENSHIP, APRIL L"
,OFFICE OF THE SPEAKER,2016Q1,PERSONNEL COMPENSATION,"","BOLDUC, BRIAN J",01/01/16,01/02/16,DIRECTOR OF SPEECHWRITING,583.33,2015,"","","","BOLDUC, BRIAN J"
,OFFICE OF THE SPEAKER,2016Q1,PERSONNEL COMPENSATION,"","BROWN,MARYAM S",01/01/16,01/02/16,APPOINTMENT DESK ASSISTANT,933.33,2015,"","","","BROWN,MARYAM S"
,OFFICE OF THE SPEAKER,2016Q1,PERSONNEL COMPENSATION,"","BUCK,BRENDAN K",01/01/16,01/02/16,CHIEF ADV ON COMMUNICATIONS,958.33,2015,"","","","BUCK,BRENDAN K"
,OFFICE OF THE SPEAKER,2016Q1,PERSONNEL COMPENSATION,"","BURKS,JONATHAN",01/01/16,01/02/16,ASST TO SPEAKER FOR POLICY,729.53,2015,"","","","BURKS,JONATHAN"
,OFFICE OF THE SPEAKER,2016Q1,PERSONNEL COMPENSATION,"","CALLAS,GEORGE A",01/01/16,01/02/16,CHIEF TAX COUNSEL,948.31,2015,"","","","CALLAS,GEORGE A"
,OFFICE OF THE SPEAKER,2016Q1,PERSONNEL COMPENSATION,"","COYLE,SARAH M",01/01/16,01/02/16,FLOOR ASSISTANT,216.67,2015,"","","","COYLE,SARAH M"
,OFFICE OF THE SPEAKER,2016Q1,PERSONNEL COMPENSATION,"","CRAVEN, KELLY F",01/01/16,01/02/16,DIRECTOR OF HOUSE OPERATIONS,958.33,2015,"","","","CRAVEN, KELLY F"
,OFFICE OF THE SPEAKER,2016Q1,PERSONNEL COMPENSATION,"","DAY,VANESSA",01/01/16,01/02/16,SENIOR COMMUNICATIONS ADVISOR,583.33,2015,"","","","DAY,VANESSA"
,OFFICE OF THE SPEAKER,2016Q1,PERSONNEL COMPENSATION,"","EASBY-SMITH,ANNE S",01/01/16,01/02/16,SPECIAL EVENTS COORDINATOR,416.67,2015,"","","","EASBY-SMITH,ANNE S"
,OFFICE OF THE SPEAKER,2016Q1,PERSONNEL COMPENSATION,"","EDWARDS,SPENCER M",01/01/16,01/02/16,DEPUTY PRESS SECRETARY,305.56,2015,"","","","EDWARDS,SPENCER M"
,OFFICE OF THE SPEAKER,2016Q1,PERSONNEL COMPENSATION,"","EICHHORN, JARED D",01/01/16,01/02/16,CLOAKROOM DIRECTOR,500.00,2015,"","","","EICHHORN, JARED D"
,OFFICE OF THE SPEAKER,2016Q1,PERSONNEL COMPENSATION,"","FOLTZ,DEVON N",01/01/16,01/02/16,COUNSEL,666.67,2015,"","","","FOLTZ,DEVON N"
,OFFICE OF THE SPEAKER,2016Q1,PERSONNEL COMPENSATION,"","GEFFERT,REBEKAH L",01/01/16,01/02/16,STAFF ASSISTANT,194.44,2015,"","","","GEFFERT,REBEKAH L"
,OFFICE OF THE SPEAKER,2016Q1,PERSONNEL COMPENSATION,"","GEFFERT,REBEKAH L",12/01/15,12/30/15,STAFF ASSISTANT (OVERTIME),782.44,2015,"","","","GEFFERT,REBEKAH L"
,OFFICE OF THE SPEAKER,2016Q1,PERSONNEL COMPENSATION,"","GOLDOUST,CARAH S",01/01/16,01/02/16,STAFF ASSISTANT,194.44,2015,"","","","GOLDOUST,CARAH S"
,OFFICE OF THE SPEAKER,2016Q1,PERSONNEL COMPENSATION,"","GOLDOUST,CARAH S",12/01/15,12/30/15,STAFF ASSISTANT (OVERTIME),959.12,2015,"","","","GOLDOUST,CARAH S"
,OFFICE OF THE SPEAKER,2016Q1,PERSONNEL COMPENSATION,"","HERRLE, CYNTHIA A",01/01/16,01/02/16,LOGISTICS & DIST SPEC (A),933.33,2015,"","","","HERRLE, CYNTHIA A"
,OFFICE OF THE SPEAKER,2016Q1,PERSONNEL COMPENSATION,"","HIGGINS,CASEY",01/01/16,01/02/16,ASSIST TO SPEAKER FOR POLICY,555.56,2015,"","","","HIGGINS,CASEY"
,OFFICE OF THE SPEAKER,2016Q1,PERSONNEL COMPENSATION,"","HOPPE,JOHN D",01/01/16,01/02/16,CHIEF OF STAFF,958.33,2015,"","","","HOPPE,JOHN D"
,OFFICE OF THE SPEAKER,2016Q1,PERSONNEL COMPENSATION,"","JORDON,BENJAMIN D",01/01/16,01/02/16,SPECIAL ASST TO THE SPEAKER,277.78,2015,"","","","JORDON,BENJAMIN D"
,OFFICE OF THE SPEAKER,2016Q1,PERSONNEL COMPENSATION,"","KITTLE,ALLIE M",01/01/16,01/02/16,SHARED EMPLOYEE,136.11,2015,"","","","KITTLE,ALLIE M"
,OFFICE OF THE SPEAKER,2016Q1,PERSONNEL COMPENSATION,"","KITTLE,ALLIE M",12/01/15,12/21/15,SHARED EMPLOYEE (OTHER COMPENSATION),652.32,2015,"","","","KITTLE,ALLIE M"
,OFFICE OF THE SPEAKER,2016Q1,PERSONNEL COMPENSATION,"","LEOPOLD,PATRICK R",01/01/16,01/02/16,SHARED EMPLOYEE,555.56,2015,"","","","LEOPOLD,PATRICK R"
,OFFICE OF THE SPEAKER,2016Q1,PERSONNEL COMPENSATION,"","LOZUPONE, AMY S",01/01/16,01/02/16,TRANSITION ADVISOR,77.86,2015,"","","","LOZUPONE, AMY S"
,OFFICE OF THE SPEAKER,2016Q1,PERSONNEL COMPENSATION,"","MACDONALD, BRIAN C",01/01/16,01/02/16,SHARED EMPLOYEE,555.56,2015,"","","","MACDONALD, BRIAN C"
,OFFICE OF THE SPEAKER,2016Q1,PERSONNEL COMPENSATION,"","MARROLETTI,CHRISTOPHER V",01/01/16,01/02/16,SENIOR STAFF ASSISTANT,233.33,2015,"","","","MARROLETTI,CHRISTOPHER V"
,OFFICE OF THE SPEAKER,2016Q1,PERSONNEL COMPENSATION,"","MARROLETTI,CHRISTOPHER V",12/01/15,12/30/15,SENIOR STAFF ASSISTANT (OVERTIME),984.36,2015,"","","","MARROLETTI,CHRISTOPHER V"
,OFFICE OF THE SPEAKER,2016Q1,PERSONNEL COMPENSATION,"","MCCANN, EDWARD D",01/01/16,01/02/16,ASSIST TO SPEAKER FOR POLICY,861.11,2015,"","","","MCCANN, EDWARD D"
,OFFICE OF THE SPEAKER,2016Q1,PERSONNEL COMPENSATION,"","MEYER, JOYCE Y",01/01/16,01/02/16,DEPUTY CHIEF OF STAFF,958.33,2015,"","","","MEYER, JOYCE Y"
,OFFICE OF THE SPEAKER,2016Q1,PERSONNEL COMPENSATION,"","MINKLER,ANN W",01/01/16,01/02/16,FLOOR ASSISTANT,361.11,2015,"","","","MINKLER,ANN W"
,OFFICE OF THE SPEAKER,2016Q1,PERSONNEL COMPENSATION,"","MITCHELL,MAUREEN E",01/01/16,01/02/16,DIRECTOR OF SCHEDULING,611.11,2015,"","","","MITCHELL,MAUREEN E"
,OFFICE OF THE SPEAKER,2016Q1,PERSONNEL COMPENSATION,"","PLANNING,DAVID M",01/01/16,01/02/16,STAFF ASSISTANT,194.45,2015,"","","","PLANNING,DAVID M"
,OFFICE OF THE SPEAKER,2016Q1,PERSONNEL COMPENSATION,"","PLANNING,DAVID M",12/01/15,12/30/15,STAFF ASSISTANT (OVERTIME),996.98,2015,"","","","PLANNING,DAVID M"
,OFFICE OF THE SPEAKER,2016Q1,PERSONNEL COMPENSATION,"","POINTER,KATHERINE C",01/01/16,01/02/16,STAFF ASSISTANT,194.44,2015,"","","","POINTER,KATHERINE C"
,OFFICE OF THE SPEAKER,2016Q1,PERSONNEL COMPENSATION,"","POINTER,KATHERINE C",12/01/15,12/30/15,STAFF ASSISTANT (OVERTIME),832.92,2015,"","","","POINTER,KATHERINE C"
,OFFICE OF THE SPEAKER,2016Q1,PERSONNEL COMPENSATION,"","RENZ, BRANDON",01/01/16,01/02/16,SHARED EMPLOYEE,555.56,2015,"","","","RENZ, BRANDON"
,OFFICE OF THE SPEAKER,2016Q1,PERSONNEL COMPENSATION,"","RICCI,MICHAEL",01/01/16,01/02/16,DIRECTOR OF COMMUNICATIONS,916.67,2015,"","","","RICCI,MICHAEL"
,OFFICE OF THE SPEAKER,2016Q1,PERSONNEL COMPENSATION,"","SAGER,MICHAEL J",01/01/16,01/02/16,SYSTEMS ADMINISTRATOR,472.22,2015,"","","","SAGER,MICHAEL J"
,OFFICE OF THE SPEAKER,2016Q1,PERSONNEL COMPENSATION,"","SHAPIRO, MICHAEL I",01/01/16,01/02/16,COMMUNICATIONS ADVISOR,333.33,2015,"","","","SHAPIRO, MICHAEL I"
,OFFICE OF THE SPEAKER,2016Q1,PERSONNEL COMPENSATION,"","SLINGSBY, JULIA K",01/01/16,01/02/16,DEPUTY COMMUNICATIONS DIRECTOR,500.00,2015,"","","","SLINGSBY, JULIA K"
,OFFICE OF THE SPEAKER,2016Q1,PERSONNEL COMPENSATION,"","SMITH, CALEB J",01/01/16,01/02/16,DIGITAL COMMUNICATIONS DIRECTO,694.44,2015,"","","","SMITH, CALEB J"
,OFFICE OF THE SPEAKER,2016Q1,PERSONNEL COMPENSATION,"","SMYTHE,AUGUSTINE",01/01/16,01/02/16,POLICY DIRECTOR,958.33,2015,"","","","SMYTHE,AUGUSTINE"
,OFFICE OF THE SPEAKER,2016Q1,PERSONNEL COMPENSATION,"","SPETH, ANDREW D",01/01/16,01/02/16,SENIOR ADVISOR,479.17,2015,"","","","SPETH, ANDREW D"
,OFFICE OF THE SPEAKER,2016Q1,PERSONNEL COMPENSATION,"","STRONG,ASHLEE A",01/01/16,01/02/16,PRESS SECRETARY,833.33,2015,"","","","STRONG,ASHLEE A"
,OFFICE OF THE SPEAKER,2016Q1,PERSONNEL COMPENSATION,"","STRUNK, LYDIA",01/01/16,01/02/16,DEPUTY FLOOR DIRECTOR,638.89,2015,"","","","STRUNK, LYDIA"
,OFFICE OF THE SPEAKER,2016Q1,PERSONNEL COMPENSATION,"","SWINEHART,SARAH V",01/01/16,01/02/16,DIRECTOR OF MEDIA AFFAIRS,583.33,2015,"","","","SWINEHART,SARAH V"
,OFFICE OF THE SPEAKER,2016Q1,PERSONNEL COMPENSATION,"","THORSEN, ANNE B",01/01/16,01/02/16,FLOOR DIRECTOR,958.33,2015,"","","","THORSEN, ANNE B"
,OFFICE OF THE SPEAKER,2016Q1,PERSONNEL COMPENSATION,"","WICKISER,VICTORIA H",01/01/16,01/02/16,DEPUTY DIRECTOR OF SCHEDULING,416.67,2015,"","","","WICKISER,VICTORIA H"
,OFFICE OF THE SPEAKER,2016Q1,PERSONNEL COMPENSATION,"","ZULKOSKY,ERIC T",01/01/16,01/02/16,SHARED EMPLOYEE,555.55,2015,"","","","ZULKOSKY,ERIC T"
,OFFICE OF THE SPEAKER,2016Q1,TRAVEL,01-06,"GEFFERT, REBEKAH L",12/16/15,12/16/15,TAXI/PARKING/TOLLS,19.99,2015,AP,Accounts payable,E0358389,"GEFFERT, REBEKAH L"
,OFFICE OF THE SPEAKER,2016Q1,TRAVEL,01-06,"BUCK, BRENDAN K",11/10/15,11/12/15,TRAVEL SUBSISTENCE,929.94,2015,AP,Accounts payable,E0358393,"BUCK, BRENDAN K"
,OFFICE OF THE SPEAKER,2016Q1,"RENT, COMMUNICATION, UTILITIES",02-04,FEDEX,12/04/15,12/04/15,POSTAGE / COURIER / BOX RENTAL,14.86,2015,AP,Accounts payable,00838985,FEDEX
,OFFICE OF THE SPEAKER,2016Q1,"RENT, COMMUNICATION, UTILITIES",03-15,GO BIG MEDIA INC,01/01/16,01/01/16,RECORDING (OUTSIDE),"3,770.40",2015,AP,Accounts payable,E0382051,GO BIG MEDIA INC
,OFFICE OF THE SPEAKER,2016Q1,OTHER SERVICES,01-06,GOVDELIVERY INC,01/01/16,03/31/16,"WEB DEV HST,EMAIL & RLTD SERV","10,000.00",2015,AP,Accounts payable,E0358410,GOVDELIVERY INC
,OFFICE OF THE SPEAKER,2016Q1,OTHER SERVICES,01-27,GOVDELIVERY INC,01/01/16,03/31/16,"WEB DEV HST,EMAIL & RLTD SERV","-10,000.00",2015,AP,Accounts payable,00838558,GOVDELIVERY INC
,OFFICE OF THE SPEAKER,2016Q1,SUPPLIES AND MATERIALS,01-06,E&E PUBLISHING LLC,01/01/16,12/31/16,PUBLICATIONS/REFERENCE MAT'L,"4,580.00",2015,AP,Accounts payable,E0358401,E&E PUBLISHING LLC
,OFFICE OF THE SPEAKER,2016Q1,SUPPLIES AND MATERIALS,01-06,FIRST CHOICE COFFEE SERVICES,11/03/15,12/23/15,FOOD & BEVERAGE,"6,270.88",2015,AP,Accounts payable,E0358409,FIRST CHOICE COFFEE SERVICES
,OFFICE OF THE SPEAKER,2016Q1,SUPPLIES AND MATERIALS,01-11,INSIDE WASHINGTON PUBLISHERS LLC,01/01/16,12/31/16,PUBLICATIONS/REFERENCE MAT'L,"1,780.00",2015,AP,Accounts payable,E0358442,INSIDE WASHINGTON PUBLISHERS LLC
,OFFICE OF THE SPEAKER,2016Q1,SUPPLIES AND MATERIALS,01-12,"WHITE, JERRY L",12/02/15,12/02/15,FOOD & BEVERAGE,152.61,2015,AP,Accounts payable,00834050,"WHITE, JERRY L"
,OFFICE OF THE SPEAKER,2016Q1,SUPPLIES AND MATERIALS,01-15,"DECK, JAMES",12/02/15,12/02/15,FOOD & BEVERAGE,-152.61,2015,AP,Accounts payable,E0351659,"DECK, JAMES"
,OFFICE OF THE SPEAKER,2016Q1,SUPPLIES AND MATERIALS,01-21,CITI PCARD-BUCA DI BEPPO-WASHINGT,11/29/15,12/28/15,FOOD & BEVERAGE,171.50,2015,AP,Accounts payable,00838422,CITI PCARD-BUCA DI BEPPO-WASHINGT
,OFFICE OF THE SPEAKER,2016Q1,SUPPLIES AND MATERIALS,01-21,CITI PCARD-CAFE RIO MEXICAN GRILL,11/29/15,12/28/15,FOOD & BEVERAGE,285.67,2015,AP,Accounts payable,00838422,CITI PCARD-CAFE RIO MEXICAN GRILL
,OFFICE OF THE SPEAKER,2016Q1,SUPPLIES AND MATERIALS,01-21,CITI PCARD-CAPITOL HOST (RIDGEWEL,11/29/15,12/28/15,FOOD & BEVERAGE,90.00,2015,AP,Accounts payable,00838422,CITI PCARD-CAPITOL HOST (RIDGEWEL
,OFFICE OF THE SPEAKER,2016Q1,SUPPLIES AND MATERIALS,01-21,CITI PCARD-CHILI'S,11/29/15,12/28/15,FOOD & BEVERAGE,327.96,2015,AP,Accounts payable,00838422,CITI PCARD-CHILI'S
,OFFICE OF THE SPEAKER,2016Q1,SUPPLIES AND MATERIALS,01-21,CITI PCARD-DT,11/29/15,12/28/15,FOOD & BEVERAGE,265.60,2015,AP,Accounts payable,00838422,CITI PCARD-DT
,OFFICE OF THE SPEAKER,2016Q1,SUPPLIES AND MATERIALS,01-21,CITI PCARD-DUNKIN,11/29/15,12/28/15,FOOD & BEVERAGE,36.02,2015,AP,Accounts payable,00838422,CITI PCARD-DUNKIN
,OFFICE OF THE SPEAKER,2016Q1,SUPPLIES AND MATERIALS,01-21,CITI PCARD-HARRISTEETER,11/29/15,12/28/15,FOOD & BEVERAGE,12.99,2015,AP,Accounts payable,00838422,CITI PCARD-HARRISTEETER
,OFFICE OF THE SPEAKER,2016Q1,SUPPLIES AND MATERIALS,01-21,CITI PCARD-TAYLOR GOURMET,11/29/15,12/28/15,FOOD & BEVERAGE,435.19,2015,AP,Accounts payable,00838422,CITI PCARD-TAYLOR GOURMET
,OFFICE OF THE SPEAKER,2016Q1,SUPPLIES AND MATERIALS,01-21,CITI PCARD-TRATTORIA ALBERTO,11/29/15,12/28/15,FOOD & BEVERAGE,312.80,2015,AP,Accounts payable,00838422,CITI PCARD-TRATTORIA ALBERTO
,OFFICE OF THE SPEAKER,2016Q1,SUPPLIES AND MATERIALS,01-21,CITI PCARD-WHOLEFDS PST,11/29/15,12/28/15,FOOD & BEVERAGE,436.92,2015,AP,Accounts payable,00838422,CITI PCARD-WHOLEFDS PST
,OFFICE OF THE SPEAKER,2016Q1,SUPPLIES AND MATERIALS,02-02,DESIGN CUISINE,12/01/15,12/01/15,FOOD & BEVERAGE,"7,843.19",2015,AP,Accounts payable,E0361826,DESIGN CUISINE
,OFFICE OF THE SPEAKER,2016Q1,SUPPLIES AND MATERIALS,03-01,CQ ROLL CALL INC,09/29/15,09/28/16,PUBLICATIONS/REFERENCE MAT'L,"18,534.00",2015,AP,Accounts payable,E0376646,CQ ROLL CALL INC
,OFFICE OF THE MAJORITY LEADER,2016Q1,PERSONNEL COMPENSATION,"","BERRY,TIMOTHY J",01/03/16,03/31/16,CHIEF OF STAFF,"42,166.67",2016,"","","","BERRY,TIMOTHY J"
,OFFICE OF THE MAJORITY LEADER,2016Q1,PERSONNEL COMPENSATION,"","BIEN,CHRISTOPHER A",01/03/16,02/29/16,STAFF ASSISTANT,"5,800.00",2016,"","","","BIEN,CHRISTOPHER A"
,OFFICE OF THE MAJORITY LEADER,2016Q1,PERSONNEL COMPENSATION,"","BIEN,CHRISTOPHER A",03/01/16,03/31/16,FLOOR ASSISTANT,"3,250.00",2016,"","","","BIEN,CHRISTOPHER A"
,OFFICE OF THE MAJORITY LEADER,2016Q1,PERSONNEL COMPENSATION,"","BUCHANAN,NATALIE L",01/03/16,03/31/16,DIR OF MEMBER SERVICES,"27,416.67",2016,"","","","BUCHANAN,NATALIE L"
,OFFICE OF THE MAJORITY LEADER,2016Q1,PERSONNEL COMPENSATION,"","BURR,DANIELLE M",01/03/16,03/31/16,DIRECTOR OF EXTERNAL AFFAIRS,"36,666.67",2016,"","","","BURR,DANIELLE M"
,OFFICE OF THE MAJORITY LEADER,2016Q1,PERSONNEL COMPENSATION,"","DIXON, KELLY A",01/03/16,03/31/16,DIR OF LEGISLATIVE OPERATIONS,"13,333.33",2016,"","","","DIXON, KELLY A"
,OFFICE OF THE MAJORITY LEADER,2016Q1,PERSONNEL COMPENSATION,"","DRESSLER,JEFFREY A",01/03/16,03/31/16,SENIOR POLICY ADVISOR,"24,933.33",2016,"","","","DRESSLER,JEFFREY A"
,OFFICE OF THE MAJORITY LEADER,2016Q1,PERSONNEL COMPENSATION,"","DUNHAM,WILL",01/18/16,02/29/16,POLICY ADVISOR,"17,200.00",2016,"","","","DUNHAM,WILL"
,OFFICE OF THE MAJORITY LEADER,2016Q1,PERSONNEL COMPENSATION,"","DUNHAM,WILL",03/01/16,03/31/16,POLICY DIRECTOR,"12,000.00",2016,"","","","DUNHAM,WILL"
,OFFICE OF THE MAJORITY LEADER,2016Q1,PERSONNEL COMPENSATION,"","FLORIO,JOHN A",01/03/16,03/31/16,SHARED EMPLOYEE,"11,733.33",2016,"","","","FLORIO,JOHN A"
,OFFICE OF THE MAJORITY LEADER,2016Q1,PERSONNEL COMPENSATION,"","GLANCEY,TESSICA M",01/03/16,02/26/16,DIGITAL COORDINATOR,"7,650.00",2016,"","","","GLANCEY,TESSICA M"
,OFFICE OF THE MAJORITY LEADER,2016Q1,PERSONNEL COMPENSATION,"","GOURDIKIAN,ALEXANDRA G",01/03/16,02/29/16,DEPUTY SCHEDULER,"6,766.67",2016,"","","","GOURDIKIAN,ALEXANDRA G"
,OFFICE OF THE MAJORITY LEADER,2016Q1,PERSONNEL COMPENSATION,"","GOURDIKIAN,ALEXANDRA G",03/01/16,03/31/16,SCHEDULER,"2,500.00",2016,"","","","GOURDIKIAN,ALEXANDRA G"
,OFFICE OF THE MAJORITY LEADER,2016Q1,PERSONNEL COMPENSATION,"","HENEHAN, EMILY A",01/03/16,01/27/16,SENIOR POLICY ADVISOR,"6,250.00",2016,"","","","HENEHAN, EMILY A"
,OFFICE OF THE MAJORITY LEADER,2016Q1,PERSONNEL COMPENSATION,"","HENEHAN, EMILY A",01/26/16,01/30/16,SENIOR POLICY ADVISOR (OTHER COMPENSATION),"3,750.00",2016,"","","","HENEHAN, EMILY A"
,OFFICE OF THE MAJORITY LEADER,2016Q1,PERSONNEL COMPENSATION,"","HILL,PRESTON W",02/01/16,03/31/16,SPECIAL ASSISTANT,"6,000.00",2016,"","","","HILL,PRESTON W"
,OFFICE OF THE MAJORITY LEADER,2016Q1,PERSONNEL COMPENSATION,"","HOWARD,BENJAMIN R",01/03/16,03/31/16,DIRECTOR OF FLOOR OPERATIONS,"22,283.33",2016,"","","","HOWARD,BENJAMIN R"
,OFFICE OF THE MAJORITY LEADER,2016Q1,PERSONNEL COMPENSATION,"","KARR,ELIZABETH B",01/03/16,03/31/16,DEPUTY CHIEF OF STAFF FOR POLI,"41,800.00",2016,"","","","KARR,ELIZABETH B"
,OFFICE OF THE MAJORITY LEADER,2016Q1,PERSONNEL COMPENSATION,"","KELLOGG,MATTHEW B",01/03/16,03/31/16,SR POLICY ADVISOR & COUNSEL,"25,183.33",2016,"","","","KELLOGG,MATTHEW B"
,OFFICE OF THE MAJORITY LEADER,2016Q1,PERSONNEL COMPENSATION,"","KLUTTZ,LAWSON T",01/03/16,01/30/16,SPECIAL ASSISTANT,"2,800.00",2016,"","","","KLUTTZ,LAWSON T"
,OFFICE OF THE MAJORITY LEADER,2016Q1,PERSONNEL COMPENSATION,"","KLUTTZ,LAWSON T",01/01/16,01/31/16,SPECIAL ASSISTANT (OTHER COMPENSATION),"1,000.00",2016,"","","","KLUTTZ,LAWSON T"
,OFFICE OF THE MAJORITY LEADER,2016Q1,PERSONNEL COMPENSATION,"","LEGANSKI,JOHN G",01/03/16,02/29/16,FLOOR ASSISTANT,"7,733.33",2016,"","","","LEGANSKI,JOHN G"
,OFFICE OF THE MAJORITY LEADER,2016Q1,PERSONNEL COMPENSATION,"","LEGANSKI,JOHN G",03/01/16,03/31/16,DEPUTY DIRECTOR OF FLOOR OPERA,"4,750.00",2016,"","","","LEGANSKI,JOHN G"
,OFFICE OF THE MAJORITY LEADER,2016Q1,PERSONNEL COMPENSATION,"","LIRA,MATHEW L",01/03/16,03/31/16,SENIOR ADVISOR,"26,400.00",2016,"","","","LIRA,MATHEW L"
,OFFICE OF THE MAJORITY LEADER,2016Q1,PERSONNEL COMPENSATION,"","LONG,MICHAEL P",01/03/16,03/31/16,COMMUNICATIONS DIRECTOR,"25,666.67",2016,"","","","LONG,MICHAEL P"
,OFFICE OF THE MAJORITY LEADER,2016Q1,PERSONNEL COMPENSATION,"","MAHAN,ROGER A",01/03/16,03/31/16,SENIOR POLICY ADVISOR,"31,533.33",2016,"","","","MAHAN,ROGER A"
,OFFICE OF THE MAJORITY LEADER,2016Q1,PERSONNEL COMPENSATION,"","MEYER,KATHERINE R",03/14/16,03/31/16,SENIOR POLICY ADVISOR,"5,950.00",2016,"","","","MEYER,KATHERINE R"
,OFFICE OF THE MAJORITY LEADER,2016Q1,PERSONNEL COMPENSATION,"","MIN, JAMES B",01/03/16,03/31/16,DEPUTY CHIEF OF STAFF/COUNSEL,"16,866.67",2016,"","","","MIN, JAMES B"
,OFFICE OF THE MAJORITY LEADER,2016Q1,PERSONNEL COMPENSATION,"","PETERSON,SAGE E",03/16/16,03/31/16,SENIOR STAFF ASSISTANT,"1,500.00",2016,"","","","PETERSON,SAGE E"
,OFFICE OF THE MAJORITY LEADER,2016Q1,PERSONNEL COMPENSATION,"","SPARKS, MATTHEW E",01/03/16,03/31/16,PRESS SECRETARY,"13,200.00",2016,"","","","SPARKS, MATTHEW E"
,OFFICE OF THE MAJORITY LEADER,2016Q1,PERSONNEL COMPENSATION,"","STIPICEVIC, KRISTIN",01/03/16,03/31/16,EXECUTIVE ASSISTANT,"21,066.67",2016,"","","","STIPICEVIC, KRISTIN"
,OFFICE OF THE MAJORITY LEADER,2016Q1,PERSONNEL COMPENSATION,"","TORRES,ALEC C",01/03/16,03/31/16,COMM AIDE AND SPEECHWRITER,"11,000.00",2016,"","","","TORRES,ALEC C"
,OFFICE OF THE MAJORITY LEADER,2016Q1,"RENT, COMMUNICATION, UTILITIES",01-08,FEDERAL EXPRESS CORPORATION,01/04/16,01/08/16,POSTAGE / COURIER / BOX RENTAL,13.28,2016,AP,Accounts payable,00833891,FEDERAL EXPRESS CORPORATION
,OFFICE OF THE MAJORITY LEADER,2016Q1,"RENT, COMMUNICATION, UTILITIES",01-21,FEDERAL EXPRESS CORPORATION,01/11/16,01/15/16,POSTAGE / COURIER / BOX RENTAL,6.46,2016,AP,Accounts payable,00835863,FEDERAL EXPRESS CORPORATION
,OFFICE OF THE MAJORITY LEADER,2016Q1,"RENT, COMMUNICATION, UTILITIES",01-29,FEDERAL EXPRESS CORPORATION,01/18/16,01/22/16,POSTAGE / COURIER / BOX RENTAL,5.90,2016,AP,Accounts payable,00838633,FEDERAL EXPRESS CORPORATION
,OFFICE OF THE MAJORITY LEADER,2016Q1,"RENT, COMMUNICATION, UTILITIES",02-10,FEDERAL EXPRESS CORPORATION,02/01/16,02/05/16,POSTAGE / COURIER / BOX RENTAL,15.06,2016,AP,Accounts payable,00839095,FEDERAL EXPRESS CORPORATION
,OFFICE OF THE MAJORITY LEADER,2016Q1,"RENT, COMMUNICATION, UTILITIES",02-12,FEDERAL EXPRESS CORPORATION,02/08/16,02/12/16,POSTAGE / COURIER / BOX RENTAL,6.53,2016,AP,Accounts payable,00839542,FEDERAL EXPRESS CORPORATION
,OFFICE OF THE MAJORITY LEADER,2016Q1,"RENT, COMMUNICATION, UTILITIES",02-22,FEDERAL EXPRESS CORPORATION,02/15/16,02/19/16,POSTAGE / COURIER / BOX RENTAL,4.55,2016,AP,Accounts payable,00843726,FEDERAL EXPRESS CORPORATION
,OFFICE OF THE MAJORITY LEADER,2016Q1,"RENT, COMMUNICATION, UTILITIES",03-04,FEDERAL EXPRESS CORPORATION,02/22/16,02/26/16,POSTAGE / COURIER / BOX RENTAL,14.83,2016,AP,Accounts payable,00844549,FEDERAL EXPRESS CORPORATION
,OFFICE OF THE MAJORITY LEADER,2016Q1,"RENT, COMMUNICATION, UTILITIES",03-07,FEDERAL EXPRESS CORPORATION,02/29/16,03/04/16,POSTAGE / COURIER / BOX RENTAL,27.14,2016,AP,Accounts payable,00844550,FEDERAL EXPRESS CORPORATION
,OFFICE OF THE MAJORITY LEADER,2016Q1,"RENT, COMMUNICATION, UTILITIES",03-11,FEDERAL EXPRESS CORPORATION,03/07/16,03/11/16,POSTAGE / COURIER / BOX RENTAL,11.80,2016,AP,Accounts payable,00844972,FEDERAL EXPRESS CORPORATION
,OFFICE OF THE MAJORITY LEADER,2016Q1,"RENT, COMMUNICATION, UTILITIES",03-23,FEDERAL EXPRESS CORPORATION,03/14/16,03/18/16,POSTAGE / COURIER / BOX RENTAL,29.05,2016,AP,Accounts payable,00849345,FEDERAL EXPRESS CORPORATION
,OFFICE OF THE MAJORITY LEADER,2016Q1,"RENT, COMMUNICATION, UTILITIES",03-24,FEDERAL EXPRESS CORPORATION,01/04/16,01/08/16,POSTAGE / COURIER / BOX RENTAL,-13.28,2016,AP,Accounts payable,00849542,FEDERAL EXPRESS CORPORATION
,OFFICE OF THE MAJORITY LEADER,2016Q1,"RENT, COMMUNICATION, UTILITIES",03-24,FEDERAL EXPRESS CORPORATION,01/11/16,01/15/16,POSTAGE / COURIER / BOX RENTAL,-6.46,2016,AP,Accounts payable,00849543,FEDERAL EXPRESS CORPORATION
,OFFICE OF THE MAJORITY LEADER,2016Q1,"RENT, COMMUNICATION, UTILITIES",03-24,FEDERAL EXPRESS CORPORATION,01/18/16,01/22/16,POSTAGE / COURIER / BOX RENTAL,-5.90,2016,AP,Accounts payable,00849544,FEDERAL EXPRESS CORPORATION
,OFFICE OF THE MAJORITY LEADER,2016Q1,"RENT, COMMUNICATION, UTILITIES",03-24,FEDERAL EXPRESS CORPORATION,02/01/16,02/05/16,POSTAGE / COURIER / BOX RENTAL,-15.06,2016,AP,Accounts payable,00849545,FEDERAL EXPRESS CORPORATION
,OFFICE OF THE MAJORITY LEADER,2016Q1,"RENT, COMMUNICATION, UTILITIES",03-24,FEDERAL EXPRESS CORPORATION,02/08/16,02/12/16,POSTAGE / COURIER / BOX RENTAL,-6.53,2016,AP,Accounts payable,00849546,FEDERAL EXPRESS CORPORATION
,OFFICE OF THE MAJORITY LEADER,2016Q1,"RENT, COMMUNICATION, UTILITIES",03-24,FEDERAL EXPRESS CORPORATION,02/15/16,02/19/16,POSTAGE / COURIER / BOX RENTAL,-4.55,2016,AP,Accounts payable,00849547,FEDERAL EXPRESS CORPORATION
,OFFICE OF THE MAJORITY LEADER,2016Q1,"RENT, COMMUNICATION, UTILITIES",03-24,FEDERAL EXPRESS CORPORATION,02/22/16,02/26/16,POSTAGE / COURIER / BOX RENTAL,-14.83,2016,AP,Accounts payable,00849548,FEDERAL EXPRESS CORPORATION
,OFFICE OF THE MAJORITY LEADER,2016Q1,"RENT, COMMUNICATION, UTILITIES",03-24,FEDERAL EXPRESS CORPORATION,02/29/16,03/04/16,POSTAGE / COURIER / BOX RENTAL,-27.14,2016,AP,Accounts payable,00849549,FEDERAL EXPRESS CORPORATION
,OFFICE OF THE MAJORITY LEADER,2016Q1,"RENT, COMMUNICATION, UTILITIES",03-24,FEDERAL EXPRESS CORPORATION,03/07/16,03/11/16,POSTAGE / COURIER / BOX RENTAL,-11.80,2016,AP,Accounts payable,00849550,FEDERAL EXPRESS CORPORATION
,OFFICE OF THE MAJORITY LEADER,2016Q1,"RENT, COMMUNICATION, UTILITIES",03-25,FEDERAL EXPRESS CORPORATION,03/14/16,03/18/16,POSTAGE / COURIER / BOX RENTAL,-29.05,2016,AP,Accounts payable,00849617,FEDERAL EXPRESS CORPORATION
,OFFICE OF THE MAJORITY LEADER,2016Q1,PRINTING AND REPRODUCTION,01-28,"",01/01/16,01/31/16,PHOTOGRAPHIC (TRANSFER),34.30,2016,GL,General ledger,PIX0055591,""
,OFFICE OF THE MAJORITY LEADER,2016Q1,PRINTING AND REPRODUCTION,02-11,ACCURATE WORD LLC,01/28/16,01/28/16,PRINTING & REPRODUCTION,819.01,2016,AP,Accounts payable,E0370677,ACCURATE WORD LLC
,OFFICE OF THE MAJORITY LEADER,2016Q1,SUPPLIES AND MATERIALS,01-13,"MIN, JAMES B",01/12/16,01/12/16,FOOD & BEVERAGE,117.25,2016,AP,Accounts payable,E0361247,"MIN, JAMES B"
,OFFICE OF THE MAJORITY LEADER,2016Q1,SUPPLIES AND MATERIALS,01-13,"MIN, JAMES B",01/11/16,01/11/16,FOOD & BEVERAGE,677.30,2016,AP,Accounts payable,E0361261,"MIN, JAMES B"
,OFFICE OF THE MAJORITY LEADER,2016Q1,SUPPLIES AND MATERIALS,02-01,READYREFRESH BY NESTLE,11/27/15,12/26/16,WATER,274.74,2016,AP,Accounts payable,E0366067,READYREFRESH BY NESTLE
,OFFICE OF THE MAJORITY LEADER,2016Q1,SUPPLIES AND MATERIALS,02-18,CITI PCARD-CORNER BAKERY,01/03/16,01/28/16,FOOD & BEVERAGE,319.00,2016,AP,Accounts payable,00843664,CITI PCARD-CORNER BAKERY
,OFFICE OF THE MAJORITY LEADER,2016Q1,SUPPLIES AND MATERIALS,02-18,CITI PCARD-D J WALL-ST-JOURNAL,01/03/16,01/28/16,PUBLICATIONS/REFERENCE MAT'L,30.66,2016,AP,Accounts payable,00843664,CITI PCARD-D J WALL-ST-JOURNAL
,OFFICE OF THE MAJORITY LEADER,2016Q1,SUPPLIES AND MATERIALS,02-18,CITI PCARD-FIRST CHOICE,01/03/16,01/28/16,FOOD & BEVERAGE,186.25,2016,AP,Accounts payable,00843664,CITI PCARD-FIRST CHOICE
,OFFICE OF THE MAJORITY LEADER,2016Q1,SUPPLIES AND MATERIALS,02-18,CITI PCARD-LA TIMES SUBSCRIPTION,01/03/16,01/28/16,PUBLICATIONS/REFERENCE MAT'L,15.96,2016,AP,Accounts payable,00843664,CITI PCARD-LA TIMES SUBSCRIPTION
,OFFICE OF THE MAJORITY LEADER,2016Q1,SUPPLIES AND MATERIALS,02-18,CITI PCARD-NEW YORK TIMES DIGITAL,01/03/16,01/28/16,PUBLICATIONS/REFERENCE MAT'L,37.01,2016,AP,Accounts payable,00843664,CITI PCARD-NEW YORK TIMES DIGITAL
,OFFICE OF THE MAJORITY LEADER,2016Q1,SUPPLIES AND MATERIALS,02-18,CITI PCARD-SQ ZORBA'S CAFE,01/03/16,01/28/16,FOOD & BEVERAGE,442.75,2016,AP,Accounts payable,00843664,CITI PCARD-SQ ZORBA'S CAFE
,OFFICE OF THE MAJORITY LEADER,2016Q1,SUPPLIES AND MATERIALS,02-19,READYREFRESH BY NESTLE,12/27/15,01/26/16,WATER,273.01,2016,AP,Accounts payable,E0370982,READYREFRESH BY NESTLE
,OFFICE OF THE MAJORITY LEADER,2016Q1,SUPPLIES AND MATERIALS,03-01,"MIN, JAMES B",02/19/16,02/19/16,FOOD & BEVERAGE,307.49,2016,AP,Accounts payable,E0376578,"MIN, JAMES B"
,OFFICE OF THE MAJORITY LEADER,2016Q1,SUPPLIES AND MATERIALS,03-18,CITI PCARD-CAPITOLHOST,01/29/16,02/28/16,FOOD & BEVERAGE,533.34,2016,AP,Accounts payable,00849255,CITI PCARD-CAPITOLHOST
,OFFICE OF THE MAJORITY LEADER,2016Q1,SUPPLIES AND MATERIALS,03-18,CITI PCARD-CORNER BAKERY,01/29/16,02/28/16,FOOD & BEVERAGE,741.10,2016,AP,Accounts payable,00849255,CITI PCARD-CORNER BAKERY
,OFFICE OF THE MAJORITY LEADER,2016Q1,SUPPLIES AND MATERIALS,03-18,CITI PCARD-D J WALL-ST-JOURNAL,01/29/16,02/28/16,PUBLICATIONS/REFERENCE MAT'L,30.66,2016,AP,Accounts payable,00849255,CITI PCARD-D J WALL-ST-JOURNAL
,OFFICE OF THE MAJORITY LEADER,2016Q1,SUPPLIES AND MATERIALS,03-18,CITI PCARD-FIREHOOK,01/29/16,02/28/16,FOOD & BEVERAGE,52.80,2016,AP,Accounts payable,00849255,CITI PCARD-FIREHOOK
,OFFICE OF THE MAJORITY LEADER,2016Q1,SUPPLIES AND MATERIALS,03-18,CITI PCARD-LA TIMES SUBSCRIPTION,01/29/16,02/28/16,PUBLICATIONS/REFERENCE MAT'L,15.96,2016,AP,Accounts payable,00849255,CITI PCARD-LA TIMES SUBSCRIPTION
,OFFICE OF THE MAJORITY LEADER,2016Q1,SUPPLIES AND MATERIALS,03-18,CITI PCARD-NEW YORK TIMES DIGITAL,01/29/16,02/28/16,PUBLICATIONS/REFERENCE MAT'L,37.01,2016,AP,Accounts payable,00849255,CITI PCARD-NEW YORK TIMES DIGITAL
,OFFICE OF THE MAJORITY LEADER,2016Q1,SUPPLIES AND MATERIALS,03-18,CITI PCARD-SQ ZORBA'S CAFE,01/29/16,02/28/16,FOOD & BEVERAGE,442.75,2016,AP,Accounts payable,00849255,CITI PCARD-SQ ZORBA'S CAFE
,OFFICE OF THE MAJORITY LEADER,2016Q1,SUPPLIES AND MATERIALS,03-21,DEER PARK,01/31/16,01/31/16,WATER,190.73,2016,AP,Accounts payable,00845191,DEER PARK
,OFFICE OF THE MAJORITY LEADER,2016Q1,SUPPLIES AND MATERIALS,03-31,DEER PARK,02/29/16,02/29/16,WATER,102.84,2016,AP,Accounts payable,00849744,DEER PARK
,OFFICE OF THE MAJORITY LEADER,2016Q1,PERSONNEL COMPENSATION,"","BERRY,TIMOTHY J",01/01/16,01/02/16,CHIEF OF STAFF,958.33,2015,"","","","BERRY,TIMOTHY J"
,OFFICE OF THE MAJORITY LEADER,2016Q1,PERSONNEL COMPENSATION,"","BIEN,CHRISTOPHER A",01/01/16,01/02/16,STAFF ASSISTANT,200.00,2015,"","","","BIEN,CHRISTOPHER A"
,OFFICE OF THE MAJORITY LEADER,2016Q1,PERSONNEL COMPENSATION,"","BUCHANAN,NATALIE L",01/01/16,01/02/16,DIR OF MEMBER SERVICES,583.33,2015,"","","","BUCHANAN,NATALIE L"
,OFFICE OF THE MAJORITY LEADER,2016Q1,PERSONNEL COMPENSATION,"","BURR,DANIELLE M",01/01/16,01/02/16,DIRECTOR OF EXTERNAL AFFAIRS,833.33,2015,"","","","BURR,DANIELLE M"
,OFFICE OF THE MAJORITY LEADER,2016Q1,PERSONNEL COMPENSATION,"","DIXON, KELLY A",01/01/16,01/02/16,DIR OF LEGISLATIVE OPERATIONS,666.67,2015,"","","","DIXON, KELLY A"
,OFFICE OF THE MAJORITY LEADER,2016Q1,PERSONNEL COMPENSATION,"","DRESSLER,JEFFREY A",01/01/16,01/02/16,SENIOR POLICY ADVISOR,566.67,2015,"","","","DRESSLER,JEFFREY A"
,OFFICE OF THE MAJORITY LEADER,2016Q1,PERSONNEL COMPENSATION,"","FLORIO,JOHN A",01/01/16,01/02/16,SHARED EMPLOYEE,266.67,2015,"","","","FLORIO,JOHN A"
,OFFICE OF THE MAJORITY LEADER,2016Q1,PERSONNEL COMPENSATION,"","GLANCEY,TESSICA M",01/01/16,01/02/16,DIGITAL COORDINATOR,283.33,2015,"","","","GLANCEY,TESSICA M"
,OFFICE OF THE MAJORITY LEADER,2016Q1,PERSONNEL COMPENSATION,"","GOURDIKIAN,ALEXANDRA G",01/01/16,01/02/16,DEPUTY SCHEDULER,233.33,2015,"","","","GOURDIKIAN,ALEXANDRA G"
,OFFICE OF THE MAJORITY LEADER,2016Q1,PERSONNEL COMPENSATION,"","HENEHAN, EMILY A",01/01/16,01/02/16,SENIOR POLICY ADVISOR,500.00,2015,"","","","HENEHAN, EMILY A"
,OFFICE OF THE MAJORITY LEADER,2016Q1,PERSONNEL COMPENSATION,"","HOWARD,BENJAMIN R",01/01/16,01/02/16,DIRECTOR OF FLOOR OPERATIONS,466.67,2015,"","","","HOWARD,BENJAMIN R"
,OFFICE OF THE MAJORITY LEADER,2016Q1,PERSONNEL COMPENSATION,"","KARR,ELIZABETH B",01/01/16,01/02/16,DEPUTY CHIEF OF STAFF FOR POLI,950.00,2015,"","","","KARR,ELIZABETH B"
,OFFICE OF THE MAJORITY LEADER,2016Q1,PERSONNEL COMPENSATION,"","KELLOGG,MATTHEW B",01/01/16,01/02/16,SR POLICY ADVISOR & COUNSEL,566.67,2015,"","","","KELLOGG,MATTHEW B"
,OFFICE OF THE MAJORITY LEADER,2016Q1,PERSONNEL COMPENSATION,"","KLUTTZ,LAWSON T",01/01/16,01/02/16,SPECIAL ASSISTANT,200.00,2015,"","","","KLUTTZ,LAWSON T"
,OFFICE OF THE MAJORITY LEADER,2016Q1,PERSONNEL COMPENSATION,"","LEGANSKI,JOHN G",01/01/16,01/02/16,FLOOR ASSISTANT,266.67,2015,"","","","LEGANSKI,JOHN G"
,OFFICE OF THE MAJORITY LEADER,2016Q1,PERSONNEL COMPENSATION,"","LIRA,MATHEW L",01/01/16,01/02/16,SENIOR ADVISOR,600.00,2015,"","","","LIRA,MATHEW L"
,OFFICE OF THE MAJORITY LEADER,2016Q1,PERSONNEL COMPENSATION,"","LONG,MICHAEL P",01/01/16,01/02/16,COMMUNICATIONS DIRECTOR,583.33,2015,"","","","LONG,MICHAEL P"
,OFFICE OF THE MAJORITY LEADER,2016Q1,PERSONNEL COMPENSATION,"","MAHAN,ROGER A",01/01/16,01/02/16,SENIOR POLICY ADVISOR,716.67,2015,"","","","MAHAN,ROGER A"
,OFFICE OF THE MAJORITY LEADER,2016Q1,PERSONNEL COMPENSATION,"","MIN, JAMES B",01/01/16,01/02/16,DEPUTY CHIEF OF STAFF/COUNSEL,383.33,2015,"","","","MIN, JAMES B"
,OFFICE OF THE MAJORITY LEADER,2016Q1,PERSONNEL COMPENSATION,"","SPARKS, MATTHEW E",01/01/16,01/02/16,PRESS SECRETARY,300.00,2015,"","","","SPARKS, MATTHEW E"
,OFFICE OF THE MAJORITY LEADER,2016Q1,PERSONNEL COMPENSATION,"","STIPICEVIC, KRISTIN",01/01/16,01/02/16,EXECUTIVE ASSISTANT,433.33,2015,"","","","STIPICEVIC, KRISTIN"
,OFFICE OF THE MAJORITY LEADER,2016Q1,PERSONNEL COMPENSATION,"","TORRES,ALEC C",01/01/16,01/02/16,COMM AIDE AND SPEECHWRITER,250.00,2015,"","","","TORRES,ALEC C"
,OFFICE OF THE MAJORITY LEADER,2016Q1,"RENT, COMMUNICATION, UTILITIES",01-08,FEDERAL EXPRESS CORPORATION,12/21/15,12/25/15,POSTAGE / COURIER / BOX RENTAL,140.14,2015,AP,Accounts payable,00833491,FEDERAL EXPRESS CORPORATION
,OFFICE OF THE MAJORITY LEADER,2016Q1,"RENT, COMMUNICATION, UTILITIES",01-21,CITI PCARD-USPS,11/29/15,12/28/15,POSTAGE / COURIER / BOX RENTAL,54.48,2015,AP,Accounts payable,00838422,CITI PCARD-USPS
,OFFICE OF THE MAJORITY LEADER,2016Q1,"RENT, COMMUNICATION, UTILITIES",02-05,FEDERAL EXPRESS CORP,12/14/15,12/18/15,POSTAGE / COURIER / BOX RENTAL,-5.90,2015,AR,Accounts receivable,AC-11582,FEDERAL EXPRESS CORP
,OFFICE OF THE MAJORITY LEADER,2016Q1,"RENT, COMMUNICATION, UTILITIES",03-24,FEDERAL EXPRESS CORPORATION,11/23/15,11/27/15,POSTAGE / COURIER / BOX RENTAL,-5.90,2015,AP,Accounts payable,00849537,FEDERAL EXPRESS CORPORATION
,OFFICE OF THE MAJORITY LEADER,2016Q1,"RENT, COMMUNICATION, UTILITIES",03-24,FEDERAL EXPRESS CORPORATION,11/30/15,12/04/15,POSTAGE / COURIER / BOX RENTAL,-18.51,2015,AP,Accounts payable,00849538,FEDERAL EXPRESS CORPORATION
,OFFICE OF THE MAJORITY LEADER,2016Q1,"RENT, COMMUNICATION, UTILITIES",03-24,FEDERAL EXPRESS CORPORATION,12/07/15,12/11/15,POSTAGE / COURIER / BOX RENTAL,-4.53,2015,AP,Accounts payable,00849539,FEDERAL EXPRESS CORPORATION
,OFFICE OF THE MAJORITY LEADER,2016Q1,"RENT, COMMUNICATION, UTILITIES",03-24,FEDERAL EXPRESS CORPORATION,12/14/15,12/18/15,POSTAGE / COURIER / BOX RENTAL,-17.65,2015,AP,Accounts payable,00849540,FEDERAL EXPRESS CORPORATION
,OFFICE OF THE MAJORITY LEADER,2016Q1,"RENT, COMMUNICATION, UTILITIES",03-24,FEDERAL EXPRESS CORPORATION,12/21/15,12/25/15,POSTAGE / COURIER / BOX RENTAL,-140.14,2015,AP,Accounts payable,00849541,FEDERAL EXPRESS CORPORATION
,OFFICE OF THE MAJORITY LEADER,2016Q1,SUPPLIES AND MATERIALS,01-21,CITI PCARD-CAPITOL HOST (RIDGEWEL,11/29/15,12/28/15,FOOD & BEVERAGE,"1,505.47",2015,AP,Accounts payable,00838422,CITI PCARD-CAPITOL HOST (RIDGEWEL
,OFFICE OF THE MAJORITY LEADER,2016Q1,SUPPLIES AND MATERIALS,01-21,CITI PCARD-CBI PARALLELS,11/29/15,12/28/15,SOFTWARE LESS THAN $500,49.99,2015,AP,Accounts payable,00838422,CITI PCARD-CBI PARALLELS
,OFFICE OF THE MAJORITY LEADER,2016Q1,SUPPLIES AND MATERIALS,01-21,CITI PCARD-CORNER BAKERY,11/29/15,12/28/15,FOOD & BEVERAGE,638.00,2015,AP,Accounts payable,00838422,CITI PCARD-CORNER BAKERY
,OFFICE OF THE MAJORITY LEADER,2016Q1,SUPPLIES AND MATERIALS,01-21,CITI PCARD-D J WALL-ST-JOURNAL,11/29/15,12/28/15,PUBLICATIONS/REFERENCE MAT'L,30.66,2015,AP,Accounts payable,00838422,CITI PCARD-D J WALL-ST-JOURNAL
,OFFICE OF THE MAJORITY LEADER,2016Q1,SUPPLIES AND MATERIALS,01-21,CITI PCARD-FIRST CHOICE - JOE RAG,11/29/15,12/28/15,FOOD & BEVERAGE,540.42,2015,AP,Accounts payable,00838422,CITI PCARD-FIRST CHOICE - JOE RAG
,OFFICE OF THE MAJORITY LEADER,2016Q1,SUPPLIES AND MATERIALS,01-21,CITI PCARD-FTP FINANCIAL TIMES,11/29/15,12/28/15,PUBLICATIONS/REFERENCE MAT'L,1.00,2015,AP,Accounts payable,00838422,CITI PCARD-FTP FINANCIAL TIMES
,OFFICE OF THE MAJORITY LEADER,2016Q1,SUPPLIES AND MATERIALS,01-21,CITI PCARD-LA TIMES SUBSCRIPTION,11/29/15,12/28/15,PUBLICATIONS/REFERENCE MAT'L,15.96,2015,AP,Accounts payable,00838422,CITI PCARD-LA TIMES SUBSCRIPTION
,OFFICE OF THE MAJORITY LEADER,2016Q1,SUPPLIES AND MATERIALS,01-21,CITI PCARD-NEW YORK TIMES DIGITAL,11/29/15,12/28/15,PUBLICATIONS/REFERENCE MAT'L,37.01,2015,AP,Accounts payable,00838422,CITI PCARD-NEW YORK TIMES DIGITAL
,OFFICE OF THE MAJORITY LEADER,2016Q1,SUPPLIES AND MATERIALS,01-29,DEER PARK,12/31/15,12/31/15,WATER,107.84,2015,AP,Accounts payable,00838624,DEER PARK
,OFFICE OF THE MAJORITY LEADER,2016Q1,SUPPLIES AND MATERIALS,02-11,POLITICO LLC,01/01/16,12/31/16,PUBLICATIONS/REFERENCE MAT'L,"9,990.00",2015,AP,Accounts payable,E0370673,POLITICO LLC
,OFFICE OF THE MAJORITY LEADER,2016Q1,SUPPLIES AND MATERIALS,02-18,CITI PCARD-FTP FINANCIAL TIMES,12/29/15,01/02/16,PUBLICATIONS/REFERENCE MAT'L,53.00,2015,AP,Accounts payable,00843664,CITI PCARD-FTP FINANCIAL TIMES
,OFFICE OF THE MINORITY LEADER,2016Q1,PERSONNEL COMPENSATION,"","ADRIANCE,EDWIN A",01/03/16,03/31/16,PRESS ADVISOR,"12,344.44",2016,"","","","ADRIANCE,EDWIN A"
,OFFICE OF THE MINORITY LEADER,2016Q1,PERSONNEL COMPENSATION,"","AGUILAR,JORGE A",01/03/16,03/31/16,DEPUTY PRESS SECRETARY,"18,333.34",2016,"","","","AGUILAR,JORGE A"
,OFFICE OF THE MINORITY LEADER,2016Q1,PERSONNEL COMPENSATION,"","BARON,ZACHARY L",02/22/16,03/31/16,SELECT PANEL SENIOR COUNSEL,"3,250.00",2016,"","","","BARON,ZACHARY L"
,OFFICE OF THE MINORITY LEADER,2016Q1,PERSONNEL COMPENSATION,"","BERRET,EMILY C",01/03/16,03/31/16,SPECIAL ASST TO THE LEADER,"16,255.57",2016,"","","","BERRET,EMILY C"
,OFFICE OF THE MINORITY LEADER,2016Q1,PERSONNEL COMPENSATION,"","BLOOM, MICHAEL T",01/03/16,03/31/16,SENIOR ADVISOR,"24,444.44",2016,"","","","BLOOM, MICHAEL T"
,OFFICE OF THE MINORITY LEADER,2016Q1,PERSONNEL COMPENSATION,"","CAPRON, MARGARET W",01/03/16,03/31/16,SENIOR ADV POLICY & COMM,"32,437.03",2016,"","","","CAPRON, MARGARET W"
,OFFICE OF THE MINORITY LEADER,2016Q1,PERSONNEL COMPENSATION,"","CAYEA,DEVAN W",01/03/16,03/31/16,DEPUTY ASSIST SCHEDULER,"13,811.11",2016,"","","","CAYEA,DEVAN W"
,OFFICE OF THE MINORITY LEADER,2016Q1,PERSONNEL COMPENSATION,"","CHERRY,STEPHANIE",01/03/16,03/31/16,PRESS ADVISOR,"17,563.11",2016,"","","","CHERRY,STEPHANIE"
,OFFICE OF THE MINORITY LEADER,2016Q1,PERSONNEL COMPENSATION,"","CONNELLY,HENRY V",01/03/16,03/31/16,DIRECTOR OF SPEECHWRITING,"19,555.57",2016,"","","","CONNELLY,HENRY V"
,OFFICE OF THE MINORITY LEADER,2016Q1,PERSONNEL COMPENSATION,"","DAY,TAMIKA K",01/03/16,03/31/16,SR STAFF ASST SYS ADMIN,"12,222.23",2016,"","","","DAY,TAMIKA K"
,OFFICE OF THE MINORITY LEADER,2016Q1,PERSONNEL COMPENSATION,"","DEGRAFF, KENNETH B",01/03/16,03/31/16,SENIOR POLICY ADVISOR,"28,111.10",2016,"","","","DEGRAFF, KENNETH B"
,OFFICE OF THE MINORITY LEADER,2016Q1,PERSONNEL COMPENSATION,"","DEVLIN, PATRICK J",01/03/16,03/31/16,COMMUNICATIONS DIRECTOR,"30,555.57",2016,"","","","DEVLIN, PATRICK J"
,OFFICE OF THE MINORITY LEADER,2016Q1,PERSONNEL COMPENSATION,"","DEWHIRST, DIANE",01/03/16,03/31/16,DEPUTY CHIEF OF STAFF,"42,166.67",2016,"","","","DEWHIRST, DIANE"
,OFFICE OF THE MINORITY LEADER,2016Q1,PERSONNEL COMPENSATION,"","DOHERTY,SINEAD G",01/03/16,02/29/16,ADVANCE DEPUTY,"10,472.24",2016,"","","","DOHERTY,SINEAD G"
,OFFICE OF THE MINORITY LEADER,2016Q1,PERSONNEL COMPENSATION,"","DOHERTY,SINEAD G",03/01/16,03/31/16,DEPUTY DIRECTOR OF ADVANCE,"5,416.67",2016,"","","","DOHERTY,SINEAD G"
,OFFICE OF THE MINORITY LEADER,2016Q1,PERSONNEL COMPENSATION,"","EDMONSON, ROBERT D",01/03/16,03/31/16,CHIEF OF STAFF,"19,537.77",2016,"","","","EDMONSON, ROBERT D"
,OFFICE OF THE MINORITY LEADER,2016Q1,PERSONNEL COMPENSATION,"","ELLISON,MATTHEW B",01/03/16,03/31/16,LEGISLATIVE ASSISTANT,"7,333.33",2016,"","","","ELLISON,MATTHEW B"
,OFFICE OF THE MINORITY LEADER,2016Q1,PERSONNEL COMPENSATION,"","ELSHAMI, NADEAM",01/03/16,03/31/16,CHIEF OF STAFF,"42,166.67",2016,"","","","ELSHAMI, NADEAM"
,OFFICE OF THE MINORITY LEADER,2016Q1,PERSONNEL COMPENSATION,"","FISCHER JR, ROBERT V",01/03/16,03/31/16,ASST FLOOR CHIEF,"42,166.67",2016,"","","","FISCHER JR, ROBERT V"
,OFFICE OF THE MINORITY LEADER,2016Q1,PERSONNEL COMPENSATION,"","GEORGE,EVANGELINE M",01/03/16,03/31/16,DEPUTY COMM DIR/PRESS SEC,"30,555.57",2016,"","","","GEORGE,EVANGELINE M"
,OFFICE OF THE MINORITY LEADER,2016Q1,PERSONNEL COMPENSATION,"","GREENER, APRIL L",01/03/16,03/31/16,RESEARCH DIRECTOR,"14,233.34",2016,"","","","GREENER, APRIL L"
,OFFICE OF THE MINORITY LEADER,2016Q1,PERSONNEL COMPENSATION,"","GRIFFIN,TAYLOR T",01/03/16,03/31/16,PRESS ASSISTANT,"8,555.57",2016,"","","","GRIFFIN,TAYLOR T"
,OFFICE OF THE MINORITY LEADER,2016Q1,PERSONNEL COMPENSATION,"","GRIFFIN,TAYLOR T",01/01/16,02/29/16,PRESS ASSISTANT (OVERTIME),"2,208.50",2016,"","","","GRIFFIN,TAYLOR T"
,OFFICE OF THE MINORITY LEADER,2016Q1,PERSONNEL COMPENSATION,"","HAMMILL, ANDREW T",01/03/16,03/31/16,DEPUTY CHIEF OF STAFF,"42,166.67",2016,"","","","HAMMILL, ANDREW T"
,OFFICE OF THE MINORITY LEADER,2016Q1,PERSONNEL COMPENSATION,"","HAYNES JR, WILFRED J",01/03/16,03/31/16,IT DIRECTOR,"23,985.37",2016,"","","","HAYNES JR, WILFRED J"
,OFFICE OF THE MINORITY LEADER,2016Q1,PERSONNEL COMPENSATION,"","KAPLAN,EMMA L",01/03/16,03/31/16,MEMBER SERVICES ASSOCIATE,"12,344.44",2016,"","","","KAPLAN,EMMA L"
,OFFICE OF THE MINORITY LEADER,2016Q1,PERSONNEL COMPENSATION,"","KEATING,ROSE M",01/03/16,03/31/16,ASST FLOOR MANAGER,"30,555.57",2016,"","","","KEATING,ROSE M"
,OFFICE OF THE MINORITY LEADER,2016Q1,PERSONNEL COMPENSATION,"","KEITA,KAMILAH Z",01/03/16,03/31/16,DEPUTY INFOMATION TECH. DIRECT,"21,787.84",2016,"","","","KEITA,KAMILAH Z"
,OFFICE OF THE MINORITY LEADER,2016Q1,PERSONNEL COMPENSATION,"","KUNDANIS, GEORGE",01/03/16,03/31/16,DEPUTY CHIEF OF STAFF,"42,166.67",2016,"","","","KUNDANIS, GEORGE"
,OFFICE OF THE MINORITY LEADER,2016Q1,PERSONNEL COMPENSATION,"","LEE,SERYEUNG",01/03/16,03/31/16,PRESS ASSISTANT,"7,333.34",2016,"","","","LEE,SERYEUNG"
,OFFICE OF THE MINORITY LEADER,2016Q1,PERSONNEL COMPENSATION,"","LEE,SERYEUNG",01/01/16,02/29/16,PRESS ASSISTANT (OVERTIME),"1,914.64",2016,"","","","LEE,SERYEUNG"
,OFFICE OF THE MINORITY LEADER,2016Q1,PERSONNEL COMPENSATION,"","LIZARRAGA, JAIME E",01/03/16,03/31/16,SR ADV & DIR OF MEMBER SVC,"39,435.37",2016,"","","","LIZARRAGA, JAIME E"
,OFFICE OF THE MINORITY LEADER,2016Q1,PERSONNEL COMPENSATION,"","LONG,MICHAEL G",01/03/16,03/31/16,SENIOR ADVISOR,"26,888.91",2016,"","","","LONG,MICHAEL G"
,OFFICE OF THE MINORITY LEADER,2016Q1,PERSONNEL COMPENSATION,"","MANGRUM, PEARL J",02/01/16,03/31/16,FINANCIAL ADMINISTRATOR,"13,250.00",2016,"","","","MANGRUM, PEARL J"
,OFFICE OF THE MINORITY LEADER,2016Q1,PERSONNEL COMPENSATION,"","MCCLELLAND,ETHAN L",01/03/16,03/31/16,DEP DIR OF MEMBER SERVICES,"15,888.91",2016,"","","","MCCLELLAND,ETHAN L"
,OFFICE OF THE MINORITY LEADER,2016Q1,PERSONNEL COMPENSATION,"","MELTZER,RICHARD",01/03/16,03/31/16,POLICY DIRECTOR,"42,166.67",2016,"","","","MELTZER,RICHARD"
,OFFICE OF THE MINORITY LEADER,2016Q1,PERSONNEL COMPENSATION,"","MONGE,KATHERINE S",01/03/16,03/31/16,TAX POLICY ADVISOR,"34,711.10",2016,"","","","MONGE,KATHERINE S"
,OFFICE OF THE MINORITY LEADER,2016Q1,PERSONNEL COMPENSATION,"","PALMER,ASHLI S",01/03/16,03/31/16,POLICY DIRECTOR,"31,777.77",2016,"","","","PALMER,ASHLI S"
,OFFICE OF THE MINORITY LEADER,2016Q1,PERSONNEL COMPENSATION,"","PARKER, WYNDEE R",01/03/16,03/31/16,SENIOR POLICY ADVISOR,"42,166.67",2016,"","","","PARKER, WYNDEE R"
,OFFICE OF THE MINORITY LEADER,2016Q1,PERSONNEL COMPENSATION,"","PFEIFFER,AMY M",01/03/16,03/31/16,SENIOR ADVISOR,"24,444.43",2016,"","","","PFEIFFER,AMY M"
,OFFICE OF THE MINORITY LEADER,2016Q1,PERSONNEL COMPENSATION,"","POWELL,LATRICE S",01/03/16,03/31/16,ASSISTANT CLOAKROOM MANAGER,"26,888.90",2016,"","","","POWELL,LATRICE S"
,OFFICE OF THE MINORITY LEADER,2016Q1,PERSONNEL COMPENSATION,"","PRICE, REVA B",01/03/16,03/31/16,OUTREACH DIRECTOR & ADVISOR,"31,214.83",2016,"","","","PRICE, REVA B"
,OFFICE OF THE MINORITY LEADER,2016Q1,PERSONNEL COMPENSATION,"","PRIMUS, WENDELL E",01/03/16,03/31/16,SENIOR POLICY ADVISOR,"42,166.67",2016,"","","","PRIMUS, WENDELL E"
,OFFICE OF THE MINORITY LEADER,2016Q1,PERSONNEL COMPENSATION,"","RICCIO,ANDREA M",01/03/16,03/31/16,DEP DIR DEM POL & COMM CMTE,"23,222.23",2016,"","","","RICCIO,ANDREA M"
,OFFICE OF THE MINORITY LEADER,2016Q1,PERSONNEL COMPENSATION,"","ROBINSON,MALAIKA",01/03/16,03/31/16,DEP DIR OF SPEECHWRITING,"15,888.91",2016,"","","","ROBINSON,MALAIKA"
,OFFICE OF THE MINORITY LEADER,2016Q1,PERSONNEL COMPENSATION,"","ROCHELLE,COURTNEY E",01/03/16,03/31/16,DISTRICT SCHEDULER/EXEC ASSIST,"4,888.90",2016,"","","","ROCHELLE,COURTNEY E"
,OFFICE OF THE MINORITY LEADER,2016Q1,PERSONNEL COMPENSATION,"","SKILES,KATHLEEN J",01/03/16,03/31/16,DIGITAL DIR.& SENIOR ADVISOR,"28,111.11",2016,"","","","SKILES,KATHLEEN J"
,OFFICE OF THE MINORITY LEADER,2016Q1,PERSONNEL COMPENSATION,"","SLATER,SAMANTHA A",01/03/16,03/31/16,EXEC DIR DEM POLICY COMM CMTE,"28,111.10",2016,"","","","SLATER,SAMANTHA A"
,OFFICE OF THE MINORITY LEADER,2016Q1,PERSONNEL COMPENSATION,"","SMITH,KELSEY L",01/03/16,03/31/16,DIR. OF SCHEDULING & ADVANCE,"22,000.01",2016,"","","","SMITH,KELSEY L"
,OFFICE OF THE MINORITY LEADER,2016Q1,PERSONNEL COMPENSATION,"","STERN, KEITH L",01/03/16,03/31/16,DIRECTOR OF FLOOR OPERATIONS,"39,111.10",2016,"","","","STERN, KEITH L"
,OFFICE OF THE MINORITY LEADER,2016Q1,PERSONNEL COMPENSATION,"","SURGEON,BINA G",01/03/16,03/31/16,SPECIAL ASST TO THE LEADER,"24,933.34",2016,"","","","SURGEON,BINA G"
,OFFICE OF THE MINORITY LEADER,2016Q1,PERSONNEL COMPENSATION,"","TECKLENBURG, MICHAEL H",01/03/16,03/31/16,COUNSEL,"31,777.77",2016,"","","","TECKLENBURG, MICHAEL H"
,OFFICE OF THE MINORITY LEADER,2016Q1,PERSONNEL COMPENSATION,"","WATKINS, YELBERTON R",01/03/16,03/31/16,CHIEF OF STAFF,"40,333.33",2016,"","","","WATKINS, YELBERTON R"
,OFFICE OF THE MINORITY LEADER,2016Q1,PERSONNEL COMPENSATION,"","WEST,JULIUS L",01/03/16,03/31/16,"ADVISER,MEMBER SERVICES","17,600.01",2016,"","","","WEST,JULIUS L"
,OFFICE OF THE MINORITY LEADER,2016Q1,PERSONNEL COMPENSATION,"","WILLIAMS NAVARRO, AMY K",01/03/16,03/31/16,ASST TO THE EXECUTIVE OFFICE,"8,066.67",2016,"","","","WILLIAMS NAVARRO, AMY K"
,OFFICE OF THE MINORITY LEADER,2016Q1,PERSONNEL COMPENSATION,"","WILLIAMS NAVARRO, AMY K",01/01/16,02/29/16,ASST TO THE EXECUTIVE OFFICE (OVERTIME),"2,933.08",2016,"","","","WILLIAMS NAVARRO, AMY K"
,OFFICE OF THE MINORITY LEADER,2016Q1,PERSONNEL COMPENSATION,"","WOLTERS, KATE",01/03/16,03/31/16,DIRECTOR OF PROTOCOL,"35,098.80",2016,"","","","WOLTERS, KATE"
,OFFICE OF THE MINORITY LEADER,2016Q1,TRAVEL,02-08,"BERRET, EMILY C",01/17/16,01/17/16,MEALS,6.35,2016,AP,Accounts payable,E0369074,"BERRET, EMILY C"
,OFFICE OF THE MINORITY LEADER,2016Q1,TRAVEL,02-08,"BERRET, EMILY C",01/16/16,01/16/16,TAXI/PARKING/TOLLS,8.49,2016,AP,Accounts payable,E0369074,"BERRET, EMILY C"
,OFFICE OF THE MINORITY LEADER,2016Q1,TRAVEL,02-08,"BERRET, EMILY C",01/29/16,01/29/16,TAXI/PARKING/TOLLS,80.66,2016,AP,Accounts payable,E0369074,"BERRET, EMILY C"
,OFFICE OF THE MINORITY LEADER,2016Q1,TRAVEL,02-08,CITIBANK GOV CARD SERVICE,01/16/16,01/16/16,COMMERCIAL TRANSPORTATION,100.10,2016,AP,Accounts payable,E0369075,CITIBANK GOV CARD SERVICE
,OFFICE OF THE MINORITY LEADER,2016Q1,TRAVEL,02-08,CITIBANK GOV CARD SERVICE,01/17/16,01/17/16,MEALS,19.56,2016,AP,Accounts payable,E0369075,CITIBANK GOV CARD SERVICE
,OFFICE OF THE MINORITY LEADER,2016Q1,TRAVEL,02-08,CITIBANK GOV CARD SERVICE,01/18/16,01/18/16,MEALS,13.00,2016,AP,Accounts payable,E0369075,CITIBANK GOV CARD SERVICE
,OFFICE OF THE MINORITY LEADER,2016Q1,TRAVEL,02-08,CITIBANK GOV CARD SERVICE,01/05/16,01/05/16,COMMERCIAL TRANSPORTATION,8.99,2016,AP,Accounts payable,E0369417,CITIBANK GOV CARD SERVICE
,OFFICE OF THE MINORITY LEADER,2016Q1,TRAVEL,02-08,CITIBANK GOV CARD SERVICE,01/18/16,01/18/16,COMMERCIAL TRANSPORTATION,701.10,2016,AP,Accounts payable,E0369417,CITIBANK GOV CARD SERVICE
,OFFICE OF THE MINORITY LEADER,2016Q1,TRAVEL,02-08,CITIBANK GOV CARD SERVICE,01/03/16,01/03/16,MEALS,10.00,2016,AP,Accounts payable,E0369417,CITIBANK GOV CARD SERVICE
,OFFICE OF THE MINORITY LEADER,2016Q1,TRAVEL,02-08,CITIBANK GOV CARD SERVICE,01/04/16,01/04/16,MEALS,35.75,2016,AP,Accounts payable,E0369417,CITIBANK GOV CARD SERVICE
,OFFICE OF THE MINORITY LEADER,2016Q1,TRAVEL,02-08,CITIBANK GOV CARD SERVICE,01/05/16,01/05/16,TAXI/PARKING/TOLLS,77.52,2016,AP,Accounts payable,E0369417,CITIBANK GOV CARD SERVICE
,OFFICE OF THE MINORITY LEADER,2016Q1,TRAVEL,02-09,CITIBANK GOV CARD SERVICE,01/04/16,01/04/16,COMMERCIAL TRANSPORTATION,206.10,2016,AP,Accounts payable,00839318,CITIBANK GOV CARD SERVICE
,OFFICE OF THE MINORITY LEADER,2016Q1,TRAVEL,02-09,CITIBANK GOV CARD SERVICE,01/03/16,01/03/16,MEALS,53.04,2016,AP,Accounts payable,00839318,CITIBANK GOV CARD SERVICE
,OFFICE OF THE MINORITY LEADER,2016Q1,TRAVEL,02-09,CITIBANK GOV CARD SERVICE,01/04/16,01/04/16,MEALS,4.17,2016,AP,Accounts payable,00839318,CITIBANK GOV CARD SERVICE
,OFFICE OF THE MINORITY LEADER,2016Q1,TRAVEL,02-09,"GRIFFIN, TAYLOR T",01/04/16,01/04/16,COMMERCIAL TRANSPORTATION,25.00,2016,AP,Accounts payable,E0369079,"GRIFFIN, TAYLOR T"
,OFFICE OF THE MINORITY LEADER,2016Q1,TRAVEL,02-09,"GRIFFIN, TAYLOR T",01/05/16,01/05/16,TAXI/PARKING/TOLLS,82.89,2016,AP,Accounts payable,E0369079,"GRIFFIN, TAYLOR T"
,OFFICE OF THE MINORITY LEADER,2016Q1,TRAVEL,02-17,"HAMMILL, ANDREW T",02/05/16,02/07/16,LODGING,646.79,2016,AP,Accounts payable,E0371464,"HAMMILL, ANDREW T"
,OFFICE OF THE MINORITY LEADER,2016Q1,TRAVEL,02-17,"HAMMILL, ANDREW T",02/05/16,02/05/16,MEALS,28.00,2016,AP,Accounts payable,E0371464,"HAMMILL, ANDREW T"
,OFFICE OF THE MINORITY LEADER,2016Q1,TRAVEL,02-17,"HAMMILL, ANDREW T",02/05/16,02/05/16,TAXI/PARKING/TOLLS,75.00,2016,AP,Accounts payable,E0371464,"HAMMILL, ANDREW T"
,OFFICE OF THE MINORITY LEADER,2016Q1,TRAVEL,02-17,"HAMMILL, ANDREW T",02/05/16,02/07/16,TAXI/PARKING/TOLLS,161.19,2016,AP,Accounts payable,E0371464,"HAMMILL, ANDREW T"
,OFFICE OF THE MINORITY LEADER,2016Q1,TRAVEL,02-23,"ROCHELLE,COURTNEY",02/21/16,02/21/16,COMMERCIAL TRANSPORTATION,171.10,2016,AP,Accounts payable,E0374413,"ROCHELLE,COURTNEY"
,OFFICE OF THE MINORITY LEADER,2016Q1,TRAVEL,03-01,"SMITH, KELSEY L",02/23/16,02/23/16,TAXI/PARKING/TOLLS,35.00,2016,AP,Accounts payable,E0376816,"SMITH, KELSEY L"
,OFFICE OF THE MINORITY LEADER,2016Q1,TRAVEL,03-01,"SMITH, KELSEY L",02/25/16,02/25/16,TAXI/PARKING/TOLLS,12.09,2016,AP,Accounts payable,E0376816,"SMITH, KELSEY L"
,OFFICE OF THE MINORITY LEADER,2016Q1,TRAVEL,03-02,CITIBANK GOV CARD SERVICE,01/04/16,01/04/16,MEALS,15.22,2016,AP,Accounts payable,00844355,CITIBANK GOV CARD SERVICE
,OFFICE OF THE MINORITY LEADER,2016Q1,TRAVEL,03-02,"MCCLELLAND, ETHAN L",02/03/16,02/24/16,TAXI/PARKING/TOLLS,40.83,2016,AP,Accounts payable,E0376817,"MCCLELLAND, ETHAN L"
,OFFICE OF THE MINORITY LEADER,2016Q1,TRAVEL,03-10,"EDMONSON, ROBERT D",03/03/16,03/03/16,COMMERCIAL TRANSPORTATION,668.10,2016,AP,Accounts payable,E0380540,"EDMONSON, ROBERT D"
,OFFICE OF THE MINORITY LEADER,2016Q1,TRAVEL,03-10,"EDMONSON, ROBERT D",03/04/16,03/04/16,COMMERCIAL TRANSPORTATION,315.10,2016,AP,Accounts payable,E0380540,"EDMONSON, ROBERT D"
,OFFICE OF THE MINORITY LEADER,2016Q1,TRAVEL,03-10,"EDMONSON, ROBERT D",03/04/16,03/04/16,TAXI/PARKING/TOLLS,22.69,2016,AP,Accounts payable,E0380540,"EDMONSON, ROBERT D"
,OFFICE OF THE MINORITY LEADER,2016Q1,TRAVEL,03-10,CITIBANK GOV CARD SERVICE,02/12/16,02/18/16,COMMERCIAL TRANSPORTATION,481.20,2016,AP,Accounts payable,E0380635,CITIBANK GOV CARD SERVICE
,OFFICE OF THE MINORITY LEADER,2016Q1,TRAVEL,03-10,CITIBANK GOV CARD SERVICE,02/18/16,02/18/16,COMMERCIAL TRANSPORTATION,171.10,2016,AP,Accounts payable,E0380635,CITIBANK GOV CARD SERVICE
,OFFICE OF THE MINORITY LEADER,2016Q1,TRAVEL,03-10,CITIBANK GOV CARD SERVICE,02/12/16,02/12/16,MEALS,56.82,2016,AP,Accounts payable,E0380635,CITIBANK GOV CARD SERVICE
,OFFICE OF THE MINORITY LEADER,2016Q1,TRAVEL,03-10,CITIBANK GOV CARD SERVICE,02/13/16,02/13/16,MEALS,6.75,2016,AP,Accounts payable,E0380635,CITIBANK GOV CARD SERVICE
,OFFICE OF THE MINORITY LEADER,2016Q1,TRAVEL,03-10,CITIBANK GOV CARD SERVICE,02/15/16,02/15/16,MEALS,37.61,2016,AP,Accounts payable,E0380635,CITIBANK GOV CARD SERVICE
,OFFICE OF THE MINORITY LEADER,2016Q1,TRAVEL,03-10,CITIBANK GOV CARD SERVICE,02/18/16,02/18/16,MEALS,6.42,2016,AP,Accounts payable,E0380635,CITIBANK GOV CARD SERVICE
,OFFICE OF THE MINORITY LEADER,2016Q1,TRAVEL,03-10,CITIBANK GOV CARD SERVICE,02/15/16,02/18/16,CAR RENTAL,280.18,2016,AP,Accounts payable,E0380635,CITIBANK GOV CARD SERVICE
,OFFICE OF THE MINORITY LEADER,2016Q1,TRAVEL,03-10,CITIBANK GOV CARD SERVICE,02/18/16,02/18/16,GASOLINE,17.51,2016,AP,Accounts payable,E0380635,CITIBANK GOV CARD SERVICE
,OFFICE OF THE MINORITY LEADER,2016Q1,TRAVEL,03-10,CITIBANK GOV CARD SERVICE,02/13/16,02/13/16,TAXI/PARKING/TOLLS,12.15,2016,AP,Accounts payable,E0380635,CITIBANK GOV CARD SERVICE
,OFFICE OF THE MINORITY LEADER,2016Q1,TRAVEL,03-10,CITIBANK GOV CARD SERVICE,02/15/16,02/15/16,COMMERCIAL TRANSPORTATION,206.10,2016,AP,Accounts payable,E0380636,CITIBANK GOV CARD SERVICE
,OFFICE OF THE MINORITY LEADER,2016Q1,TRAVEL,03-10,CITIBANK GOV CARD SERVICE,02/18/16,02/18/16,COMMERCIAL TRANSPORTATION,64.10,2016,AP,Accounts payable,E0380636,CITIBANK GOV CARD SERVICE
,OFFICE OF THE MINORITY LEADER,2016Q1,TRAVEL,03-10,CITIBANK GOV CARD SERVICE,02/15/16,02/18/16,LODGING,873.39,2016,AP,Accounts payable,E0380636,CITIBANK GOV CARD SERVICE
,OFFICE OF THE MINORITY LEADER,2016Q1,TRAVEL,03-10,CITIBANK GOV CARD SERVICE,02/16/16,02/16/16,TAXI/PARKING/TOLLS,55.00,2016,AP,Accounts payable,E0380636,CITIBANK GOV CARD SERVICE
,OFFICE OF THE MINORITY LEADER,2016Q1,TRAVEL,03-10,CITIBANK GOV CARD SERVICE,02/19/16,02/19/16,TAXI/PARKING/TOLLS,79.37,2016,AP,Accounts payable,E0380636,CITIBANK GOV CARD SERVICE
,OFFICE OF THE MINORITY LEADER,2016Q1,TRAVEL,03-10,CITIBANK GOV CARD SERVICE,02/13/16,02/13/16,COMMERCIAL TRANSPORTATION,407.20,2016,AP,Accounts payable,E0380657,CITIBANK GOV CARD SERVICE
,OFFICE OF THE MINORITY LEADER,2016Q1,TRAVEL,03-10,CITIBANK GOV CARD SERVICE,02/18/16,02/18/16,COMMERCIAL TRANSPORTATION,64.10,2016,AP,Accounts payable,E0380657,CITIBANK GOV CARD SERVICE
,OFFICE OF THE MINORITY LEADER,2016Q1,TRAVEL,03-10,CITIBANK GOV CARD SERVICE,03/03/16,03/03/16,COMMERCIAL TRANSPORTATION,668.10,2016,AP,Accounts payable,E0380657,CITIBANK GOV CARD SERVICE
,OFFICE OF THE MINORITY LEADER,2016Q1,TRAVEL,03-10,CITIBANK GOV CARD SERVICE,03/04/16,03/04/16,COMMERCIAL TRANSPORTATION,283.10,2016,AP,Accounts payable,E0380657,CITIBANK GOV CARD SERVICE
,OFFICE OF THE MINORITY LEADER,2016Q1,TRAVEL,03-10,CITIBANK GOV CARD SERVICE,02/17/16,02/19/16,LODGING,175.84,2016,AP,Accounts payable,E0380658,CITIBANK GOV CARD SERVICE
,OFFICE OF THE MINORITY LEADER,2016Q1,TRAVEL,03-10,CITIBANK GOV CARD SERVICE,02/18/16,02/18/16,MEALS,62.10,2016,AP,Accounts payable,E0380658,CITIBANK GOV CARD SERVICE
,OFFICE OF THE MINORITY LEADER,2016Q1,TRAVEL,03-10,CITIBANK GOV CARD SERVICE,02/19/16,02/19/16,TAXI/PARKING/TOLLS,78.06,2016,AP,Accounts payable,E0380658,CITIBANK GOV CARD SERVICE
,OFFICE OF THE MINORITY LEADER,2016Q1,TRAVEL,03-15,"LONG,MICHAEL G",03/03/16,03/04/16,COMMERCIAL TRANSPORTATION,407.20,2016,AP,Accounts payable,E0381594,"LONG,MICHAEL G"
,OFFICE OF THE MINORITY LEADER,2016Q1,TRAVEL,03-15,"LONG,MICHAEL G",03/03/16,03/04/16,LODGING,187.59,2016,AP,Accounts payable,E0381594,"LONG,MICHAEL G"
,OFFICE OF THE MINORITY LEADER,2016Q1,TRAVEL,03-15,"LONG,MICHAEL G",03/03/16,03/03/16,MEALS,26.72,2016,AP,Accounts payable,E0381594,"LONG,MICHAEL G"
,OFFICE OF THE MINORITY LEADER,2016Q1,TRAVEL,03-15,"LONG,MICHAEL G",03/03/16,03/03/16,TAXI/PARKING/TOLLS,51.70,2016,AP,Accounts payable,E0381594,"LONG,MICHAEL G"
,OFFICE OF THE MINORITY LEADER,2016Q1,TRAVEL,03-15,"DEGRAFF, KENNETH B",02/15/16,02/16/16,COMMERCIAL TRANSPORTATION,442.20,2016,AP,Accounts payable,E0381595,"DEGRAFF, KENNETH B"
,OFFICE OF THE MINORITY LEADER,2016Q1,TRAVEL,03-15,"DEGRAFF, KENNETH B",02/15/16,02/16/16,LODGING,243.65,2016,AP,Accounts payable,E0381595,"DEGRAFF, KENNETH B"
,OFFICE OF THE MINORITY LEADER,2016Q1,TRAVEL,03-15,"DEGRAFF, KENNETH B",01/04/16,02/16/16,MEALS,93.80,2016,AP,Accounts payable,E0381595,"DEGRAFF, KENNETH B"
,OFFICE OF THE MINORITY LEADER,2016Q1,TRAVEL,03-15,"DEGRAFF, KENNETH B",02/15/16,02/17/16,TAXI/PARKING/TOLLS,171.12,2016,AP,Accounts payable,E0381595,"DEGRAFF, KENNETH B"
,OFFICE OF THE MINORITY LEADER,2016Q1,TRAVEL,03-24,CITIBANK GOV CARD SERVICE,02/05/16,02/07/16,COMMERCIAL TRANSPORTATION,461.20,2016,AP,Accounts payable,E0385377,CITIBANK GOV CARD SERVICE
,OFFICE OF THE MINORITY LEADER,2016Q1,TRAVEL,03-24,CITIBANK GOV CARD SERVICE,02/05/16,02/07/16,LODGING,835.61,2016,AP,Accounts payable,E0385377,CITIBANK GOV CARD SERVICE
,OFFICE OF THE MINORITY LEADER,2016Q1,TRAVEL,03-24,CITIBANK GOV CARD SERVICE,02/05/16,02/05/16,MEALS,8.51,2016,AP,Accounts payable,E0385377,CITIBANK GOV CARD SERVICE
,OFFICE OF THE MINORITY LEADER,2016Q1,TRAVEL,03-24,CITIBANK GOV CARD SERVICE,02/06/16,02/06/16,TAXI/PARKING/TOLLS,16.25,2016,AP,Accounts payable,E0385377,CITIBANK GOV CARD SERVICE
,OFFICE OF THE MINORITY LEADER,2016Q1,TRAVEL,03-24,CITIBANK GOV CARD SERVICE,02/07/16,02/07/16,TAXI/PARKING/TOLLS,52.80,2016,AP,Accounts payable,E0385377,CITIBANK GOV CARD SERVICE
,OFFICE OF THE MINORITY LEADER,2016Q1,TRAVEL,03-30,"ROCHELLE,COURTNEY",02/18/16,03/10/16,MEALS,61.40,2016,AP,Accounts payable,E0387129,"ROCHELLE,COURTNEY"
,OFFICE OF THE MINORITY LEADER,2016Q1,TRAVEL,03-30,"SURGEON,BINA G",03/16/16,03/20/16,TAXI/PARKING/TOLLS,72.14,2016,AP,Accounts payable,E0387134,"SURGEON,BINA G"
,OFFICE OF THE MINORITY LEADER,2016Q1,TRAVEL,03-31,"HAMMILL, ANDREW T",03/17/16,03/17/16,TAXI/PARKING/TOLLS,33.18,2016,AP,Accounts payable,E0387594,"HAMMILL, ANDREW T"
,OFFICE OF THE MINORITY LEADER,2016Q1,"RENT, COMMUNICATION, UTILITIES",02-18,CITI PCARD-TIV TIVO SERVICE,01/03/16,01/28/16,RECORDING (OUTSIDE),153.11,2016,AP,Accounts payable,00843664,CITI PCARD-TIV TIVO SERVICE
,OFFICE OF THE MINORITY LEADER,2016Q1,"RENT, COMMUNICATION, UTILITIES",03-18,CITI PCARD-TIV TIVO SERVICE,01/29/16,02/28/16,RECORDING (OUTSIDE),48.42,2016,AP,Accounts payable,00849255,CITI PCARD-TIV TIVO SERVICE
,OFFICE OF THE MINORITY LEADER,2016Q1,PRINTING AND REPRODUCTION,01-28,"",01/01/16,01/31/16,PHOTOGRAPHIC (TRANSFER),134.50,2016,GL,General ledger,PIX0055591,""
,OFFICE OF THE MINORITY LEADER,2016Q1,PRINTING AND REPRODUCTION,02-17,"HAMMILL, ANDREW T",02/06/16,02/06/16,PRINTING & REPRODUCTION,81.07,2016,AP,Accounts payable,E0371464,"HAMMILL, ANDREW T"
,OFFICE OF THE MINORITY LEADER,2016Q1,PRINTING AND REPRODUCTION,02-24,"",02/01/16,02/29/16,PHOTOGRAPHIC (TRANSFER),94.50,2016,GL,General ledger,PIX0056298,""
,OFFICE OF THE MINORITY LEADER,2016Q1,PRINTING AND REPRODUCTION,03-15,"LONG,MICHAEL G",03/03/16,03/03/16,PRINTING & REPRODUCTION,18.98,2016,AP,Accounts payable,E0381594,"LONG,MICHAEL G"
,OFFICE OF THE MINORITY LEADER,2016Q1,PRINTING AND REPRODUCTION,03-23,"",03/01/16,03/31/16,PHOTOGRAPHIC (TRANSFER),485.00,2016,GL,General ledger,PIX0057090,""
,OFFICE OF THE MINORITY LEADER,2016Q1,PRINTING AND REPRODUCTION,03-30,"SURGEON,BINA G",03/10/16,03/10/16,PRINTING & REPRODUCTION,50.33,2016,AP,Accounts payable,E0387134,"SURGEON,BINA G"
,OFFICE OF THE MINORITY LEADER,2016Q1,OTHER SERVICES,02-08,BERNARD RAIMO,01/01/16,01/31/16,CONSULTANT CONTRACT SERVICE,"7,628.00",2016,AP,Accounts payable,E0368727,BERNARD RAIMO
,OFFICE OF THE MINORITY LEADER,2016Q1,OTHER SERVICES,03-02,BERNARD RAIMO,02/01/16,02/29/16,CONSULTANT CONTRACT SERVICE,"7,628.00",2016,AP,Accounts payable,E0376819,BERNARD RAIMO
,OFFICE OF THE MINORITY LEADER,2016Q1,SUPPLIES AND MATERIALS,02-08,"BERRET, EMILY C",01/16/16,01/16/16,PUBLICATIONS/REFERENCE MAT'L,13.22,2016,AP,Accounts payable,E0369074,"BERRET, EMILY C"
,OFFICE OF THE MINORITY LEADER,2016Q1,SUPPLIES AND MATERIALS,02-08,CITIBANK GOV CARD SERVICE,01/16/16,01/16/16,FOOD & BEVERAGE,22.44,2016,AP,Accounts payable,E0369075,CITIBANK GOV CARD SERVICE
,OFFICE OF THE MINORITY LEADER,2016Q1,SUPPLIES AND MATERIALS,02-08,TOULIES EN FLEUR,01/05/16,01/11/16,HABITATION EXPENSE,500.00,2016,AP,Accounts payable,E0369076,TOULIES EN FLEUR
,OFFICE OF THE MINORITY LEADER,2016Q1,SUPPLIES AND MATERIALS,02-08,CAPITOL HOST,01/13/16,01/13/16,FOOD & BEVERAGE,36.63,2016,AP,Accounts payable,E0369077,CAPITOL HOST
,OFFICE OF THE MINORITY LEADER,2016Q1,SUPPLIES AND MATERIALS,02-09,"GRIFFIN, TAYLOR T",01/04/16,01/04/16,PUBLICATIONS/REFERENCE MAT'L,6.52,2016,AP,Accounts payable,E0369079,"GRIFFIN, TAYLOR T"
,OFFICE OF THE MINORITY LEADER,2016Q1,SUPPLIES AND MATERIALS,02-17,CAPITOL HOST,02/03/16,02/03/16,FOOD & BEVERAGE,36.63,2016,AP,Accounts payable,E0372706,CAPITOL HOST
,OFFICE OF THE MINORITY LEADER,2016Q1,SUPPLIES AND MATERIALS,02-17,CRYSTAL SPRINGS,01/01/16,01/31/16,FOOD & BEVERAGE,389.23,2016,AP,Accounts payable,E0372708,CRYSTAL SPRINGS
,OFFICE OF THE MINORITY LEADER,2016Q1,SUPPLIES AND MATERIALS,02-18,CITI PCARD-COSTCO.COM ONLINE,01/03/16,01/28/16,FOOD & BEVERAGE,300.00,2016,AP,Accounts payable,00843664,CITI PCARD-COSTCO.COM ONLINE
,OFFICE OF THE MINORITY LEADER,2016Q1,SUPPLIES AND MATERIALS,02-18,CITI PCARD-CVS/PHARMACY,01/03/16,01/28/16,FOOD & BEVERAGE,81.45,2016,AP,Accounts payable,00843664,CITI PCARD-CVS/PHARMACY
,OFFICE OF THE MINORITY LEADER,2016Q1,SUPPLIES AND MATERIALS,02-18,CITI PCARD-DUNKIN,01/03/16,01/28/16,FOOD & BEVERAGE,59.34,2016,AP,Accounts payable,00843664,CITI PCARD-DUNKIN
,OFFICE OF THE MINORITY LEADER,2016Q1,SUPPLIES AND MATERIALS,02-18,CITI PCARD-FIREHOOK,01/03/16,01/28/16,FOOD & BEVERAGE,26.40,2016,AP,Accounts payable,00843664,CITI PCARD-FIREHOOK
,OFFICE OF THE MINORITY LEADER,2016Q1,SUPPLIES AND MATERIALS,02-18,CITI PCARD-HARRIS TEETER,01/03/16,01/28/16,FOOD & BEVERAGE,74.98,2016,AP,Accounts payable,00843664,CITI PCARD-HARRIS TEETER
,OFFICE OF THE MINORITY LEADER,2016Q1,SUPPLIES AND MATERIALS,02-18,CITI PCARD-TARGET,01/03/16,01/28/16,FOOD & BEVERAGE,557.98,2016,AP,Accounts payable,00843664,CITI PCARD-TARGET
,OFFICE OF THE MINORITY LEADER,2016Q1,SUPPLIES AND MATERIALS,02-18,CITI PCARD-WHOLEFDS GWU,01/03/16,01/28/16,FOOD & BEVERAGE,67.84,2016,AP,Accounts payable,00843664,CITI PCARD-WHOLEFDS GWU
,OFFICE OF THE MINORITY LEADER,2016Q1,SUPPLIES AND MATERIALS,02-18,CITI PCARD-WHOLEFDS GWU,01/03/16,01/28/16,HABITATION EXPENSE,41.21,2016,AP,Accounts payable,00843664,CITI PCARD-WHOLEFDS GWU
,OFFICE OF THE MINORITY LEADER,2016Q1,SUPPLIES AND MATERIALS,03-01,CAPITOL HOST,02/12/16,02/12/16,FOOD & BEVERAGE,36.63,2016,AP,Accounts payable,E0376605,CAPITOL HOST
,OFFICE OF THE MINORITY LEADER,2016Q1,SUPPLIES AND MATERIALS,03-01,CRYSTAL SPRINGS,02/01/16,02/29/16,FOOD & BEVERAGE,166.91,2016,AP,Accounts payable,E0376612,CRYSTAL SPRINGS
,OFFICE OF THE MINORITY LEADER,2016Q1,SUPPLIES AND MATERIALS,03-01,CAPITOL ADVANTAGE LLC,02/24/16,02/24/16,PUBLICATIONS/REFERENCE MAT'L,"1,133.00",2016,AP,Accounts payable,E0376613,CAPITOL ADVANTAGE LLC
,OFFICE OF THE MINORITY LEADER,2016Q1,SUPPLIES AND MATERIALS,03-10,CITIBANK GOV CARD SERVICE,01/28/16,01/28/16,PUBLICATIONS/REFERENCE MAT'L,23.85,2016,AP,Accounts payable,E0380631,CITIBANK GOV CARD SERVICE
,OFFICE OF THE MINORITY LEADER,2016Q1,SUPPLIES AND MATERIALS,03-10,CAPITOL HOST,02/24/16,02/24/16,FOOD & BEVERAGE,36.63,2016,AP,Accounts payable,E0380633,CAPITOL HOST
,OFFICE OF THE MINORITY LEADER,2016Q1,SUPPLIES AND MATERIALS,03-10,CAPITOL HOST,02/26/16,02/26/16,FOOD & BEVERAGE,36.63,2016,AP,Accounts payable,E0380634,CAPITOL HOST
,OFFICE OF THE MINORITY LEADER,2016Q1,SUPPLIES AND MATERIALS,03-16,TOULIES EN FLEUR,02/01/16,02/29/16,HABITATION EXPENSE,"1,520.00",2016,AP,Accounts payable,E0381593,TOULIES EN FLEUR
,OFFICE OF THE MINORITY LEADER,2016Q1,SUPPLIES AND MATERIALS,03-18,CITI PCARD-DUNKIN,01/29/16,02/28/16,FOOD & BEVERAGE,69.52,2016,AP,Accounts payable,00849255,CITI PCARD-DUNKIN
,OFFICE OF THE MINORITY LEADER,2016Q1,SUPPLIES AND MATERIALS,03-18,CITI PCARD-WHOLEFDS GWU,01/29/16,02/28/16,FOOD & BEVERAGE,98.42,2016,AP,Accounts payable,00849255,CITI PCARD-WHOLEFDS GWU
,OFFICE OF THE MINORITY LEADER,2016Q1,SUPPLIES AND MATERIALS,03-23,"BLOOM, MICHAEL",03/11/16,03/11/16,FOOD & BEVERAGE,260.76,2016,AP,Accounts payable,E0384812,"BLOOM, MICHAEL"
,OFFICE OF THE MINORITY LEADER,2016Q1,SUPPLIES AND MATERIALS,03-30,SOUTHWEST DISTRIBUTION INC,04/01/16,06/30/16,PUBLICATIONS/REFERENCE MAT'L,"3,835.00",2016,AP,Accounts payable,E0387100,SOUTHWEST DISTRIBUTION INC
,OFFICE OF THE MINORITY LEADER,2016Q1,SUPPLIES AND MATERIALS,03-30,CRYSTAL SPRINGS,03/01/16,03/31/16,FOOD & BEVERAGE,352.56,2016,AP,Accounts payable,E0387101,CRYSTAL SPRINGS
,OFFICE OF THE MINORITY LEADER,2016Q1,SUPPLIES AND MATERIALS,03-30,CAPITOL HOST,03/02/16,03/02/16,FOOD & BEVERAGE,36.63,2016,AP,Accounts payable,E0387128,CAPITOL HOST
,OFFICE OF THE MINORITY LEADER,2016Q1,SUPPLIES AND MATERIALS,03-31,CISION US INC,04/26/16,04/26/17,PUBLICATIONS/REFERENCE MAT'L,"6,498.00",2016,AP,Accounts payable,E0387097,CISION US INC
,OFFICE OF THE MINORITY LEADER,2016Q1,PERSONNEL COMPENSATION,"","ADRIANCE,EDWIN A",11/01/15,01/02/16,PRESS ADVISOR,"3,780.55",2015,"","","","ADRIANCE,EDWIN A"
,OFFICE OF THE MINORITY LEADER,2016Q1,PERSONNEL COMPENSATION,"","AGUILAR,JORGE A",11/01/15,01/02/16,DEPUTY PRESS SECRETARY,"3,916.66",2015,"","","","AGUILAR,JORGE A"
,OFFICE OF THE MINORITY LEADER,2016Q1,PERSONNEL COMPENSATION,"","BERRET,EMILY C",11/01/15,01/02/16,SPECIAL ASST TO THE LEADER,"3,869.44",2015,"","","","BERRET,EMILY C"
,OFFICE OF THE MINORITY LEADER,2016Q1,PERSONNEL COMPENSATION,"","BLOOM, MICHAEL T",11/01/15,01/02/16,SENIOR ADVISOR,"4,055.55",2015,"","","","BLOOM, MICHAEL T"
,OFFICE OF THE MINORITY LEADER,2016Q1,PERSONNEL COMPENSATION,"","CAPRON, MARGARET W",01/01/16,01/02/16,SENIOR ADV POLICY & COMM,737.21,2015,"","","","CAPRON, MARGARET W"
,OFFICE OF THE MINORITY LEADER,2016Q1,PERSONNEL COMPENSATION,"","CAYEA,DEVAN W",10/01/15,01/02/16,DEPUTY ASSIST SCHEDULER,"4,313.88",2015,"","","","CAYEA,DEVAN W"
,OFFICE OF THE MINORITY LEADER,2016Q1,PERSONNEL COMPENSATION,"","CHERRY,STEPHANIE",11/01/15,01/02/16,PRESS ADVISOR,"3,899.15",2015,"","","","CHERRY,STEPHANIE"
,OFFICE OF THE MINORITY LEADER,2016Q1,PERSONNEL COMPENSATION,"","CONNELLY,HENRY V",11/01/15,01/02/16,DIRECTOR OF SPEECHWRITING,"3,944.44",2015,"","","","CONNELLY,HENRY V"
,OFFICE OF THE MINORITY LEADER,2016Q1,PERSONNEL COMPENSATION,"","DAY,TAMIKA K",01/01/16,01/02/16,SR STAFF ASST SYS ADMIN,277.78,2015,"","","","DAY,TAMIKA K"
,OFFICE OF THE MINORITY LEADER,2016Q1,PERSONNEL COMPENSATION,"","DEGRAFF, KENNETH B",01/01/16,01/02/16,SENIOR POLICY ADVISOR,638.89,2015,"","","","DEGRAFF, KENNETH B"
,OFFICE OF THE MINORITY LEADER,2016Q1,PERSONNEL COMPENSATION,"","DEVLIN, PATRICK J",01/01/16,01/02/16,COMMUNICATIONS DIRECTOR,694.44,2015,"","","","DEVLIN, PATRICK J"
,OFFICE OF THE MINORITY LEADER,2016Q1,PERSONNEL COMPENSATION,"","DEWHIRST, DIANE",01/01/16,01/02/16,DEPUTY CHIEF OF STAFF,958.33,2015,"","","","DEWHIRST, DIANE"
,OFFICE OF THE MINORITY LEADER,2016Q1,PERSONNEL COMPENSATION,"","DOHERTY,SINEAD G",11/01/15,01/02/16,ADVANCE DEPUTY,"3,861.10",2015,"","","","DOHERTY,SINEAD G"
,OFFICE OF THE MINORITY LEADER,2016Q1,PERSONNEL COMPENSATION,"","EDMONSON, ROBERT D",11/01/15,01/02/16,CHIEF OF STAFF,"3,162.22",2015,"","","","EDMONSON, ROBERT D"
,OFFICE OF THE MINORITY LEADER,2016Q1,PERSONNEL COMPENSATION,"","ELLISON,MATTHEW B",01/01/16,01/02/16,LEGISLATIVE ASSISTANT,166.67,2015,"","","","ELLISON,MATTHEW B"
,OFFICE OF THE MINORITY LEADER,2016Q1,PERSONNEL COMPENSATION,"","ELSHAMI, NADEAM",01/01/16,01/02/16,CHIEF OF STAFF,958.33,2015,"","","","ELSHAMI, NADEAM"
,OFFICE OF THE MINORITY LEADER,2016Q1,PERSONNEL COMPENSATION,"","FISCHER JR, ROBERT V",01/01/16,01/02/16,ASST FLOOR CHIEF,958.33,2015,"","","","FISCHER JR, ROBERT V"
,OFFICE OF THE MINORITY LEADER,2016Q1,PERSONNEL COMPENSATION,"","GEORGE,EVANGELINE M",11/01/15,01/02/16,DEPUTY COMM DIR/PRESS SEC,"4,194.44",2015,"","","","GEORGE,EVANGELINE M"
,OFFICE OF THE MINORITY LEADER,2016Q1,PERSONNEL COMPENSATION,"","GREENER, APRIL L",11/01/15,01/02/16,RESEARCH DIRECTOR,"15,516.66",2015,"","","","GREENER, APRIL L"
,OFFICE OF THE MINORITY LEADER,2016Q1,PERSONNEL COMPENSATION,"","GRIFFIN,TAYLOR T",11/01/15,01/02/16,PRESS ASSISTANT,"3,694.44",2015,"","","","GRIFFIN,TAYLOR T"
,OFFICE OF THE MINORITY LEADER,2016Q1,PERSONNEL COMPENSATION,"","GRIFFIN,TAYLOR T",12/01/15,12/31/15,PRESS ASSISTANT (OVERTIME),"3,831.45",2015,"","","","GRIFFIN,TAYLOR T"
,OFFICE OF THE MINORITY LEADER,2016Q1,PERSONNEL COMPENSATION,"","HAMMILL, ANDREW T",01/01/16,01/02/16,DEPUTY CHIEF OF STAFF,958.33,2015,"","","","HAMMILL, ANDREW T"
,OFFICE OF THE MINORITY LEADER,2016Q1,PERSONNEL COMPENSATION,"","HAYNES JR, WILFRED J",11/01/15,01/02/16,IT DIRECTOR,"4,045.12",2015,"","","","HAYNES JR, WILFRED J"
,OFFICE OF THE MINORITY LEADER,2016Q1,PERSONNEL COMPENSATION,"","KAPLAN,EMMA L",11/01/15,01/02/16,MEMBER SERVICES ASSOCIATE,"3,780.55",2015,"","","","KAPLAN,EMMA L"
,OFFICE OF THE MINORITY LEADER,2016Q1,PERSONNEL COMPENSATION,"","KEATING,ROSE M",01/01/16,01/02/16,ASST FLOOR MANAGER,694.44,2015,"","","","KEATING,ROSE M"
,OFFICE OF THE MINORITY LEADER,2016Q1,PERSONNEL COMPENSATION,"","KEITA,KAMILAH Z",11/01/15,01/02/16,DEPUTY INFOMATION TECH. DIRECT,"3,995.17",2015,"","","","KEITA,KAMILAH Z"
,OFFICE OF THE MINORITY LEADER,2016Q1,PERSONNEL COMPENSATION,"","KUNDANIS, GEORGE",01/01/16,01/02/16,DEPUTY CHIEF OF STAFF,958.33,2015,"","","","KUNDANIS, GEORGE"
,OFFICE OF THE MINORITY LEADER,2016Q1,PERSONNEL COMPENSATION,"","LEE,SERYEUNG",11/01/15,01/02/16,PRESS ASSISTANT,"3,666.66",2015,"","","","LEE,SERYEUNG"
,OFFICE OF THE MINORITY LEADER,2016Q1,PERSONNEL COMPENSATION,"","LEE,SERYEUNG",12/01/15,12/30/15,PRESS ASSISTANT (OVERTIME),"2,193.73",2015,"","","","LEE,SERYEUNG"
,OFFICE OF THE MINORITY LEADER,2016Q1,PERSONNEL COMPENSATION,"","LIZARRAGA, JAIME E",01/01/16,01/02/16,SR ADV & DIR OF MEMBER SVC,886.79,2015,"","","","LIZARRAGA, JAIME E"
,OFFICE OF THE MINORITY LEADER,2016Q1,PERSONNEL COMPENSATION,"","LONG,MICHAEL G",11/01/15,01/02/16,SENIOR ADVISOR,"4,111.10",2015,"","","","LONG,MICHAEL G"
,OFFICE OF THE MINORITY LEADER,2016Q1,PERSONNEL COMPENSATION,"","MANGRUM, PEARL J",11/01/15,11/01/15,FINANCIAL ADMINISTRATOR,"10,125.00",2015,"","","","MANGRUM, PEARL J"
,OFFICE OF THE MINORITY LEADER,2016Q1,PERSONNEL COMPENSATION,"","MCCLELLAND,ETHAN L",10/01/15,01/02/16,DEP DIR OF MEMBER SERVICES,"4,277.77",2015,"","","","MCCLELLAND,ETHAN L"
,OFFICE OF THE MINORITY LEADER,2016Q1,PERSONNEL COMPENSATION,"","MELTZER,RICHARD",01/01/16,01/02/16,POLICY DIRECTOR,958.33,2015,"","","","MELTZER,RICHARD"
,OFFICE OF THE MINORITY LEADER,2016Q1,PERSONNEL COMPENSATION,"","MONGE,KATHERINE S",01/01/16,01/02/16,TAX POLICY ADVISOR,788.89,2015,"","","","MONGE,KATHERINE S"
,OFFICE OF THE MINORITY LEADER,2016Q1,PERSONNEL COMPENSATION,"","PALMER,ASHLI S",01/01/16,01/02/16,POLICY DIRECTOR,722.22,2015,"","","","PALMER,ASHLI S"
,OFFICE OF THE MINORITY LEADER,2016Q1,PERSONNEL COMPENSATION,"","PARKER, WYNDEE R",01/01/16,01/02/16,SENIOR POLICY ADVISOR,958.33,2015,"","","","PARKER, WYNDEE R"
,OFFICE OF THE MINORITY LEADER,2016Q1,PERSONNEL COMPENSATION,"","PFEIFFER,AMY M",01/01/16,01/02/16,SENIOR ADVISOR,555.56,2015,"","","","PFEIFFER,AMY M"
,OFFICE OF THE MINORITY LEADER,2016Q1,PERSONNEL COMPENSATION,"","POWELL,LATRICE S",01/01/16,01/02/16,ASSISTANT CLOAKROOM MANAGER,611.11,2015,"","","","POWELL,LATRICE S"
,OFFICE OF THE MINORITY LEADER,2016Q1,PERSONNEL COMPENSATION,"","PRICE, REVA B",01/01/16,01/02/16,OUTREACH DIRECTOR & ADVISOR,709.43,2015,"","","","PRICE, REVA B"
,OFFICE OF THE MINORITY LEADER,2016Q1,PERSONNEL COMPENSATION,"","PRIMUS, WENDELL E",01/01/16,01/02/16,SENIOR POLICY ADVISOR,958.33,2015,"","","","PRIMUS, WENDELL E"
,OFFICE OF THE MINORITY LEADER,2016Q1,PERSONNEL COMPENSATION,"","RICCIO,ANDREA M",01/01/16,01/02/16,DEP DIR DEM POL & COMM CMTE,527.78,2015,"","","","RICCIO,ANDREA M"
,OFFICE OF THE MINORITY LEADER,2016Q1,PERSONNEL COMPENSATION,"","ROBINSON,MALAIKA",11/01/15,01/02/16,DEP DIR OF SPEECHWRITING,"3,861.10",2015,"","","","ROBINSON,MALAIKA"
,OFFICE OF THE MINORITY LEADER,2016Q1,PERSONNEL COMPENSATION,"","ROCHELLE,COURTNEY E",01/01/16,01/02/16,DISTRICT SCHEDULER/EXEC ASSIST,111.11,2015,"","","","ROCHELLE,COURTNEY E"
,OFFICE OF THE MINORITY LEADER,2016Q1,PERSONNEL COMPENSATION,"","SKILES,KATHLEEN J",11/01/15,01/02/16,DIGITAL DIR.& SENIOR ADVISOR,"4,138.88",2015,"","","","SKILES,KATHLEEN J"
,OFFICE OF THE MINORITY LEADER,2016Q1,PERSONNEL COMPENSATION,"","SLATER,SAMANTHA A",01/01/16,01/02/16,EXEC DIR DEM POLICY COMM CMTE,638.89,2015,"","","","SLATER,SAMANTHA A"
,OFFICE OF THE MINORITY LEADER,2016Q1,PERSONNEL COMPENSATION,"","SMITH,KELSEY L",11/01/15,01/02/16,DIR. OF SCHEDULING & ADVANCE,"3,999.99",2015,"","","","SMITH,KELSEY L"
,OFFICE OF THE MINORITY LEADER,2016Q1,PERSONNEL COMPENSATION,"","STERN, KEITH L",01/01/16,01/02/16,DIRECTOR OF FLOOR OPERATIONS,888.89,2015,"","","","STERN, KEITH L"
,OFFICE OF THE MINORITY LEADER,2016Q1,PERSONNEL COMPENSATION,"","SURGEON,BINA G",11/01/15,01/02/16,SPECIAL ASST TO THE LEADER,"4,066.66",2015,"","","","SURGEON,BINA G"
,OFFICE OF THE MINORITY LEADER,2016Q1,PERSONNEL COMPENSATION,"","TECKLENBURG, MICHAEL H",01/01/16,01/02/16,COUNSEL,722.22,2015,"","","","TECKLENBURG, MICHAEL H"
,OFFICE OF THE MINORITY LEADER,2016Q1,PERSONNEL COMPENSATION,"","WATKINS, YELBERTON R",01/01/16,01/02/16,CHIEF OF STAFF,916.67,2015,"","","","WATKINS, YELBERTON R"
,OFFICE OF THE MINORITY LEADER,2016Q1,PERSONNEL COMPENSATION,"","WEST,JULIUS L",11/01/15,01/02/16,"ADVISER,MEMBER SERVICES","3,899.99",2015,"","","","WEST,JULIUS L"
,OFFICE OF THE MINORITY LEADER,2016Q1,PERSONNEL COMPENSATION,"","WILLIAMS NAVARRO, AMY K",11/01/15,01/02/16,ASST TO THE EXECUTIVE OFFICE,"3,683.33",2015,"","","","WILLIAMS NAVARRO, AMY K"
,OFFICE OF THE MINORITY LEADER,2016Q1,PERSONNEL COMPENSATION,"","WILLIAMS NAVARRO, AMY K",12/01/15,12/30/15,ASST TO THE EXECUTIVE OFFICE (OVERTIME),"3,569.67",2015,"","","","WILLIAMS NAVARRO, AMY K"
,OFFICE OF THE MINORITY LEADER,2016Q1,PERSONNEL COMPENSATION,"","WOLTERS, KATE",01/01/16,01/02/16,DIRECTOR OF PROTOCOL,797.70,2015,"","","","WOLTERS, KATE"
,OFFICE OF THE MINORITY LEADER,2016Q1,TRAVEL,01-05,"DOHERTY, SINEAD G",10/01/15,12/09/15,TAXI/PARKING/TOLLS,130.85,2015,AP,Accounts payable,E0357973,"DOHERTY, SINEAD G"
,OFFICE OF THE MINORITY LEADER,2016Q1,TRAVEL,01-05,"DOHERTY, SINEAD G",10/16/15,11/16/15,TRAVEL SUBSISTENCE,204.82,2015,AP,Accounts payable,E0357973,"DOHERTY, SINEAD G"
,OFFICE OF THE MINORITY LEADER,2016Q1,TRAVEL,01-21,CITIBANK GOV CARD SERVICE,11/30/15,12/01/15,TRAVEL SUBSISTENCE,515.40,2015,AP,Accounts payable,E0363669,CITIBANK GOV CARD SERVICE
,OFFICE OF THE MINORITY LEADER,2016Q1,TRAVEL,01-21,"MONGE, KATHERINE S",11/22/15,12/16/15,TAXI/PARKING/TOLLS,67.94,2015,AP,Accounts payable,E0363682,"MONGE, KATHERINE S"
,OFFICE OF THE MINORITY LEADER,2016Q1,TRAVEL,01-21,CITIBANK GOV CARD SERVICE,01/02/16,01/02/16,COMMERCIAL TRANSPORTATION,"1,244.40",2015,AP,Accounts payable,E0363684,CITIBANK GOV CARD SERVICE
,OFFICE OF THE MINORITY LEADER,2016Q1,TRAVEL,01-21,"MCCLELLAND, ETHAN L",12/08/15,12/08/15,TAXI/PARKING/TOLLS,14.50,2015,AP,Accounts payable,E0363696,"MCCLELLAND, ETHAN L"
,OFFICE OF THE MINORITY LEADER,2016Q1,TRAVEL,02-08,CITIBANK GOV CARD SERVICE,01/01/16,01/01/16,MEALS,15.22,2015,AP,Accounts payable,E0369417,CITIBANK GOV CARD SERVICE
,OFFICE OF THE MINORITY LEADER,2016Q1,TRAVEL,02-08,CITIBANK GOV CARD SERVICE,01/02/16,01/04/16,MEALS,14.00,2015,AP,Accounts payable,E0369417,CITIBANK GOV CARD SERVICE
,OFFICE OF THE MINORITY LEADER,2016Q1,TRAVEL,02-08,CITIBANK GOV CARD SERVICE,01/02/16,01/04/16,CAR RENTAL,86.45,2015,AP,Accounts payable,E0369417,CITIBANK GOV CARD SERVICE
,OFFICE OF THE MINORITY LEADER,2016Q1,TRAVEL,02-09,CITIBANK GOV CARD SERVICE,01/02/16,01/02/16,COMMERCIAL TRANSPORTATION,-17.00,2015,AP,Accounts payable,00839318,CITIBANK GOV CARD SERVICE
,OFFICE OF THE MINORITY LEADER,2016Q1,TRAVEL,02-09,CITIBANK GOV CARD SERVICE,01/02/16,01/04/16,LODGING,737.92,2015,AP,Accounts payable,00839318,CITIBANK GOV CARD SERVICE
,OFFICE OF THE MINORITY LEADER,2016Q1,TRAVEL,02-09,CITIBANK GOV CARD SERVICE,01/02/16,01/02/16,MEALS,19.71,2015,AP,Accounts payable,00839318,CITIBANK GOV CARD SERVICE
,OFFICE OF THE MINORITY LEADER,2016Q1,TRAVEL,02-09,CITIBANK GOV CARD SERVICE,01/02/16,01/02/16,TAXI/PARKING/TOLLS,9.66,2015,AP,Accounts payable,00839318,CITIBANK GOV CARD SERVICE
,OFFICE OF THE MINORITY LEADER,2016Q1,TRAVEL,03-02,CITIBANK GOV CARD SERVICE,01/01/16,01/01/16,MEALS,-15.22,2015,AP,Accounts payable,00844355,CITIBANK GOV CARD SERVICE
,OFFICE OF THE MINORITY LEADER,2016Q1,TRAVEL,03-15,"DEGRAFF, KENNETH B",01/02/16,01/02/16,MEALS,10.00,2015,AP,Accounts payable,E0381596,"DEGRAFF, KENNETH B"
,OFFICE OF THE MINORITY LEADER,2016Q1,TRAVEL,03-15,"DEGRAFF, KENNETH B",01/02/16,01/02/16,TAXI/PARKING/TOLLS,23.73,2015,AP,Accounts payable,E0381596,"DEGRAFF, KENNETH B"
,OFFICE OF THE MINORITY LEADER,2016Q1,"RENT, COMMUNICATION, UTILITIES",01-21,CITI PCARD-TIV TIVO SERVICE,11/29/15,12/28/15,RECORDING (OUTSIDE),48.42,2015,AP,Accounts payable,00838422,CITI PCARD-TIV TIVO SERVICE
,OFFICE OF THE MINORITY LEADER,2016Q1,"RENT, COMMUNICATION, UTILITIES",01-21,FEDEX,12/16/15,12/16/15,POSTAGE / COURIER / BOX RENTAL,4.39,2015,AP,Accounts payable,E0363685,FEDEX
,OFFICE OF THE MINORITY LEADER,2016Q1,"RENT, COMMUNICATION, UTILITIES",01-21,CAPITOL HOST,02/26/15,02/26/15,EQUIP RENTAL (EFF 1/3/03),30.00,2015,AP,Accounts payable,E0363689,CAPITOL HOST
,OFFICE OF THE MINORITY LEADER,2016Q1,"RENT, COMMUNICATION, UTILITIES",01-21,FEDEX,12/09/15,12/09/15,POSTAGE / COURIER / BOX RENTAL,4.39,2015,AP,Accounts payable,E0363690,FEDEX
,OFFICE OF THE MINORITY LEADER,2016Q1,"RENT, COMMUNICATION, UTILITIES",01-21,CAPITOL HOST,02/25/15,02/25/15,EQUIP RENTAL (EFF 1/3/03),30.00,2015,AP,Accounts payable,E0363692,CAPITOL HOST
,OFFICE OF THE MINORITY LEADER,2016Q1,"RENT, COMMUNICATION, UTILITIES",01-21,CAPITOL HOST,12/02/15,12/02/15,EQUIP RENTAL (EFF 1/3/03),135.00,2015,AP,Accounts payable,E0363730,CAPITOL HOST
,OFFICE OF THE MINORITY LEADER,2016Q1,"RENT, COMMUNICATION, UTILITIES",02-17,FEDEX,12/23/15,12/23/15,POSTAGE / COURIER / BOX RENTAL,3.99,2015,AP,Accounts payable,E0372703,FEDEX
,OFFICE OF THE MINORITY LEADER,2016Q1,"RENT, COMMUNICATION, UTILITIES",02-17,FEDEX,12/23/15,12/23/15,POSTAGE / COURIER / BOX RENTAL,11.82,2015,AP,Accounts payable,E0372704,FEDEX
,OFFICE OF THE MINORITY LEADER,2016Q1,OTHER SERVICES,03-01,NEAL R GROSS & COMPANY INC,12/08/15,12/08/15,STENOGRAPHIC REPORTING,"1,500.00",2015,AP,Accounts payable,E0376596,NEAL R GROSS & COMPANY INC
,OFFICE OF THE MINORITY LEADER,2016Q1,SUPPLIES AND MATERIALS,01-05,HAGUE QUALITY WATER OF MD INC,01/01/16,12/31/16,WATER,"4,536.00",2015,AP,Accounts payable,E0357857,HAGUE QUALITY WATER OF MD INC
,OFFICE OF THE MINORITY LEADER,2016Q1,SUPPLIES AND MATERIALS,01-21,CITI PCARD-CAP MARKET CAF,11/29/15,12/28/15,FOOD & BEVERAGE,13.20,2015,AP,Accounts payable,00838422,CITI PCARD-CAP MARKET CAF
,OFFICE OF THE MINORITY LEADER,2016Q1,SUPPLIES AND MATERIALS,01-21,CITI PCARD-CVS/PHARMACY,11/29/15,12/28/15,FOOD & BEVERAGE,47.50,2015,AP,Accounts payable,00838422,CITI PCARD-CVS/PHARMACY
,OFFICE OF THE MINORITY LEADER,2016Q1,SUPPLIES AND MATERIALS,01-21,CITI PCARD-DUNKIN,11/29/15,12/28/15,FOOD & BEVERAGE,56.64,2015,AP,Accounts payable,00838422,CITI PCARD-DUNKIN
,OFFICE OF THE MINORITY LEADER,2016Q1,SUPPLIES AND MATERIALS,01-21,CITI PCARD-FIREHOOK,11/29/15,12/28/15,FOOD & BEVERAGE,18.69,2015,AP,Accounts payable,00838422,CITI PCARD-FIREHOOK
,OFFICE OF THE MINORITY LEADER,2016Q1,SUPPLIES AND MATERIALS,01-21,CITI PCARD-HARRIS TEETER,11/29/15,12/28/15,FOOD & BEVERAGE,295.10,2015,AP,Accounts payable,00838422,CITI PCARD-HARRIS TEETER
,OFFICE OF THE MINORITY LEADER,2016Q1,SUPPLIES AND MATERIALS,01-21,CITI PCARD-TARGET,11/29/15,12/28/15,FOOD & BEVERAGE,179.15,2015,AP,Accounts payable,00838422,CITI PCARD-TARGET
,OFFICE OF THE MINORITY LEADER,2016Q1,SUPPLIES AND MATERIALS,01-21,"CITI PCARD-WE, THE PIZZA",11/29/15,12/28/15,FOOD & BEVERAGE,307.11,2015,AP,Accounts payable,00838422,"CITI PCARD-WE, THE PIZZA"
,OFFICE OF THE MINORITY LEADER,2016Q1,SUPPLIES AND MATERIALS,01-21,CITI PCARD-WHOLEFDS GWU,11/29/15,12/28/15,FOOD & BEVERAGE,128.05,2015,AP,Accounts payable,00838422,CITI PCARD-WHOLEFDS GWU
,OFFICE OF THE MINORITY LEADER,2016Q1,SUPPLIES AND MATERIALS,01-21,MENUS CATERING,11/18/15,11/18/15,FOOD & BEVERAGE,722.15,2015,AP,Accounts payable,E0363660,MENUS CATERING
,OFFICE OF THE MINORITY LEADER,2016Q1,SUPPLIES AND MATERIALS,01-21,MENUS CATERING,12/02/15,12/02/15,FOOD & BEVERAGE,738.40,2015,AP,Accounts payable,E0363661,MENUS CATERING
,OFFICE OF THE MINORITY LEADER,2016Q1,SUPPLIES AND MATERIALS,01-21,CAPITOL HOST,02/24/15,02/24/15,FOOD & BEVERAGE,33.00,2015,AP,Accounts payable,E0363688,CAPITOL HOST
,OFFICE OF THE MINORITY LEADER,2016Q1,SUPPLIES AND MATERIALS,01-21,MENUS CATERING,12/08/15,12/08/15,FOOD & BEVERAGE,150.50,2015,AP,Accounts payable,E0363721,MENUS CATERING
,OFFICE OF THE MINORITY LEADER,2016Q1,SUPPLIES AND MATERIALS,01-21,CAPITOL HOST,12/18/15,12/18/15,FOOD & BEVERAGE,36.63,2015,AP,Accounts payable,E0363722,CAPITOL HOST
,OFFICE OF THE MINORITY LEADER,2016Q1,SUPPLIES AND MATERIALS,01-21,CAPITOL HOST,12/16/15,12/16/15,FOOD & BEVERAGE,169.88,2015,AP,Accounts payable,E0363724,CAPITOL HOST
,OFFICE OF THE MINORITY LEADER,2016Q1,SUPPLIES AND MATERIALS,01-21,CAPITOL HOST,12/16/15,12/16/15,FOOD & BEVERAGE,36.63,2015,AP,Accounts payable,E0363727,CAPITOL HOST
,OFFICE OF THE MINORITY LEADER,2016Q1,SUPPLIES AND MATERIALS,01-21,CAPITOL HOST,12/09/15,12/09/15,FOOD & BEVERAGE,36.63,2015,AP,Accounts payable,E0363728,CAPITOL HOST
,OFFICE OF THE MINORITY LEADER,2016Q1,SUPPLIES AND MATERIALS,01-21,CAPITOL HOST,12/02/15,12/02/15,FOOD & BEVERAGE,209.52,2015,AP,Accounts payable,E0363729,CAPITOL HOST
,OFFICE OF THE MINORITY LEADER,2016Q1,SUPPLIES AND MATERIALS,01-21,CAPITOL HOST,11/18/15,11/18/15,FOOD & BEVERAGE,109.88,2015,AP,Accounts payable,E0363731,CAPITOL HOST
,OFFICE OF THE MINORITY LEADER,2016Q1,SUPPLIES AND MATERIALS,01-21,CAPITOL HOST,11/04/15,11/04/15,FOOD & BEVERAGE,36.63,2015,AP,Accounts payable,E0363732,CAPITOL HOST
,OFFICE OF THE MINORITY LEADER,2016Q1,SUPPLIES AND MATERIALS,01-21,CAPITOL HOST,11/04/15,11/04/15,FOOD & BEVERAGE,36.63,2015,AP,Accounts payable,E0363733,CAPITOL HOST
,OFFICE OF THE MINORITY LEADER,2016Q1,SUPPLIES AND MATERIALS,01-21,CAPITOL HOST,09/24/15,09/24/15,FOOD & BEVERAGE,146.50,2015,AP,Accounts payable,E0363734,CAPITOL HOST
,OFFICE OF THE MINORITY LEADER,2016Q1,SUPPLIES AND MATERIALS,01-21,CAPITOL HOST,09/09/15,09/09/15,FOOD & BEVERAGE,36.63,2015,AP,Accounts payable,E0363735,CAPITOL HOST
,OFFICE OF THE MINORITY LEADER,2016Q1,SUPPLIES AND MATERIALS,01-21,CAPITOL HOST,09/09/15,09/09/15,FOOD & BEVERAGE,109.88,2015,AP,Accounts payable,E0363747,CAPITOL HOST
,OFFICE OF THE MINORITY LEADER,2016Q1,SUPPLIES AND MATERIALS,01-21,CAPITOL HOST,02/26/15,02/26/15,FOOD & BEVERAGE,49.50,2015,AP,Accounts payable,E0363749,CAPITOL HOST
,OFFICE OF THE MINORITY LEADER,2016Q1,SUPPLIES AND MATERIALS,01-28,MENUS CATERING,12/08/15,12/08/15,FOOD & BEVERAGE,"6,750.00",2015,AP,Accounts payable,E0363663,MENUS CATERING
,OFFICE OF THE MINORITY LEADER,2016Q1,SUPPLIES AND MATERIALS,01-28,OCCASIONS CATERERS,12/08/15,12/08/15,FOOD & BEVERAGE,"8,410.00",2015,AP,Accounts payable,E0363664,OCCASIONS CATERERS
,OFFICE OF THE MAJORITY WHIP,2016Q1,PERSONNEL COMPENSATION,"","ACORNLEY, MARK A",01/03/16,03/31/16,FINANCIAL ADMINISTRATOR,"3,666.67",2016,"","","","ACORNLEY, MARK A"
,OFFICE OF THE MAJORITY WHIP,2016Q1,PERSONNEL COMPENSATION,"","BECKER,MEGAN E",01/03/16,03/31/16,SCHEDULE COORDINATOR,"11,000.00",2016,"","","","BECKER,MEGAN E"
,OFFICE OF THE MAJORITY WHIP,2016Q1,PERSONNEL COMPENSATION,"","BOND,CHRISTOPHER J",01/03/16,03/31/16,COMMUNICATIONS DIRECTOR,"27,622.23",2016,"","","","BOND,CHRISTOPHER J"
,OFFICE OF THE MAJORITY WHIP,2016Q1,PERSONNEL COMPENSATION,"","BRACE,CONNER W",01/03/16,03/31/16,STAFF ASSISTANT,"7,333.33",2016,"","","","BRACE,CONNER W"
,OFFICE OF THE MAJORITY WHIP,2016Q1,PERSONNEL COMPENSATION,"","BRAVO, MATTHEW",01/03/16,03/31/16,DEPUTY DIRECTOR OF FLOOR OPERA,"27,388.89",2016,"","","","BRAVO, MATTHEW"
,OFFICE OF THE MAJORITY WHIP,2016Q1,PERSONNEL COMPENSATION,"","CAVAZOS,ANDREW J",01/03/16,03/31/16,ASST TO THE CHIEF OF STAFF,"11,333.34",2016,"","","","CAVAZOS,ANDREW J"
,OFFICE OF THE MAJORITY WHIP,2016Q1,PERSONNEL COMPENSATION,"","HAMILTON,PARKER",01/03/16,03/31/16,COS TO THE CHIEF DEP WHIP,"29,333.33",2016,"","","","HAMILTON,PARKER"
,OFFICE OF THE MAJORITY WHIP,2016Q1,PERSONNEL COMPENSATION,"","HODGSON,CHRISTOPHER M",01/03/16,03/31/16,FLOOR DIRECTOR,"15,888.90",2016,"","","","HODGSON,CHRISTOPHER M"
,OFFICE OF THE MAJORITY WHIP,2016Q1,PERSONNEL COMPENSATION,"","HORTON, BRETT H",01/03/16,02/29/16,DIR OF FL OPERATIONS & COUNSEL,"25,441.18",2016,"","","","HORTON, BRETT H"
,OFFICE OF THE MAJORITY WHIP,2016Q1,PERSONNEL COMPENSATION,"","HORTON, BRETT H",03/01/16,03/31/16,CHIEF OF STAFF,"14,275.00",2016,"","","","HORTON, BRETT H"
,OFFICE OF THE MAJORITY WHIP,2016Q1,PERSONNEL COMPENSATION,"","HUDAK,KELLEY K",01/03/16,03/31/16,BUSINESS COALITIONS COORD,"17,111.10",2016,"","","","HUDAK,KELLEY K"
,OFFICE OF THE MAJORITY WHIP,2016Q1,PERSONNEL COMPENSATION,"","HUGHES,WILLIAM J",01/03/16,03/31/16,POLICY DIRECTOR,"41,725.70",2016,"","","","HUGHES,WILLIAM J"
,OFFICE OF THE MAJORITY WHIP,2016Q1,PERSONNEL COMPENSATION,"","JEWELL,MATTHEW L",01/03/16,03/31/16,STAFF ASSISTANT,"9,777.77",2016,"","","","JEWELL,MATTHEW L"
,OFFICE OF THE MAJORITY WHIP,2016Q1,PERSONNEL COMPENSATION,"","KARVELAS,REBECCA L",01/03/16,01/30/16,INTERN,"1,400.00",2016,"","","","KARVELAS,REBECCA L"
,OFFICE OF THE MAJORITY WHIP,2016Q1,PERSONNEL COMPENSATION,"","NAPIER,BENJAMIN W",02/01/16,03/31/16,FLOOR ASSISTANT,"10,000.00",2016,"","","","NAPIER,BENJAMIN W"
,OFFICE OF THE MAJORITY WHIP,2016Q1,PERSONNEL COMPENSATION,"","PLANNING,DAVID M",01/05/16,03/31/16,SPECIAL ASST TO CHIEF DEP WHIP,"7,166.67",2016,"","","","PLANNING,DAVID M"
,OFFICE OF THE MAJORITY WHIP,2016Q1,PERSONNEL COMPENSATION,"","REISER,MARTIN G",01/03/16,03/31/16,LEGISLATIVE COUNSEL,"32,222.23",2016,"","","","REISER,MARTIN G"
,OFFICE OF THE MAJORITY WHIP,2016Q1,PERSONNEL COMPENSATION,"","REISING,JOHN B",01/03/16,03/31/16,DIRECTOR OF OPERATIONS,"21,294.43",2016,"","","","REISING,JOHN B"
,OFFICE OF THE MAJORITY WHIP,2016Q1,PERSONNEL COMPENSATION,"","RUCKERT,LYNNEL B",01/03/16,03/31/16,CHIEF OF STAFF,"34,156.66",2016,"","","","RUCKERT,LYNNEL B"
,OFFICE OF THE MAJORITY WHIP,2016Q1,PERSONNEL COMPENSATION,"","SADLOSKY,DANIEL J",01/03/16,03/31/16,POLICY ASSISTANT,"14,666.67",2016,"","","","SADLOSKY,DANIEL J"
,OFFICE OF THE MAJORITY WHIP,2016Q1,PERSONNEL COMPENSATION,"","TATUM,THOMAS J",01/03/16,03/31/16,DEPUTY COMMUNICATIONS DIRECTOR,"21,711.10",2016,"","","","TATUM,THOMAS J"
,OFFICE OF THE MAJORITY WHIP,2016Q1,PERSONNEL COMPENSATION,"","TRUEMAN,LAURA",01/03/16,03/31/16,SR. POL ADV & CONSER COAL CORD,"29,333.33",2016,"","","","TRUEMAN,LAURA"
,OFFICE OF THE MAJORITY WHIP,2016Q1,PERSONNEL COMPENSATION,"","WOODARD,JOHN S",01/03/16,03/31/16,STAFF ASSISTANT,"7,333.33",2016,"","","","WOODARD,JOHN S"
,OFFICE OF THE MAJORITY WHIP,2016Q1,PERSONNEL COMPENSATION,"","ZULKOSKY,ERIC T",01/03/16,03/31/16,DIR OF MEMBER SVS & POLICY ADV,"8,562.76",2016,"","","","ZULKOSKY,ERIC T"
,OFFICE OF THE MAJORITY WHIP,2016Q1,TRAVEL,02-05,CITIBANK GOV CARD SERVICE,01/10/16,01/14/16,COMMERCIAL TRANSPORTATION,602.20,2016,AP,Accounts payable,E0368512,CITIBANK GOV CARD SERVICE
,OFFICE OF THE MAJORITY WHIP,2016Q1,TRAVEL,03-21,"REISING, JOHN BART",02/29/16,02/29/16,PRIVATE AUTO MILEAGE,31.86,2016,AP,Accounts payable,E0383863,"REISING, JOHN BART"
,OFFICE OF THE MAJORITY WHIP,2016Q1,SUPPLIES AND MATERIALS,01-27,BLOOMBERG FINANCE LP,01/01/16,12/31/16,PUBLICATIONS/REFERENCE MAT'L,"5,940.00",2016,AP,Accounts payable,E0362364,BLOOMBERG FINANCE LP
,OFFICE OF THE MAJORITY WHIP,2016Q1,SUPPLIES AND MATERIALS,02-01,COMMUNITY COFFEE COMPANY LLC,01/05/16,01/05/16,FOOD & BEVERAGE,94.00,2016,AP,Accounts payable,E0365797,COMMUNITY COFFEE COMPANY LLC
,OFFICE OF THE MAJORITY WHIP,2016Q1,SUPPLIES AND MATERIALS,02-01,NEW ORLEANS ROAST LLC,01/05/16,01/05/16,FOOD & BEVERAGE,64.00,2016,AP,Accounts payable,E0365798,NEW ORLEANS ROAST LLC
,OFFICE OF THE MAJORITY WHIP,2016Q1,SUPPLIES AND MATERIALS,02-01,FIRST CHOICE COFFEE SERVICES,01/07/16,01/07/16,FOOD & BEVERAGE,461.97,2016,AP,Accounts payable,E0365813,FIRST CHOICE COFFEE SERVICES
,OFFICE OF THE MAJORITY WHIP,2016Q1,SUPPLIES AND MATERIALS,02-08,FIRST CHOICE COFFEE SERVICES,01/11/16,01/11/16,FOOD & BEVERAGE,667.15,2016,AP,Accounts payable,E0368521,FIRST CHOICE COFFEE SERVICES
,OFFICE OF THE MAJORITY WHIP,2016Q1,SUPPLIES AND MATERIALS,02-17,FIRST CHOICE COFFEE SERVICES,02/03/16,02/03/16,FOOD & BEVERAGE,652.70,2016,AP,Accounts payable,E0372605,FIRST CHOICE COFFEE SERVICES
,OFFICE OF THE MAJORITY WHIP,2016Q1,SUPPLIES AND MATERIALS,02-18,CITI PCARD-AMAZON MKTPLACE PMTS,01/03/16,01/28/16,FOOD & BEVERAGE,21.96,2016,AP,Accounts payable,00843664,CITI PCARD-AMAZON MKTPLACE PMTS
,OFFICE OF THE MAJORITY WHIP,2016Q1,SUPPLIES AND MATERIALS,02-24,POLITICO LLC,02/11/16,12/30/16,PUBLICATIONS/REFERENCE MAT'L,"2,135.00",2016,AP,Accounts payable,E0374744,POLITICO LLC
,OFFICE OF THE MAJORITY WHIP,2016Q1,SUPPLIES AND MATERIALS,02-24,NEW ORLEANS ROAST LLC,02/04/16,02/04/16,FOOD & BEVERAGE,280.00,2016,AP,Accounts payable,E0374768,NEW ORLEANS ROAST LLC
,OFFICE OF THE MAJORITY WHIP,2016Q1,PERSONNEL COMPENSATION,"","ACORNLEY, MARK A",01/01/16,01/02/16,FINANCIAL ADMINISTRATOR,83.33,2015,"","","","ACORNLEY, MARK A"
,OFFICE OF THE MAJORITY WHIP,2016Q1,PERSONNEL COMPENSATION,"","BECKER,MEGAN E",01/01/16,01/02/16,SCHEDULE COORDINATOR,250.00,2015,"","","","BECKER,MEGAN E"
,OFFICE OF THE MAJORITY WHIP,2016Q1,PERSONNEL COMPENSATION,"","BLACK,WAELSTON T",01/01/16,01/02/16,SPECIAL ASSISTANT,166.67,2015,"","","","BLACK,WAELSTON T"
,OFFICE OF THE MAJORITY WHIP,2016Q1,PERSONNEL COMPENSATION,"","BOND,CHRISTOPHER J",01/01/16,01/02/16,COMMUNICATIONS DIRECTOR,627.78,2015,"","","","BOND,CHRISTOPHER J"
,OFFICE OF THE MAJORITY WHIP,2016Q1,PERSONNEL COMPENSATION,"","BRACE,CONNER W",01/01/16,01/02/16,STAFF ASSISTANT,166.67,2015,"","","","BRACE,CONNER W"
,OFFICE OF THE MAJORITY WHIP,2016Q1,PERSONNEL COMPENSATION,"","BRAVO, MATTHEW",01/01/16,01/02/16,DEPUTY DIRECTOR OF FLOOR OPERA,527.78,2015,"","","","BRAVO, MATTHEW"
,OFFICE OF THE MAJORITY WHIP,2016Q1,PERSONNEL COMPENSATION,"","CAVAZOS,ANDREW J",01/01/16,01/02/16,ASST TO THE CHIEF OF STAFF,250.00,2015,"","","","CAVAZOS,ANDREW J"
,OFFICE OF THE MAJORITY WHIP,2016Q1,PERSONNEL COMPENSATION,"","DWYER, STEPHEN",12/01/15,12/01/15,SENIOR NETWORK TECHNICIAN(A) (OTHER COMPENSATION),"-2,784.25",2015,"","","","DWYER, STEPHEN"
,OFFICE OF THE MAJORITY WHIP,2016Q1,PERSONNEL COMPENSATION,"","DWYER, STEPHEN",12/01/15,12/01/15,SENIOR NETWORK TECHNICIAN (A) (OTHER COMPENSATION),"2,784.25",2015,"","","","DWYER, STEPHEN"
,OFFICE OF THE MAJORITY WHIP,2016Q1,PERSONNEL COMPENSATION,"","HAMILTON,PARKER",01/01/16,01/02/16,COS TO THE CHIEF DEP WHIP,666.67,2015,"","","","HAMILTON,PARKER"
,OFFICE OF THE MAJORITY WHIP,2016Q1,PERSONNEL COMPENSATION,"","HODGSON,CHRISTOPHER M",01/01/16,01/02/16,FLOOR DIRECTOR,361.11,2015,"","","","HODGSON,CHRISTOPHER M"
,OFFICE OF THE MAJORITY WHIP,2016Q1,PERSONNEL COMPENSATION,"","HORTON, BRETT H",01/01/16,01/02/16,DIR OF FL OPERATIONS & COUNSEL,867.82,2015,"","","","HORTON, BRETT H"
,OFFICE OF THE MAJORITY WHIP,2016Q1,PERSONNEL COMPENSATION,"","HUDAK,KELLEY K",01/01/16,01/02/16,BUSINESS COALITIONS COORD,388.89,2015,"","","","HUDAK,KELLEY K"
,OFFICE OF THE MAJORITY WHIP,2016Q1,PERSONNEL COMPENSATION,"","HUGHES,WILLIAM J",01/01/16,01/02/16,POLICY DIRECTOR,948.31,2015,"","","","HUGHES,WILLIAM J"
,OFFICE OF THE MAJORITY WHIP,2016Q1,PERSONNEL COMPENSATION,"","JEWELL,MATTHEW L",01/01/16,01/02/16,STAFF ASSISTANT,222.22,2015,"","","","JEWELL,MATTHEW L"
,OFFICE OF THE MAJORITY WHIP,2016Q1,PERSONNEL COMPENSATION,"","KARVELAS,REBECCA L",01/01/16,01/02/16,INTERN,100.00,2015,"","","","KARVELAS,REBECCA L"
,OFFICE OF THE MAJORITY WHIP,2016Q1,PERSONNEL COMPENSATION,"","REISER,MARTIN G",01/01/16,01/02/16,LEGISLATIVE COUNSEL,694.44,2015,"","","","REISER,MARTIN G"
,OFFICE OF THE MAJORITY WHIP,2016Q1,PERSONNEL COMPENSATION,"","REISING,JOHN B",01/01/16,01/02/16,DIRECTOR OF OPERATIONS,455.56,2015,"","","","REISING,JOHN B"
,OFFICE OF THE MAJORITY WHIP,2016Q1,PERSONNEL COMPENSATION,"","RUCKERT,LYNNEL B",01/01/16,01/02/16,CHIEF OF STAFF,951.67,2015,"","","","RUCKERT,LYNNEL B"
,OFFICE OF THE MAJORITY WHIP,2016Q1,PERSONNEL COMPENSATION,"","SADLOSKY,DANIEL J",01/01/16,01/02/16,POLICY ASSISTANT,333.33,2015,"","","","SADLOSKY,DANIEL J"
,OFFICE OF THE MAJORITY WHIP,2016Q1,PERSONNEL COMPENSATION,"","TATUM,THOMAS J",01/01/16,01/02/16,DEPUTY COMMUNICATIONS DIRECTOR,488.89,2015,"","","","TATUM,THOMAS J"
,OFFICE OF THE MAJORITY WHIP,2016Q1,PERSONNEL COMPENSATION,"","TRUEMAN,LAURA",01/01/16,01/02/16,SR. POL ADV & CONSER COAL CORD,666.67,2015,"","","","TRUEMAN,LAURA"
,OFFICE OF THE MAJORITY WHIP,2016Q1,PERSONNEL COMPENSATION,"","WOODARD,JOHN S",01/01/16,01/02/16,STAFF ASSISTANT,166.67,2015,"","","","WOODARD,JOHN S"
,OFFICE OF THE MAJORITY WHIP,2016Q1,PERSONNEL COMPENSATION,"","ZULKOSKY,ERIC T",01/01/16,01/02/16,DIR OF MEMBER SVS & POLICY ADV,239.91,2015,"","","","ZULKOSKY,ERIC T"
,OFFICE OF THE MAJORITY WHIP,2016Q1,TRAVEL,01-08,CITIBANK GOV CARD SERVICE,11/29/15,11/29/15,COMMERCIAL TRANSPORTATION,324.10,2015,AP,Accounts payable,E0359713,CITIBANK GOV CARD SERVICE
,OFFICE OF THE MAJORITY WHIP,2016Q1,TRAVEL,01-15,"TRUEMAN, LAURA",12/09/15,12/09/15,TAXI/PARKING/TOLLS,23.36,2015,AP,Accounts payable,E0362365,"TRUEMAN, LAURA"
,OFFICE OF THE MAJORITY WHIP,2016Q1,"RENT, COMMUNICATION, UTILITIES",01-27,"",12/01/15,12/31/15,RECORDING - (TRANSFER),35.00,2015,GL,General ledger,HRS0055539,""
,OFFICE OF THE MAJORITY WHIP,2016Q1,SUPPLIES AND MATERIALS,01-19,NEW ORLEANS ROAST LLC,12/10/15,12/10/15,FOOD & BEVERAGE,32.00,2015,AP,Accounts payable,E0362366,NEW ORLEANS ROAST LLC
,OFFICE OF THE MAJORITY WHIP,2016Q1,SUPPLIES AND MATERIALS,01-19,FIRST CHOICE COFFEE SERVICES,10/27/15,10/27/15,FOOD & BEVERAGE,468.65,2015,AP,Accounts payable,E0362374,FIRST CHOICE COFFEE SERVICES
,OFFICE OF THE MAJORITY WHIP,2016Q1,SUPPLIES AND MATERIALS,01-19,FIRST CHOICE COFFEE SERVICES,11/05/15,11/05/15,FOOD & BEVERAGE,915.60,2015,AP,Accounts payable,E0362377,FIRST CHOICE COFFEE SERVICES
,OFFICE OF THE MINORITY WHIP,2016Q1,PERSONNEL COMPENSATION,"","ABOUCHAR, KEITH S",01/03/16,03/31/16,SENIOR POLICY ADVISOR,"34,222.23",2016,"","","","ABOUCHAR, KEITH S"
,OFFICE OF THE MINORITY WHIP,2016Q1,PERSONNEL COMPENSATION,"","AVILES,DANIELLE R",01/03/16,03/31/16,DEPUTY FLOOR DIRECTOR,"18,333.33",2016,"","","","AVILES,DANIELLE R"
,OFFICE OF THE MINORITY WHIP,2016Q1,PERSONNEL COMPENSATION,"","COLLINS, MICHAEL E",01/03/16,03/31/16,CHIEF DEPUTY WHIP,"10,388.90",2016,"","","","COLLINS, MICHAEL E"
,OFFICE OF THE MINORITY WHIP,2016Q1,PERSONNEL COMPENSATION,"","CORTINA,JOSEPH B",01/03/16,03/31/16,SPECIAL ASSISTANT,"7,088.90",2016,"","","","CORTINA,JOSEPH B"
,OFFICE OF THE MINORITY WHIP,2016Q1,PERSONNEL COMPENSATION,"","CORTINA,JOSEPH B",01/01/16,02/29/16,SPECIAL ASSISTANT (OVERTIME),920.18,2016,"","","","CORTINA,JOSEPH B"
,OFFICE OF THE MINORITY WHIP,2016Q1,PERSONNEL COMPENSATION,"","COVEY-BRANDT, ALEXIS",01/03/16,03/31/16,CHIEF OF STAFF,"42,166.67",2016,"","","","COVEY-BRANDT, ALEXIS"
,OFFICE OF THE MINORITY WHIP,2016Q1,PERSONNEL COMPENSATION,"","DAVIS,ANNALIESE",01/06/16,03/31/16,PRESS AND RESEARCH ASSISTANT,"11,909.44",2016,"","","","DAVIS,ANNALIESE"
,OFFICE OF THE MINORITY WHIP,2016Q1,PERSONNEL COMPENSATION,"","DWYER, STEPHEN",01/03/16,03/31/16,DIGITAL DIR & POLICY ADV,"16,866.67",2016,"","","","DWYER, STEPHEN"
,OFFICE OF THE MINORITY WHIP,2016Q1,PERSONNEL COMPENSATION,"","FRY,COURTNEY",01/03/16,03/31/16,DEP OUTREACH DIR & MEM SER ADV,"28,111.10",2016,"","","","FRY,COURTNEY"
,OFFICE OF THE MINORITY WHIP,2016Q1,PERSONNEL COMPENSATION,"","GOFF,SHUWANZA R",01/03/16,03/31/16,FLOOR DIRECTOR,"28,111.10",2016,"","","","GOFF,SHUWANZA R"
,OFFICE OF THE MINORITY WHIP,2016Q1,PERSONNEL COMPENSATION,"","GRANT,KATHRYN L",01/03/16,03/31/16,COMM DIR AND SR ADVISOR,"33,000.00",2016,"","","","GRANT,KATHRYN L"
,OFFICE OF THE MINORITY WHIP,2016Q1,PERSONNEL COMPENSATION,"","LEUSCHEN, JAMES P",01/03/16,03/31/16,SENIOR POLICY ADVISOR,"34,222.23",2016,"","","","LEUSCHEN, JAMES P"
,OFFICE OF THE MINORITY WHIP,2016Q1,PERSONNEL COMPENSATION,"","MACDONALD,CHARLENE",01/03/16,03/31/16,SENIOR POLICY ADVISOR,"29,333.33",2016,"","","","MACDONALD,CHARLENE"
,OFFICE OF THE MINORITY WHIP,2016Q1,PERSONNEL COMPENSATION,"","MAHR,THOMAS",01/03/16,03/31/16,POLICY DIRECTOR,"39,111.10",2016,"","","","MAHR,THOMAS"
,OFFICE OF THE MINORITY WHIP,2016Q1,PERSONNEL COMPENSATION,"","MITTLER,MICHELLE",01/03/16,03/31/16,DIR OF SCHEDLNG & SPEC EVENTS,"19,555.57",2016,"","","","MITTLER,MICHELLE"
,OFFICE OF THE MINORITY WHIP,2016Q1,PERSONNEL COMPENSATION,"","NELSON,CAITLIN M",01/03/16,03/31/16,STAFF ASSISTANT,"6,111.10",2016,"","","","NELSON,CAITLIN M"
,OFFICE OF THE MINORITY WHIP,2016Q1,PERSONNEL COMPENSATION,"","NELSON,CAITLIN M",01/01/16,02/29/16,STAFF ASSISTANT (OVERTIME),"1,424.27",2016,"","","","NELSON,CAITLIN M"
,OFFICE OF THE MINORITY WHIP,2016Q1,PERSONNEL COMPENSATION,"","OPARIL,MARIA A",01/03/16,03/31/16,STAFF ASSISTANT,"6,111.10",2016,"","","","OPARIL,MARIA A"
,OFFICE OF THE MINORITY WHIP,2016Q1,PERSONNEL COMPENSATION,"","OPARIL,MARIA A",01/01/16,02/29/16,STAFF ASSISTANT (OVERTIME),"1,316.10",2016,"","","","OPARIL,MARIA A"
,OFFICE OF THE MINORITY WHIP,2016Q1,PERSONNEL COMPENSATION,"","REPKO,MARY F",01/03/16,03/31/16,SENIOR POLICY ADVISOR,"34,222.23",2016,"","","","REPKO,MARY F"
,OFFICE OF THE MINORITY WHIP,2016Q1,PERSONNEL COMPENSATION,"","ROMICK, BRIAN",01/03/16,03/31/16,DEPUTY CHIEF OF STAFF,"41,555.57",2016,"","","","ROMICK, BRIAN"
,OFFICE OF THE MINORITY WHIP,2016Q1,PERSONNEL COMPENSATION,"","ROWE,DEBORAH M",01/03/16,03/31/16,EXECUTIVE ASSISTANT/OFC MGR,"12,329.77",2016,"","","","ROWE,DEBORAH M"
,OFFICE OF THE MINORITY WHIP,2016Q1,PERSONNEL COMPENSATION,"","SAEZ,MARIEL S",01/03/16,03/31/16,PRESS SECRETARY,"19,311.10",2016,"","","","SAEZ,MARIEL S"
,OFFICE OF THE MINORITY WHIP,2016Q1,PERSONNEL COMPENSATION,"","SALAZAR, RAYMOND J",01/03/16,03/31/16,FLOOR ASSISTANT,"13,444.43",2016,"","","","SALAZAR, RAYMOND J"
,OFFICE OF THE MINORITY WHIP,2016Q1,PERSONNEL COMPENSATION,"","SILVERBERG,DANIEL I",01/03/16,03/31/16,SENIOR POLICY ADVISOR,"17,355.57",2016,"","","","SILVERBERG,DANIEL I"
,OFFICE OF THE MINORITY WHIP,2016Q1,PERSONNEL COMPENSATION,"","URRABAZO,CLAUDIA",02/10/16,03/31/16,DEP. DIR OF MBR SER & OUTR ADV,"13,033.34",2016,"","","","URRABAZO,CLAUDIA"
,OFFICE OF THE MINORITY WHIP,2016Q1,PERSONNEL COMPENSATION,"","WEISSMANN, ADAM",01/03/16,03/31/16,SPEECHWRITER,"18,333.33",2016,"","","","WEISSMANN, ADAM"
,OFFICE OF THE MINORITY WHIP,2016Q1,TRAVEL,02-05,"AVILES,DANIELLE R",01/06/16,01/06/16,TAXI/PARKING/TOLLS,15.00,2016,AP,Accounts payable,E0368388,"AVILES,DANIELLE R"
,OFFICE OF THE MINORITY WHIP,2016Q1,TRAVEL,02-05,"MITTLER,MICHELLE",01/11/16,01/11/16,TAXI/PARKING/TOLLS,10.60,2016,AP,Accounts payable,E0368389,"MITTLER,MICHELLE"
,OFFICE OF THE MINORITY WHIP,2016Q1,TRAVEL,02-05,"OPARIL, MARIA A",01/05/16,01/05/16,TAXI/PARKING/TOLLS,12.16,2016,AP,Accounts payable,E0368390,"OPARIL, MARIA A"
,OFFICE OF THE MINORITY WHIP,2016Q1,TRAVEL,02-05,"NELSON, CAITLIN M",01/07/16,01/07/16,TAXI/PARKING/TOLLS,12.42,2016,AP,Accounts payable,E0368391,"NELSON, CAITLIN M"
,OFFICE OF THE MINORITY WHIP,2016Q1,TRAVEL,02-05,"ROWE, DEBORAH M",01/12/16,01/12/16,TAXI/PARKING/TOLLS,21.64,2016,AP,Accounts payable,E0368392,"ROWE, DEBORAH M"
,OFFICE OF THE MINORITY WHIP,2016Q1,TRAVEL,02-05,"FRY,COURTNEY",01/15/16,01/15/16,TAXI/PARKING/TOLLS,12.09,2016,AP,Accounts payable,E0368393,"FRY,COURTNEY"
,OFFICE OF THE MINORITY WHIP,2016Q1,TRAVEL,02-05,"MITTLER,MICHELLE",01/12/16,01/12/16,TAXI/PARKING/TOLLS,14.54,2016,AP,Accounts payable,E0368394,"MITTLER,MICHELLE"
,OFFICE OF THE MINORITY WHIP,2016Q1,TRAVEL,02-05,"NELSON, CAITLIN M",01/12/16,01/12/16,TAXI/PARKING/TOLLS,16.26,2016,AP,Accounts payable,E0368395,"NELSON, CAITLIN M"
,OFFICE OF THE MINORITY WHIP,2016Q1,TRAVEL,02-05,"NELSON, CAITLIN M",01/11/16,01/11/16,TAXI/PARKING/TOLLS,9.82,2016,AP,Accounts payable,E0368396,"NELSON, CAITLIN M"
,OFFICE OF THE MINORITY WHIP,2016Q1,TRAVEL,02-05,"OPARIL, MARIA A",01/12/16,01/12/16,TAXI/PARKING/TOLLS,22.07,2016,AP,Accounts payable,E0368397,"OPARIL, MARIA A"
,OFFICE OF THE MINORITY WHIP,2016Q1,TRAVEL,03-09,"OPARIL, MARIA A",02/09/16,02/09/16,TAXI/PARKING/TOLLS,11.21,2016,AP,Accounts payable,E0380003,"OPARIL, MARIA A"
,OFFICE OF THE MINORITY WHIP,2016Q1,TRAVEL,03-09,"NELSON, CAITLIN M",02/24/16,02/24/16,TAXI/PARKING/TOLLS,9.34,2016,AP,Accounts payable,E0380009,"NELSON, CAITLIN M"
,OFFICE OF THE MINORITY WHIP,2016Q1,TRAVEL,03-09,"AVILES,DANIELLE R",02/05/16,02/05/16,TAXI/PARKING/TOLLS,13.00,2016,AP,Accounts payable,E0380013,"AVILES,DANIELLE R"
,OFFICE OF THE MINORITY WHIP,2016Q1,TRAVEL,03-22,"DAVIS, ANNALIESE E",03/14/16,03/14/16,TAXI/PARKING/TOLLS,5.30,2016,AP,Accounts payable,E0384625,"DAVIS, ANNALIESE E"
,OFFICE OF THE MINORITY WHIP,2016Q1,TRAVEL,03-22,"AVILES,DANIELLE R",03/16/16,03/16/16,TAXI/PARKING/TOLLS,13.00,2016,AP,Accounts payable,E0384665,"AVILES,DANIELLE R"
,OFFICE OF THE MINORITY WHIP,2016Q1,TRAVEL,03-22,"DAVIS, ANNALIESE E",03/16/16,03/16/16,TAXI/PARKING/TOLLS,7.15,2016,AP,Accounts payable,E0384701,"DAVIS, ANNALIESE E"
,OFFICE OF THE MINORITY WHIP,2016Q1,TRAVEL,03-22,"FRY,COURTNEY",03/11/16,03/11/16,TAXI/PARKING/TOLLS,21.00,2016,AP,Accounts payable,E0384707,"FRY,COURTNEY"
,OFFICE OF THE MINORITY WHIP,2016Q1,TRAVEL,03-22,"NELSON, CAITLIN M",03/16/16,03/16/16,TAXI/PARKING/TOLLS,9.14,2016,AP,Accounts payable,E0384715,"NELSON, CAITLIN M"
,OFFICE OF THE MINORITY WHIP,2016Q1,TRAVEL,03-22,"AVILES,DANIELLE R",03/14/16,03/14/16,TAXI/PARKING/TOLLS,7.00,2016,AP,Accounts payable,E0384730,"AVILES,DANIELLE R"
,OFFICE OF THE MINORITY WHIP,2016Q1,"RENT, COMMUNICATION, UTILITIES",03-18,CITI PCARD-SXM SIRIUSXM.COM/ACCT,01/29/16,02/28/16,UTILITIES,16.50,2016,AP,Accounts payable,00849255,CITI PCARD-SXM SIRIUSXM.COM/ACCT
,OFFICE OF THE MINORITY WHIP,2016Q1,OTHER SERVICES,03-18,CITI PCARD-BED BATH & BEYOND,01/29/16,02/28/16,MISCELLANEOUS OTHER SERVICES,74.01,2016,AP,Accounts payable,00849255,CITI PCARD-BED BATH & BEYOND
,OFFICE OF THE MINORITY WHIP,2016Q1,SUPPLIES AND MATERIALS,02-18,CITI PCARD-PIZZA BOLI'S,01/03/16,01/28/16,FOOD & BEVERAGE,169.79,2016,AP,Accounts payable,00843664,CITI PCARD-PIZZA BOLI'S
,OFFICE OF THE MINORITY WHIP,2016Q1,PERSONNEL COMPENSATION,"","ABOUCHAR, KEITH S",01/01/16,01/02/16,SENIOR POLICY ADVISOR,777.78,2015,"","","","ABOUCHAR, KEITH S"
,OFFICE OF THE MINORITY WHIP,2016Q1,PERSONNEL COMPENSATION,"","ABOUCHAR, KEITH S",12/01/15,12/01/15,SENIOR POLICY ADVISOR (OTHER COMPENSATION),"2,367.00",2015,"","","","ABOUCHAR, KEITH S"
,OFFICE OF THE MINORITY WHIP,2016Q1,PERSONNEL COMPENSATION,"","AVILES,DANIELLE R",01/01/16,01/02/16,DEPUTY FLOOR DIRECTOR,416.67,2015,"","","","AVILES,DANIELLE R"
,OFFICE OF THE MINORITY WHIP,2016Q1,PERSONNEL COMPENSATION,"","COLLINS, MICHAEL E",01/01/16,01/02/16,CHIEF DEPUTY WHIP,236.11,2015,"","","","COLLINS, MICHAEL E"
,OFFICE OF THE MINORITY WHIP,2016Q1,PERSONNEL COMPENSATION,"","CORTINA,JOSEPH B",01/01/16,01/02/16,SPECIAL ASSISTANT,161.11,2015,"","","","CORTINA,JOSEPH B"
,OFFICE OF THE MINORITY WHIP,2016Q1,PERSONNEL COMPENSATION,"","CORTINA,JOSEPH B",12/01/15,12/31/15,SPECIAL ASSISTANT (OVERTIME),773.79,2015,"","","","CORTINA,JOSEPH B"
,OFFICE OF THE MINORITY WHIP,2016Q1,PERSONNEL COMPENSATION,"","CORTINA,JOSEPH B",11/01/15,11/01/15,STAFF ASSISTANT (OTHER COMPENSATION),916.00,2015,"","","","CORTINA,JOSEPH B"
,OFFICE OF THE MINORITY WHIP,2016Q1,PERSONNEL COMPENSATION,"","CORTINA,JOSEPH B",12/01/15,12/01/15,SPECIAL ASSISTANT (OTHER COMPENSATION),"2,083.33",2015,"","","","CORTINA,JOSEPH B"
,OFFICE OF THE MINORITY WHIP,2016Q1,PERSONNEL COMPENSATION,"","COVEY-BRANDT, ALEXIS",01/01/16,01/02/16,CHIEF OF STAFF,958.33,2015,"","","","COVEY-BRANDT, ALEXIS"
,OFFICE OF THE MINORITY WHIP,2016Q1,PERSONNEL COMPENSATION,"","DAVIS,ANNALIESE",01/01/16,01/02/16,DEPUTY PRESS SECRETARY (OTHER COMPENSATION),280.22,2015,"","","","DAVIS,ANNALIESE"
,OFFICE OF THE MINORITY WHIP,2016Q1,PERSONNEL COMPENSATION,"","DWYER, STEPHEN",01/01/16,01/02/16,DIGITAL DIR & POLICY ADV,383.33,2015,"","","","DWYER, STEPHEN"
,OFFICE OF THE MINORITY WHIP,2016Q1,PERSONNEL COMPENSATION,"","DWYER, STEPHEN",12/01/15,12/01/15,SENIOR NETWORK TECHNICIAN(A) (OTHER COMPENSATION),"2,784.25",2015,"","","","DWYER, STEPHEN"
,OFFICE OF THE MINORITY WHIP,2016Q1,PERSONNEL COMPENSATION,"","FRY,COURTNEY",01/01/16,01/02/16,DEP OUTREACH DIR & MEM SER ADV,638.89,2015,"","","","FRY,COURTNEY"
,OFFICE OF THE MINORITY WHIP,2016Q1,PERSONNEL COMPENSATION,"","FRY,COURTNEY",12/01/15,12/01/15,DEP OUTREACH DIR & MEM SER ADV (OTHER COMPENSATION),"5,000.00",2015,"","","","FRY,COURTNEY"
,OFFICE OF THE MINORITY WHIP,2016Q1,PERSONNEL COMPENSATION,"","GOFF,SHUWANZA R",01/01/16,01/02/16,FLOOR DIRECTOR,638.89,2015,"","","","GOFF,SHUWANZA R"
,OFFICE OF THE MINORITY WHIP,2016Q1,PERSONNEL COMPENSATION,"","GOFF,SHUWANZA R",12/01/15,12/01/15,FLOOR DIRECTOR (OTHER COMPENSATION),"5,000.00",2015,"","","","GOFF,SHUWANZA R"
,OFFICE OF THE MINORITY WHIP,2016Q1,PERSONNEL COMPENSATION,"","GRANT,KATHRYN L",01/01/16,01/02/16,COMM DIR AND SR ADVISOR,750.00,2015,"","","","GRANT,KATHRYN L"
,OFFICE OF THE MINORITY WHIP,2016Q1,PERSONNEL COMPENSATION,"","GRANT,KATHRYN L",12/01/15,12/01/15,COMM DIR AND SR ADVISOR (OTHER COMPENSATION),"3,616.00",2015,"","","","GRANT,KATHRYN L"
,OFFICE OF THE MINORITY WHIP,2016Q1,PERSONNEL COMPENSATION,"","LEUSCHEN, JAMES P",01/01/16,01/02/16,SENIOR POLICY ADVISOR,777.78,2015,"","","","LEUSCHEN, JAMES P"
,OFFICE OF THE MINORITY WHIP,2016Q1,PERSONNEL COMPENSATION,"","LEUSCHEN, JAMES P",12/01/15,12/01/15,SENIOR POLICY ADVISOR (OTHER COMPENSATION),"2,367.00",2015,"","","","LEUSCHEN, JAMES P"
,OFFICE OF THE MINORITY WHIP,2016Q1,PERSONNEL COMPENSATION,"","MACDONALD,CHARLENE",01/01/16,01/02/16,SENIOR POLICY ADVISOR,666.67,2015,"","","","MACDONALD,CHARLENE"
,OFFICE OF THE MINORITY WHIP,2016Q1,PERSONNEL COMPENSATION,"","MACDONALD,CHARLENE",12/01/15,12/01/15,SENIOR POLICY ADVISOR (OTHER COMPENSATION),"3,200.00",2015,"","","","MACDONALD,CHARLENE"
,OFFICE OF THE MINORITY WHIP,2016Q1,PERSONNEL COMPENSATION,"","MAHR,THOMAS",01/01/16,01/02/16,POLICY DIRECTOR,888.89,2015,"","","","MAHR,THOMAS"
,OFFICE OF THE MINORITY WHIP,2016Q1,PERSONNEL COMPENSATION,"","MITTLER,MICHELLE",01/01/16,01/02/16,DIR OF SCHEDLNG & SPEC EVENTS,444.44,2015,"","","","MITTLER,MICHELLE"
,OFFICE OF THE MINORITY WHIP,2016Q1,PERSONNEL COMPENSATION,"","MITTLER,MICHELLE",12/01/15,12/01/15,DIR OF SCHEDLNG & SPEC EVENTS (OTHER COMPENSATION),"3,000.00",2015,"","","","MITTLER,MICHELLE"
,OFFICE OF THE MINORITY WHIP,2016Q1,PERSONNEL COMPENSATION,"","NELSON,CAITLIN M",01/01/16,01/02/16,STAFF ASSISTANT,138.89,2015,"","","","NELSON,CAITLIN M"
,OFFICE OF THE MINORITY WHIP,2016Q1,PERSONNEL COMPENSATION,"","NELSON,CAITLIN M",12/07/15,12/31/15,STAFF ASSISTANT (OVERTIME),468.74,2015,"","","","NELSON,CAITLIN M"
,OFFICE OF THE MINORITY WHIP,2016Q1,PERSONNEL COMPENSATION,"","OPARIL,MARIA A",01/01/16,01/02/16,STAFF ASSISTANT,138.89,2015,"","","","OPARIL,MARIA A"
,OFFICE OF THE MINORITY WHIP,2016Q1,PERSONNEL COMPENSATION,"","OPARIL,MARIA A",12/07/15,12/31/15,STAFF ASSISTANT (OVERTIME),594.95,2015,"","","","OPARIL,MARIA A"
,OFFICE OF THE MINORITY WHIP,2016Q1,PERSONNEL COMPENSATION,"","REPKO,MARY F",01/01/16,01/02/16,SENIOR POLICY ADVISOR,777.78,2015,"","","","REPKO,MARY F"
,OFFICE OF THE MINORITY WHIP,2016Q1,PERSONNEL COMPENSATION,"","REPKO,MARY F",12/01/15,12/01/15,SENIOR POLICY ADVISOR (OTHER COMPENSATION),"2,367.00",2015,"","","","REPKO,MARY F"
,OFFICE OF THE MINORITY WHIP,2016Q1,PERSONNEL COMPENSATION,"","ROMICK, BRIAN",01/01/16,01/02/16,DEPUTY CHIEF OF STAFF,944.44,2015,"","","","ROMICK, BRIAN"
,OFFICE OF THE MINORITY WHIP,2016Q1,PERSONNEL COMPENSATION,"","ROWE,DEBORAH M",01/01/16,01/02/16,EXECUTIVE ASSISTANT/OFC MGR,280.22,2015,"","","","ROWE,DEBORAH M"
,OFFICE OF THE MINORITY WHIP,2016Q1,PERSONNEL COMPENSATION,"","SAEZ,MARIEL S",12/01/15,01/02/16,PRESS SECRETARY,"5,438.89",2015,"","","","SAEZ,MARIEL S"
,OFFICE OF THE MINORITY WHIP,2016Q1,PERSONNEL COMPENSATION,"","SALAZAR, RAYMOND J",01/01/16,01/02/16,FLOOR ASSISTANT,305.56,2015,"","","","SALAZAR, RAYMOND J"
,OFFICE OF THE MINORITY WHIP,2016Q1,PERSONNEL COMPENSATION,"","SILVERBERG,DANIEL I",01/01/16,01/02/16,SENIOR POLICY ADVISOR,394.44,2015,"","","","SILVERBERG,DANIEL I"
,OFFICE OF THE MINORITY WHIP,2016Q1,PERSONNEL COMPENSATION,"","SILVERBERG,DANIEL I",12/01/15,12/01/15,SENIOR POLICY ADVISOR (OTHER COMPENSATION),"1,867.00",2015,"","","","SILVERBERG,DANIEL I"
,OFFICE OF THE MINORITY WHIP,2016Q1,PERSONNEL COMPENSATION,"","VEAL,LATOYA S",01/01/16,01/02/16,MARYLAND PRESS SECRETARY,136.11,2015,"","","","VEAL,LATOYA S"
,OFFICE OF THE MINORITY WHIP,2016Q1,PERSONNEL COMPENSATION,"","WEISSMANN, ADAM",01/01/16,01/02/16,SPEECHWRITER,416.67,2015,"","","","WEISSMANN, ADAM"
,OFFICE OF THE MINORITY WHIP,2016Q1,PERSONNEL COMPENSATION,"","WEISSMANN, ADAM",12/01/15,12/01/15,SPEECHWRITER (OTHER COMPENSATION),"5,000.00",2015,"","","","WEISSMANN, ADAM"
,OFFICE OF THE MINORITY WHIP,2016Q1,PRINTING AND REPRODUCTION,03-15,DAVID L ANDRUKITIS INC,12/30/15,12/30/15,PRINTING & REPRODUCTION,"1,027.50",2015,AP,Accounts payable,E0381648,DAVID L ANDRUKITIS INC
,DEMOCRATIC CAUCUS,2016Q1,PERSONNEL COMPENSATION,"","ALVI,HINA R",01/03/16,03/31/16,SHARED EMPLOYEE,"7,333.33",2016,"","","","ALVI,HINA R"
,DEMOCRATIC CAUCUS,2016Q1,PERSONNEL COMPENSATION,"","BACKEMEYER,COURTNEY G",01/03/16,03/31/16,COMMUNICTNS DIR TO VICE CHRMN,"7,822.23",2016,"","","","BACKEMEYER,COURTNEY G"
,DEMOCRATIC CAUCUS,2016Q1,PERSONNEL COMPENSATION,"","BOOTH,WILLIAM C",01/03/16,01/30/16,STAFF ASSISTANT,"2,177.77",2016,"","","","BOOTH,WILLIAM C"
,DEMOCRATIC CAUCUS,2016Q1,PERSONNEL COMPENSATION,"","CARRILLO,MANUEL J",01/03/16,03/31/16,OPERATIONS AND EVENTS COOR,"13,933.33",2016,"","","","CARRILLO,MANUEL J"
,DEMOCRATIC CAUCUS,2016Q1,PERSONNEL COMPENSATION,"","CASEY, KEVIN",01/03/16,03/31/16,POLICY DIRECTOR / VICE CHAIR,"21,266.67",2016,"","","","CASEY, KEVIN"
,DEMOCRATIC CAUCUS,2016Q1,PERSONNEL COMPENSATION,"","DAVALOS,LETICIA M",01/03/16,03/31/16,ADVISOR FOR MBR. SERVICES,"10,266.67",2016,"","","","DAVALOS,LETICIA M"
,DEMOCRATIC CAUCUS,2016Q1,PERSONNEL COMPENSATION,"","DELANEY, ERIC L",01/03/16,03/31/16,SR. ADVISOR FOR MBR SERV,"13,200.00",2016,"","","","DELANEY, ERIC L"
,DEMOCRATIC CAUCUS,2016Q1,PERSONNEL COMPENSATION,"","GOLDFARB,SARAH L",01/03/16,03/31/16,COMMUNICATIONS DIRECTOR,"22,928.90",2016,"","","","GOLDFARB,SARAH L"
,DEMOCRATIC CAUCUS,2016Q1,PERSONNEL COMPENSATION,"","KEATING, KATHERINE E",01/03/16,03/31/16,SHARED EMPLOYEE,"18,577.77",2016,"","","","KEATING, KATHERINE E"
,DEMOCRATIC CAUCUS,2016Q1,PERSONNEL COMPENSATION,"","LOPEZ-SANDOVAL, ELIZABETH",01/03/16,03/31/16,DEPUTY PRESS SECRETARY,"9,044.43",2016,"","","","LOPEZ-SANDOVAL, ELIZABETH"
,DEMOCRATIC CAUCUS,2016Q1,PERSONNEL COMPENSATION,"","MARGOWSKY,MIRANDA K",01/03/16,03/31/16,PRESS SECRETARY,"12,222.23",2016,"","","","MARGOWSKY,MIRANDA K"
,DEMOCRATIC CAUCUS,2016Q1,PERSONNEL COMPENSATION,"","MARTINEZ,ANTHONY M",02/23/16,03/31/16,DIGITAL STRATEGIST,"5,172.22",2016,"","","","MARTINEZ,ANTHONY M"
,DEMOCRATIC CAUCUS,2016Q1,PERSONNEL COMPENSATION,"","MARTINEZ,GRISELLA M",01/03/16,03/31/16,POLICY DIRECTOR,"19,800.00",2016,"","","","MARTINEZ,GRISELLA M"
,DEMOCRATIC CAUCUS,2016Q1,PERSONNEL COMPENSATION,"","MCCLUSKIE,SEAN E",01/03/16,03/31/16,CHIEF OF STAFF,"41,873.33",2016,"","","","MCCLUSKIE,SEAN E"
,DEMOCRATIC CAUCUS,2016Q1,PERSONNEL COMPENSATION,"","NORIEGA,EMILY J",01/03/16,03/31/16,STAFF ASSISTANT,"6,844.43",2016,"","","","NORIEGA,EMILY J"
,DEMOCRATIC CAUCUS,2016Q1,PERSONNEL COMPENSATION,"","NSIAH,JOSEPH K",01/03/16,03/31/16,POLICY ADVISOR,"11,488.90",2016,"","","","NSIAH,JOSEPH K"
,DEMOCRATIC CAUCUS,2016Q1,PERSONNEL COMPENSATION,"","PEREZ-SANCHEZ,NOEL",01/03/16,03/31/16,ADVISOR FOR MBR. SERVICES,"11,000.00",2016,"","","","PEREZ-SANCHEZ,NOEL"
,DEMOCRATIC CAUCUS,2016Q1,PERSONNEL COMPENSATION,"","RODRIGUEZ-CIAMPOLI,FABIOLA",01/03/16,03/31/16,EXECUTIVE DIRECTOR,"35,444.43",2016,"","","","RODRIGUEZ-CIAMPOLI,FABIOLA"
,DEMOCRATIC CAUCUS,2016Q1,PERSONNEL COMPENSATION,"","SACHSE,ANDREW M",01/03/16,03/31/16,STAFF ASSISTANT,"8,555.57",2016,"","","","SACHSE,ANDREW M"
,DEMOCRATIC CAUCUS,2016Q1,PERSONNEL COMPENSATION,"","SHARMA,MOH R",01/03/16,03/31/16,SENIOR POLICY ADVISOR,"14,177.77",2016,"","","","SHARMA,MOH R"
,DEMOCRATIC CAUCUS,2016Q1,PERSONNEL COMPENSATION,"","SHEFFEY,TRE'SHONDA S",01/03/16,03/31/16,STAFF ASSISTANT,"6,844.43",2016,"","","","SHEFFEY,TRE'SHONDA S"
,DEMOCRATIC CAUCUS,2016Q1,PERSONNEL COMPENSATION,"","WOODRUM,JEREMY S",01/03/16,03/31/16,"LEGISLATIVE DIR., VICE CHAIR","10,511.10",2016,"","","","WOODRUM,JEREMY S"
,DEMOCRATIC CAUCUS,2016Q1,TRAVEL,01-19,"NORIEGA, EMILY J",01/07/16,01/07/16,TAXI/PARKING/TOLLS,18.01,2016,AP,Accounts payable,E0362783,"NORIEGA, EMILY J"
,DEMOCRATIC CAUCUS,2016Q1,TRAVEL,02-03,"DELANEY, ERIC",01/25/16,01/29/16,CAR RENTAL,946.66,2016,AP,Accounts payable,E0367307,"DELANEY, ERIC"
,DEMOCRATIC CAUCUS,2016Q1,TRAVEL,02-03,"CARRILLO, MANUEL J",01/25/16,01/29/16,CAR RENTAL,942.17,2016,AP,Accounts payable,E0367308,"CARRILLO, MANUEL J"
,DEMOCRATIC CAUCUS,2016Q1,TRAVEL,02-03,"CASEY, KEVIN",01/29/16,01/29/16,GASOLINE,30.69,2016,AP,Accounts payable,E0367371,"CASEY, KEVIN"
,DEMOCRATIC CAUCUS,2016Q1,TRAVEL,02-03,"BOOTH, WILLIAM C",01/29/16,01/29/16,COMMERCIAL TRANSPORTATION,17.00,2016,AP,Accounts payable,E0367372,"BOOTH, WILLIAM C"
,DEMOCRATIC CAUCUS,2016Q1,TRAVEL,02-03,"BOOTH, WILLIAM C",01/29/16,01/29/16,TAXI/PARKING/TOLLS,9.28,2016,AP,Accounts payable,E0367372,"BOOTH, WILLIAM C"
,DEMOCRATIC CAUCUS,2016Q1,TRAVEL,02-03,"GOLDFARB, SARAH L",01/25/16,01/29/16,CAR RENTAL,531.94,2016,AP,Accounts payable,E0367406,"GOLDFARB, SARAH L"
,DEMOCRATIC CAUCUS,2016Q1,TRAVEL,03-15,"RODRIGUEZ-CIAMPOLI,FABIOLA",01/11/16,01/11/16,PRIVATE AUTO MILEAGE,42.00,2016,AP,Accounts payable,E0381656,"RODRIGUEZ-CIAMPOLI,FABIOLA"
,DEMOCRATIC CAUCUS,2016Q1,TRAVEL,03-15,"RODRIGUEZ-CIAMPOLI,FABIOLA",01/22/16,01/22/16,TAXI/PARKING/TOLLS,18.00,2016,AP,Accounts payable,E0381656,"RODRIGUEZ-CIAMPOLI,FABIOLA"
,DEMOCRATIC CAUCUS,2016Q1,TRAVEL,03-15,"GOLDFARB, SARAH L",01/29/16,01/29/16,GASOLINE,14.74,2016,AP,Accounts payable,E0381665,"GOLDFARB, SARAH L"
,DEMOCRATIC CAUCUS,2016Q1,OTHER SERVICES,02-18,CITI PCARD-CLASSICLEANERS,01/03/16,01/28/16,LAUNDRY SERVICES,98.00,2016,AP,Accounts payable,00843664,CITI PCARD-CLASSICLEANERS
,DEMOCRATIC CAUCUS,2016Q1,OTHER SERVICES,03-18,CITI PCARD-CLASSICLEANERS-LONGWOR,01/29/16,02/28/16,LAUNDRY SERVICES,125.94,2016,AP,Accounts payable,00849255,CITI PCARD-CLASSICLEANERS-LONGWOR
,DEMOCRATIC CAUCUS,2016Q1,SUPPLIES AND MATERIALS,01-19,"BOOTH, WILLIAM C",01/12/16,01/12/16,FOOD & BEVERAGE,19.63,2016,AP,Accounts payable,E0362796,"BOOTH, WILLIAM C"
,DEMOCRATIC CAUCUS,2016Q1,SUPPLIES AND MATERIALS,02-11,OPENPAGE LABS,02/01/16,01/31/17,PUBLICATIONS/REFERENCE MAT'L,"3,600.00",2016,AP,Accounts payable,E0370770,OPENPAGE LABS
,DEMOCRATIC CAUCUS,2016Q1,SUPPLIES AND MATERIALS,02-18,CITI PCARD-BROTHERS PIZZA,01/03/16,01/28/16,FOOD & BEVERAGE,197.00,2016,AP,Accounts payable,00843664,CITI PCARD-BROTHERS PIZZA
,DEMOCRATIC CAUCUS,2016Q1,SUPPLIES AND MATERIALS,02-18,CITI PCARD-HARRIS TEETER,01/03/16,01/28/16,FOOD & BEVERAGE,375.32,2016,AP,Accounts payable,00843664,CITI PCARD-HARRIS TEETER
,DEMOCRATIC CAUCUS,2016Q1,SUPPLIES AND MATERIALS,02-18,CITI PCARD-HILL COUNTRY BARBECUE,01/03/16,01/28/16,FOOD & BEVERAGE,"4,000.00",2016,AP,Accounts payable,00843664,CITI PCARD-HILL COUNTRY BARBECUE
,DEMOCRATIC CAUCUS,2016Q1,SUPPLIES AND MATERIALS,02-18,CITI PCARD-HYATT HOTELS F/B,01/03/16,01/28/16,FOOD & BEVERAGE,248.28,2016,AP,Accounts payable,00843664,CITI PCARD-HYATT HOTELS F/B
,DEMOCRATIC CAUCUS,2016Q1,SUPPLIES AND MATERIALS,02-18,CITI PCARD-MAILCHIMP,01/03/16,01/28/16,PUBLICATIONS/REFERENCE MAT'L,45.00,2016,AP,Accounts payable,00843664,CITI PCARD-MAILCHIMP
,DEMOCRATIC CAUCUS,2016Q1,SUPPLIES AND MATERIALS,03-18,CITI PCARD-BETHESDA BAGELS OF DUP,01/29/16,02/28/16,FOOD & BEVERAGE,"2,263.47",2016,AP,Accounts payable,00849255,CITI PCARD-BETHESDA BAGELS OF DUP
,DEMOCRATIC CAUCUS,2016Q1,SUPPLIES AND MATERIALS,03-18,CITI PCARD-COSI,01/29/16,02/28/16,FOOD & BEVERAGE,"1,805.80",2016,AP,Accounts payable,00849255,CITI PCARD-COSI
,DEMOCRATIC CAUCUS,2016Q1,SUPPLIES AND MATERIALS,03-18,CITI PCARD-HARRIS TEETER,01/29/16,02/28/16,FOOD & BEVERAGE,408.93,2016,AP,Accounts payable,00849255,CITI PCARD-HARRIS TEETER
,DEMOCRATIC CAUCUS,2016Q1,SUPPLIES AND MATERIALS,03-18,CITI PCARD-MAILCHIMP,01/29/16,02/28/16,PUBLICATIONS/REFERENCE MAT'L,50.00,2016,AP,Accounts payable,00849255,CITI PCARD-MAILCHIMP
,DEMOCRATIC CAUCUS,2016Q1,SUPPLIES AND MATERIALS,03-21,DEER PARK,01/31/16,01/31/16,WATER,29.99,2016,AP,Accounts payable,00845191,DEER PARK
,DEMOCRATIC CAUCUS,2016Q1,SUPPLIES AND MATERIALS,03-31,DEER PARK,02/29/16,02/29/16,WATER,29.99,2016,AP,Accounts payable,00849744,DEER PARK
,DEMOCRATIC CAUCUS,2016Q1,PERSONNEL COMPENSATION,"","ALVI,HINA R",01/01/16,01/02/16,SHARED EMPLOYEE,166.67,2015,"","","","ALVI,HINA R"
,DEMOCRATIC CAUCUS,2016Q1,PERSONNEL COMPENSATION,"","BACKEMEYER,COURTNEY G",01/01/16,01/02/16,COMMUNICTNS DIR TO VICE CHRMN,177.78,2015,"","","","BACKEMEYER,COURTNEY G"
,DEMOCRATIC CAUCUS,2016Q1,PERSONNEL COMPENSATION,"","BOOTH,WILLIAM C",01/01/16,01/02/16,STAFF ASSISTANT,155.56,2015,"","","","BOOTH,WILLIAM C"
,DEMOCRATIC CAUCUS,2016Q1,PERSONNEL COMPENSATION,"","CARRILLO,MANUEL J",01/01/16,01/02/16,OPERATIONS AND EVENTS COOR,316.67,2015,"","","","CARRILLO,MANUEL J"
,DEMOCRATIC CAUCUS,2016Q1,PERSONNEL COMPENSATION,"","CASEY, KEVIN",01/01/16,01/02/16,POLICY DIRECTOR / VICE CHAIR,483.33,2015,"","","","CASEY, KEVIN"
,DEMOCRATIC CAUCUS,2016Q1,PERSONNEL COMPENSATION,"","DAVALOS,LETICIA M",01/01/16,01/02/16,ADVISOR FOR MBR. SERVICES,233.33,2015,"","","","DAVALOS,LETICIA M"
,DEMOCRATIC CAUCUS,2016Q1,PERSONNEL COMPENSATION,"","DELANEY, ERIC L",01/01/16,01/02/16,SR. ADVISOR FOR MBR SERV,300.00,2015,"","","","DELANEY, ERIC L"
,DEMOCRATIC CAUCUS,2016Q1,PERSONNEL COMPENSATION,"","GOLDFARB,SARAH L",01/01/16,01/02/16,COMMUNICATIONS DIRECTOR,521.11,2015,"","","","GOLDFARB,SARAH L"
,DEMOCRATIC CAUCUS,2016Q1,PERSONNEL COMPENSATION,"","KEATING, KATHERINE E",01/01/16,01/02/16,SHARED EMPLOYEE,422.22,2015,"","","","KEATING, KATHERINE E"
,DEMOCRATIC CAUCUS,2016Q1,PERSONNEL COMPENSATION,"","LOPEZ-SANDOVAL, ELIZABETH",01/01/16,01/02/16,DEPUTY PRESS SECRETARY,205.56,2015,"","","","LOPEZ-SANDOVAL, ELIZABETH"
,DEMOCRATIC CAUCUS,2016Q1,PERSONNEL COMPENSATION,"","MARGOWSKY,MIRANDA K",01/01/16,01/02/16,PRESS SECRETARY,277.78,2015,"","","","MARGOWSKY,MIRANDA K"
,DEMOCRATIC CAUCUS,2016Q1,PERSONNEL COMPENSATION,"","MARTINEZ,GRISELLA M",01/01/16,01/02/16,POLICY DIRECTOR,450.00,2015,"","","","MARTINEZ,GRISELLA M"
,DEMOCRATIC CAUCUS,2016Q1,PERSONNEL COMPENSATION,"","MCCLUSKIE,SEAN E",01/01/16,01/02/16,CHIEF OF STAFF,951.67,2015,"","","","MCCLUSKIE,SEAN E"
,DEMOCRATIC CAUCUS,2016Q1,PERSONNEL COMPENSATION,"","NORIEGA,EMILY J",01/01/16,01/02/16,STAFF ASSISTANT,155.56,2015,"","","","NORIEGA,EMILY J"
,DEMOCRATIC CAUCUS,2016Q1,PERSONNEL COMPENSATION,"","NORIEGA,EMILY J",12/01/15,12/31/15,STAFF ASSISTANT (OVERTIME),"1,852.62",2015,"","","","NORIEGA,EMILY J"
,DEMOCRATIC CAUCUS,2016Q1,PERSONNEL COMPENSATION,"","NSIAH,JOSEPH K",01/01/16,01/02/16,POLICY ADVISOR,261.11,2015,"","","","NSIAH,JOSEPH K"
,DEMOCRATIC CAUCUS,2016Q1,PERSONNEL COMPENSATION,"","PEREZ-SANCHEZ,NOEL",01/01/16,01/02/16,ADVISOR FOR MBR. SERVICES,250.00,2015,"","","","PEREZ-SANCHEZ,NOEL"
,DEMOCRATIC CAUCUS,2016Q1,PERSONNEL COMPENSATION,"","RODRIGUEZ-CIAMPOLI,FABIOLA",01/01/16,01/02/16,EXECUTIVE DIRECTOR,805.56,2015,"","","","RODRIGUEZ-CIAMPOLI,FABIOLA"
,DEMOCRATIC CAUCUS,2016Q1,PERSONNEL COMPENSATION,"","SACHSE,ANDREW M",01/01/16,01/02/16,STAFF ASSISTANT,194.44,2015,"","","","SACHSE,ANDREW M"
,DEMOCRATIC CAUCUS,2016Q1,PERSONNEL COMPENSATION,"","SHARMA,MOH R",01/01/16,01/02/16,SENIOR POLICY ADVISOR,322.22,2015,"","","","SHARMA,MOH R"
,DEMOCRATIC CAUCUS,2016Q1,PERSONNEL COMPENSATION,"","SHEFFEY,TRE'SHONDA S",01/01/16,01/02/16,STAFF ASSISTANT,155.56,2015,"","","","SHEFFEY,TRE'SHONDA S"
,DEMOCRATIC CAUCUS,2016Q1,PERSONNEL COMPENSATION,"","SHEFFEY,TRE'SHONDA S",12/01/15,12/31/15,STAFF ASSISTANT (OVERTIME),"1,714.71",2015,"","","","SHEFFEY,TRE'SHONDA S"
,DEMOCRATIC CAUCUS,2016Q1,PERSONNEL COMPENSATION,"","WOODRUM,JEREMY S",01/01/16,01/02/16,"LEGISLATIVE DIR., VICE CHAIR",238.89,2015,"","","","WOODRUM,JEREMY S"
,DEMOCRATIC CAUCUS,2016Q1,TRAVEL,02-03,"CARRILLO, MANUEL J",01/02/16,01/02/16,COMMERCIAL TRANSPORTATION,112.00,2015,AP,Accounts payable,E0367309,"CARRILLO, MANUEL J"
,DEMOCRATIC CAUCUS,2016Q1,TRAVEL,02-03,"CARRILLO, MANUEL J",01/02/16,01/02/16,TAXI/PARKING/TOLLS,56.90,2015,AP,Accounts payable,E0367309,"CARRILLO, MANUEL J"
,DEMOCRATIC CAUCUS,2016Q1,TRAVEL,02-03,"GOLDFARB, SARAH L",01/02/16,01/02/16,TAXI/PARKING/TOLLS,20.36,2015,AP,Accounts payable,E0367387,"GOLDFARB, SARAH L"
,DEMOCRATIC CAUCUS,2016Q1,OTHER SERVICES,01-21,CITI PCARD-CLASSICLEANERS-LONGWOR,11/29/15,12/28/15,LAUNDRY SERVICES,62.97,2015,AP,Accounts payable,00838422,CITI PCARD-CLASSICLEANERS-LONGWOR
,DEMOCRATIC CAUCUS,2016Q1,OTHER SERVICES,01-21,CITI PCARD-CPP INC/ MBTIONLINE,11/29/15,12/28/15,CONSULTANT CONTRACT SERVICE,329.25,2015,AP,Accounts payable,00838422,CITI PCARD-CPP INC/ MBTIONLINE
,DEMOCRATIC CAUCUS,2016Q1,SUPPLIES AND MATERIALS,01-07,OPENPAGE LABS,12/22/15,12/22/15,PUBLICATIONS/REFERENCE MAT'L,300.00,2015,AP,Accounts payable,E0355904,OPENPAGE LABS
,DEMOCRATIC CAUCUS,2016Q1,SUPPLIES AND MATERIALS,01-19,CATERING BY AVALON INC,12/08/15,12/08/15,FOOD & BEVERAGE,"13,421.09",2015,AP,Accounts payable,E0361923,CATERING BY AVALON INC
,DEMOCRATIC CAUCUS,2016Q1,SUPPLIES AND MATERIALS,01-21,CITI PCARD-ADOBE CREATIVE CLOUD,11/29/15,12/28/15,SOFTWARE LESS THAN $500,51.16,2015,AP,Accounts payable,00838422,CITI PCARD-ADOBE CREATIVE CLOUD
,DEMOCRATIC CAUCUS,2016Q1,SUPPLIES AND MATERIALS,01-21,CITI PCARD-BETHESDA BAGELS OF DUP,11/29/15,12/28/15,FOOD & BEVERAGE,"2,862.34",2015,AP,Accounts payable,00838422,CITI PCARD-BETHESDA BAGELS OF DUP
,DEMOCRATIC CAUCUS,2016Q1,SUPPLIES AND MATERIALS,01-21,CITI PCARD-CAPITOL HOST (RIDGEWEL,11/29/15,12/28/15,FOOD & BEVERAGE,250.00,2015,AP,Accounts payable,00838422,CITI PCARD-CAPITOL HOST (RIDGEWEL
,DEMOCRATIC CAUCUS,2016Q1,SUPPLIES AND MATERIALS,01-21,CITI PCARD-CARMINE'S,11/29/15,12/28/15,FOOD & BEVERAGE,"1,448.28",2015,AP,Accounts payable,00838422,CITI PCARD-CARMINE'S
,DEMOCRATIC CAUCUS,2016Q1,SUPPLIES AND MATERIALS,01-21,CITI PCARD-HARRIS TEETER,11/29/15,12/28/15,FOOD & BEVERAGE,772.13,2015,AP,Accounts payable,00838422,CITI PCARD-HARRIS TEETER
,DEMOCRATIC CAUCUS,2016Q1,SUPPLIES AND MATERIALS,01-21,CITI PCARD-IN CATERING BY AVALON,11/29/15,12/28/15,FOOD & BEVERAGE,"3,581.83",2015,AP,Accounts payable,00838422,CITI PCARD-IN CATERING BY AVALON
,DEMOCRATIC CAUCUS,2016Q1,SUPPLIES AND MATERIALS,01-21,CITI PCARD-MAILCHIMP,11/29/15,12/28/15,PUBLICATIONS/REFERENCE MAT'L,45.00,2015,AP,Accounts payable,00838422,CITI PCARD-MAILCHIMP
,DEMOCRATIC CAUCUS,2016Q1,SUPPLIES AND MATERIALS,01-21,CITI PCARD-NYT NY TIMES SUBS,11/29/15,12/28/15,PUBLICATIONS/REFERENCE MAT'L,"2,145.75",2015,AP,Accounts payable,00838422,CITI PCARD-NYT NY TIMES SUBS
,DEMOCRATIC CAUCUS,2016Q1,SUPPLIES AND MATERIALS,01-21,CITI PCARD-NYT TIMES E-BILLING,11/29/15,12/28/15,PUBLICATIONS/REFERENCE MAT'L,694.02,2015,AP,Accounts payable,00838422,CITI PCARD-NYT TIMES E-BILLING
,DEMOCRATIC CAUCUS,2016Q1,SUPPLIES AND MATERIALS,01-29,DEER PARK,12/31/15,12/31/15,WATER,29.99,2015,AP,Accounts payable,00838624,DEER PARK
,DEMOCRATIC CAUCUS,2016Q1,SUPPLIES AND MATERIALS,02-03,TVEYES INC,11/23/15,11/23/16,PUBLICATIONS/REFERENCE MAT'L,"1,200.00",2015,AP,Accounts payable,E0367370,TVEYES INC
,DEMOCRATIC CAUCUS,2016Q1,SUPPLIES AND MATERIALS,02-03,"GOLDFARB, SARAH L",01/02/16,01/02/16,FOOD & BEVERAGE,22.48,2015,AP,Accounts payable,E0367387,"GOLDFARB, SARAH L"
,DEMOCRATIC CAUCUS,2016Q1,SUPPLIES AND MATERIALS,02-03,"CARRILLO, MANUEL J",01/02/16,01/02/16,FOOD & BEVERAGE,125.40,2015,AP,Accounts payable,E0367628,"CARRILLO, MANUEL J"
,DEMOCRATIC CAUCUS,2016Q1,SUPPLIES AND MATERIALS,02-10,OPENPAGE LABS,09/22/15,09/22/15,PUBLICATIONS/REFERENCE MAT'L,300.00,2015,AP,Accounts payable,E0370195,OPENPAGE LABS
,DEMOCRATIC CAUCUS,2016Q1,SUPPLIES AND MATERIALS,02-11,OPENPAGE LABS,10/22/15,10/22/15,PUBLICATIONS/REFERENCE MAT'L,300.00,2015,AP,Accounts payable,E0370194,OPENPAGE LABS
,DEMOCRATIC CAUCUS,2016Q1,SUPPLIES AND MATERIALS,02-11,OPENPAGE LABS,11/22/15,11/22/15,PUBLICATIONS/REFERENCE MAT'L,300.00,2015,AP,Accounts payable,E0370223,OPENPAGE LABS
,DEMOCRATIC CAUCUS,2016Q1,SUPPLIES AND MATERIALS,02-11,OPENPAGE LABS,01/01/16,01/31/16,PUBLICATIONS/REFERENCE MAT'L,300.00,2015,AP,Accounts payable,E0370764,OPENPAGE LABS
,DEMOCRATIC CAUCUS,2016Q1,SUPPLIES AND MATERIALS,02-18,CITI PCARD-AMAZON MKTPLACE PMTS,12/29/15,01/02/16,FOOD & BEVERAGE,18.99,2015,AP,Accounts payable,00843664,CITI PCARD-AMAZON MKTPLACE PMTS
,REPUBLICAN CONFERENCE,2016Q1,PERSONNEL COMPENSATION,"","BUCHELI,DANIEL C",01/03/16,03/31/16,SPECIALTY MEDIA PRESS SECRETAR,"13,444.43",2016,"","","","BUCHELI,DANIEL C"
,REPUBLICAN CONFERENCE,2016Q1,PERSONNEL COMPENSATION,"","CONSLER,NICHOLAS R",01/15/16,03/31/16,FELLOW,"2,666.67",2016,"","","","CONSLER,NICHOLAS R"
,REPUBLICAN CONFERENCE,2016Q1,PERSONNEL COMPENSATION,"","CROCKER,NICHOLAS L",01/03/16,03/31/16,MEMBER SERVICES COORDINATOR,"9,777.77",2016,"","","","CROCKER,NICHOLAS L"
,REPUBLICAN CONFERENCE,2016Q1,PERSONNEL COMPENSATION,"","DAINES,ANNE C",01/03/16,03/31/16,COMMUNICATIONS ASSISTANT,"7,944.43",2016,"","","","DAINES,ANNE C"
,REPUBLICAN CONFERENCE,2016Q1,PERSONNEL COMPENSATION,"","DEUTSCH,JEREMY",01/03/16,03/31/16,CHIEF OF STAFF,"29,333.33",2016,"","","","DEUTSCH,JEREMY"
,REPUBLICAN CONFERENCE,2016Q1,PERSONNEL COMPENSATION,"","DUPPLER,MARTHA C",01/03/16,03/31/16,COALITIONS DIRECTOR,"25,264.45",2016,"","","","DUPPLER,MARTHA C"
,REPUBLICAN CONFERENCE,2016Q1,PERSONNEL COMPENSATION,"","FIELD,IAN A",01/03/16,03/31/16,PRESS SECRETARY,"4,888.90",2016,"","","","FIELD,IAN A"
,REPUBLICAN CONFERENCE,2016Q1,PERSONNEL COMPENSATION,"","HALL, MIKAYLA M",01/03/16,03/31/16,SPEECH WRITER,"12,711.10",2016,"","","","HALL, MIKAYLA M"
,REPUBLICAN CONFERENCE,2016Q1,PERSONNEL COMPENSATION,"","HAUCK,KARA",01/03/16,03/31/16,COMMUNICATIONS DIRECTOR,"23,222.23",2016,"","","","HAUCK,KARA"
,REPUBLICAN CONFERENCE,2016Q1,PERSONNEL COMPENSATION,"","HODSON,NATHAN M",01/03/16,03/31/16,DEPUTY CHIEF OF STAFF,"35,444.43",2016,"","","","HODSON,NATHAN M"
,REPUBLICAN CONFERENCE,2016Q1,PERSONNEL COMPENSATION,"","MARK,REBECCA",01/03/16,03/31/16,SR. ADVISOR TECH POLICY/WOMEN,"19,453.78",2016,"","","","MARK,REBECCA"
,REPUBLICAN CONFERENCE,2016Q1,PERSONNEL COMPENSATION,"","MCMULLIN,DAVID E",01/03/16,03/31/16,POLICY DIRECTOR,"32,022.23",2016,"","","","MCMULLIN,DAVID E"
,REPUBLICAN CONFERENCE,2016Q1,PERSONNEL COMPENSATION,"","NEIGHBORS,MATTHEW P",01/03/16,03/31/16,STAFF ASSISTANT,"7,333.33",2016,"","","","NEIGHBORS,MATTHEW P"
,REPUBLICAN CONFERENCE,2016Q1,PERSONNEL COMPENSATION,"","PEREZ,MEGAN C",01/03/16,03/31/16,POLICY ADVISOR,"8,555.57",2016,"","","","PEREZ,MEGAN C"
,REPUBLICAN CONFERENCE,2016Q1,PERSONNEL COMPENSATION,"","ROGERS,SARAH E",01/03/16,03/31/16,DIRECTOR OF MEMBER SERVICES,"27,377.77",2016,"","","","ROGERS,SARAH E"
,REPUBLICAN CONFERENCE,2016Q1,PERSONNEL COMPENSATION,"","ROOS,AMBER E",01/03/16,03/31/16,FINANCE ASSISTANT,"2,273.33",2016,"","","","ROOS,AMBER E"
,REPUBLICAN CONFERENCE,2016Q1,PERSONNEL COMPENSATION,"","ROSS, JOHN E",01/03/16,03/31/16,FINANCE DIRECTOR,"2,591.10",2016,"","","","ROSS, JOHN E"
,REPUBLICAN CONFERENCE,2016Q1,PERSONNEL COMPENSATION,"","SMENTEK,DAVID",01/03/16,03/31/16,POLICY COORDINATOR,"11,000.00",2016,"","","","SMENTEK,DAVID"
,REPUBLICAN CONFERENCE,2016Q1,PERSONNEL COMPENSATION,"","STEVENS,PAMELA R",01/03/16,03/31/16,DIRECTOR OF MEDIA AFFAIRS,"32,144.43",2016,"","","","STEVENS,PAMELA R"
,REPUBLICAN CONFERENCE,2016Q1,PERSONNEL COMPENSATION,"","SUNDAY,JESSICA M",01/03/16,03/31/16,SCHEDULER,"8,399.10",2016,"","","","SUNDAY,JESSICA M"
,REPUBLICAN CONFERENCE,2016Q1,PERSONNEL COMPENSATION,"","THORNE,DRAY A",01/03/16,03/31/16,SYSTEMS ADMINISTRATOR,"2,933.33",2016,"","","","THORNE,DRAY A"
,REPUBLICAN CONFERENCE,2016Q1,TRAVEL,01-22,"HODSON, NATHAN",01/08/16,01/08/16,COMMERCIAL TRANSPORTATION,198.00,2016,AP,Accounts payable,E0364316,"HODSON, NATHAN"
,REPUBLICAN CONFERENCE,2016Q1,TRAVEL,01-22,"HODSON, NATHAN",01/08/16,01/08/16,TAXI/PARKING/TOLLS,33.22,2016,AP,Accounts payable,E0364316,"HODSON, NATHAN"
,REPUBLICAN CONFERENCE,2016Q1,TRAVEL,02-08,"BUCHELI,DANIEL C",02/03/16,02/03/16,TAXI/PARKING/TOLLS,14.48,2016,AP,Accounts payable,E0369092,"BUCHELI,DANIEL C"
,REPUBLICAN CONFERENCE,2016Q1,TRAVEL,02-18,CITI PCARD-UBER TECHNOLOGIES INC,01/03/16,01/28/16,TAXI/PARKING/TOLLS,84.80,2016,AP,Accounts payable,00843664,CITI PCARD-UBER TECHNOLOGIES INC
,REPUBLICAN CONFERENCE,2016Q1,TRAVEL,02-26,"STEVENS, PAMELA R",02/18/16,02/19/16,COMMERCIAL TRANSPORTATION,367.00,2016,AP,Accounts payable,E0375390,"STEVENS, PAMELA R"
,REPUBLICAN CONFERENCE,2016Q1,TRAVEL,02-26,"STEVENS, PAMELA R",02/18/16,02/18/16,LODGING,32.66,2016,AP,Accounts payable,E0375390,"STEVENS, PAMELA R"
,REPUBLICAN CONFERENCE,2016Q1,TRAVEL,02-26,"STEVENS, PAMELA R",02/18/16,02/19/16,LODGING,208.90,2016,AP,Accounts payable,E0375390,"STEVENS, PAMELA R"
,REPUBLICAN CONFERENCE,2016Q1,TRAVEL,02-26,"STEVENS, PAMELA R",02/18/16,02/19/16,MEALS,37.71,2016,AP,Accounts payable,E0375390,"STEVENS, PAMELA R"
,REPUBLICAN CONFERENCE,2016Q1,TRAVEL,02-26,"STEVENS, PAMELA R",02/18/16,02/19/16,TAXI/PARKING/TOLLS,212.07,2016,AP,Accounts payable,E0375390,"STEVENS, PAMELA R"
,REPUBLICAN CONFERENCE,2016Q1,TRAVEL,03-03,"MARK,REBECCA",01/29/16,01/29/16,TAXI/PARKING/TOLLS,14.00,2016,AP,Accounts payable,E0377838,"MARK,REBECCA"
,REPUBLICAN CONFERENCE,2016Q1,TRAVEL,03-09,"STEVENS, PAMELA R",01/07/16,02/25/16,TAXI/PARKING/TOLLS,63.41,2016,AP,Accounts payable,E0379840,"STEVENS, PAMELA R"
,REPUBLICAN CONFERENCE,2016Q1,TRAVEL,03-18,CITI PCARD-UBER TECHNOLOGIES INC,01/29/16,02/28/16,TAXI/PARKING/TOLLS,81.49,2016,AP,Accounts payable,00849255,CITI PCARD-UBER TECHNOLOGIES INC
,REPUBLICAN CONFERENCE,2016Q1,TRAVEL,03-28,"STEVENS, PAMELA R",03/17/16,03/17/16,MEALS,22.22,2016,AP,Accounts payable,E0385980,"STEVENS, PAMELA R"
,REPUBLICAN CONFERENCE,2016Q1,TRAVEL,03-28,"STEVENS, PAMELA R",02/16/16,02/16/16,TAXI/PARKING/TOLLS,25.00,2016,AP,Accounts payable,E0385980,"STEVENS, PAMELA R"
,REPUBLICAN CONFERENCE,2016Q1,TRAVEL,03-28,"STEVENS, PAMELA R",03/02/16,03/16/16,TAXI/PARKING/TOLLS,136.11,2016,AP,Accounts payable,E0385980,"STEVENS, PAMELA R"
,REPUBLICAN CONFERENCE,2016Q1,TRAVEL,03-31,SEAN R PARNELL,02/16/16,03/03/16,CONSULT TRAVEL / RELATED EXP,"2,140.71",2016,AP,Accounts payable,E0386663,SEAN R PARNELL
,REPUBLICAN CONFERENCE,2016Q1,PRINTING AND REPRODUCTION,02-18,CITI PCARD-ARTIFACT UPRISING,01/03/16,01/28/16,PRINTING & REPRODUCTION,29.98,2016,AP,Accounts payable,00843664,CITI PCARD-ARTIFACT UPRISING
,REPUBLICAN CONFERENCE,2016Q1,PRINTING AND REPRODUCTION,02-18,CITI PCARD-FEDEXOFFICE,01/03/16,01/28/16,PRINTING & REPRODUCTION,19.40,2016,AP,Accounts payable,00843664,CITI PCARD-FEDEXOFFICE
,REPUBLICAN CONFERENCE,2016Q1,PRINTING AND REPRODUCTION,02-18,CITI PCARD-GETTY IMAGES,01/03/16,01/28/16,PRINTING & REPRODUCTION,199.00,2016,AP,Accounts payable,00843664,CITI PCARD-GETTY IMAGES
,REPUBLICAN CONFERENCE,2016Q1,PRINTING AND REPRODUCTION,03-09,"STEVENS, PAMELA R",02/29/16,03/01/16,PRINTING & REPRODUCTION,116.00,2016,AP,Accounts payable,E0379840,"STEVENS, PAMELA R"
,REPUBLICAN CONFERENCE,2016Q1,PRINTING AND REPRODUCTION,03-18,CITI PCARD-GETTY IMAGES,01/29/16,02/28/16,PRINTING & REPRODUCTION,199.00,2016,AP,Accounts payable,00849255,CITI PCARD-GETTY IMAGES
,REPUBLICAN CONFERENCE,2016Q1,OTHER SERVICES,03-31,SEAN R PARNELL,01/31/16,03/31/16,CONSULTANT CONTRACT SERVICE,"15,150.00",2016,AP,Accounts payable,E0386663,SEAN R PARNELL
,REPUBLICAN CONFERENCE,2016Q1,SUPPLIES AND MATERIALS,01-07,ARAMARK REFRESHMENT SERVICES,01/01/16,01/31/16,FOOD & BEVERAGE,108.00,2016,AP,Accounts payable,E0359307,ARAMARK REFRESHMENT SERVICES
,REPUBLICAN CONFERENCE,2016Q1,SUPPLIES AND MATERIALS,01-14,ARAMARK REFRESHMENT SERVICES,01/08/16,01/08/16,FOOD & BEVERAGE,833.85,2016,AP,Accounts payable,E0361744,ARAMARK REFRESHMENT SERVICES
,REPUBLICAN CONFERENCE,2016Q1,SUPPLIES AND MATERIALS,01-14,HAGUE QUALITY WATER OF MD INC,01/06/16,02/05/16,WATER,63.00,2016,AP,Accounts payable,E0361745,HAGUE QUALITY WATER OF MD INC
,REPUBLICAN CONFERENCE,2016Q1,SUPPLIES AND MATERIALS,02-08,ARAMARK REFRESHMENT SERVICES,02/05/16,02/05/16,FOOD & BEVERAGE,"1,199.20",2016,AP,Accounts payable,E0369090,ARAMARK REFRESHMENT SERVICES
,REPUBLICAN CONFERENCE,2016Q1,SUPPLIES AND MATERIALS,02-08,ARAMARK REFRESHMENT SERVICES,02/01/16,02/29/16,FOOD & BEVERAGE,108.00,2016,AP,Accounts payable,E0369091,ARAMARK REFRESHMENT SERVICES
,REPUBLICAN CONFERENCE,2016Q1,SUPPLIES AND MATERIALS,02-11,HAGUE QUALITY WATER OF MD INC,02/06/16,03/05/16,WATER,63.00,2016,AP,Accounts payable,E0370628,HAGUE QUALITY WATER OF MD INC
,REPUBLICAN CONFERENCE,2016Q1,SUPPLIES AND MATERIALS,02-11,"FIELD, IAN A",02/05/16,02/05/16,FOOD & BEVERAGE,"1,236.27",2016,AP,Accounts payable,E0370629,"FIELD, IAN A"
,REPUBLICAN CONFERENCE,2016Q1,SUPPLIES AND MATERIALS,02-18,CITI PCARD-ADOBE CREATIVE CLOUD,01/03/16,01/28/16,SOFTWARE LESS THAN $500,370.07,2016,AP,Accounts payable,00843664,CITI PCARD-ADOBE CREATIVE CLOUD
,REPUBLICAN CONFERENCE,2016Q1,SUPPLIES AND MATERIALS,02-18,CITI PCARD-CHICK-FIL-A,01/03/16,01/28/16,FOOD & BEVERAGE,"1,613.75",2016,AP,Accounts payable,00843664,CITI PCARD-CHICK-FIL-A
,REPUBLICAN CONFERENCE,2016Q1,SUPPLIES AND MATERIALS,02-18,CITI PCARD-CORNER BAKERY,01/03/16,01/28/16,FOOD & BEVERAGE,"2,185.16",2016,AP,Accounts payable,00843664,CITI PCARD-CORNER BAKERY
,REPUBLICAN CONFERENCE,2016Q1,SUPPLIES AND MATERIALS,02-18,CITI PCARD-DUNKIN,01/03/16,01/28/16,FOOD & BEVERAGE,29.08,2016,AP,Accounts payable,00843664,CITI PCARD-DUNKIN
,REPUBLICAN CONFERENCE,2016Q1,SUPPLIES AND MATERIALS,02-18,CITI PCARD-GIANT,01/03/16,01/28/16,FOOD & BEVERAGE,17.80,2016,AP,Accounts payable,00843664,CITI PCARD-GIANT
,REPUBLICAN CONFERENCE,2016Q1,SUPPLIES AND MATERIALS,02-18,CITI PCARD-NEW YORK TIMES DIGITAL,01/03/16,01/28/16,PUBLICATIONS/REFERENCE MAT'L,15.00,2016,AP,Accounts payable,00843664,CITI PCARD-NEW YORK TIMES DIGITAL
,REPUBLICAN CONFERENCE,2016Q1,SUPPLIES AND MATERIALS,02-18,CITI PCARD-QDOBA MEXICAN GRIL,01/03/16,01/28/16,FOOD & BEVERAGE,235.45,2016,AP,Accounts payable,00843664,CITI PCARD-QDOBA MEXICAN GRIL
,REPUBLICAN CONFERENCE,2016Q1,SUPPLIES AND MATERIALS,02-18,CITI PCARD-SQ ZORBA'S CAFE,01/03/16,01/28/16,FOOD & BEVERAGE,369.00,2016,AP,Accounts payable,00843664,CITI PCARD-SQ ZORBA'S CAFE
,REPUBLICAN CONFERENCE,2016Q1,SUPPLIES AND MATERIALS,02-18,CITI PCARD-SUBWAY,01/03/16,01/28/16,FOOD & BEVERAGE,12.00,2016,AP,Accounts payable,00843664,CITI PCARD-SUBWAY
,REPUBLICAN CONFERENCE,2016Q1,SUPPLIES AND MATERIALS,02-18,"CITI PCARD-WE, THE PIZZA",01/03/16,01/28/16,FOOD & BEVERAGE,371.22,2016,AP,Accounts payable,00843664,"CITI PCARD-WE, THE PIZZA"
,REPUBLICAN CONFERENCE,2016Q1,SUPPLIES AND MATERIALS,02-26,"STEVENS, PAMELA R",02/22/16,02/22/16,PUBLICATIONS/REFERENCE MAT'L,12.70,2016,AP,Accounts payable,E0375390,"STEVENS, PAMELA R"
,REPUBLICAN CONFERENCE,2016Q1,SUPPLIES AND MATERIALS,03-09,"STEVENS, PAMELA R",01/11/16,01/11/16,FOOD & BEVERAGE,10.00,2016,AP,Accounts payable,E0379840,"STEVENS, PAMELA R"
,REPUBLICAN CONFERENCE,2016Q1,SUPPLIES AND MATERIALS,03-09,"STEVENS, PAMELA R",01/12/16,01/12/16,FOOD & BEVERAGE,4.40,2016,AP,Accounts payable,E0379840,"STEVENS, PAMELA R"
,REPUBLICAN CONFERENCE,2016Q1,SUPPLIES AND MATERIALS,03-09,"STEVENS, PAMELA R",03/02/16,03/02/16,FOOD & BEVERAGE,41.58,2016,AP,Accounts payable,E0379840,"STEVENS, PAMELA R"
,REPUBLICAN CONFERENCE,2016Q1,SUPPLIES AND MATERIALS,03-09,HAGUE QUALITY WATER OF MD INC,03/06/16,04/05/16,WATER,63.00,2016,AP,Accounts payable,E0379841,HAGUE QUALITY WATER OF MD INC
,REPUBLICAN CONFERENCE,2016Q1,SUPPLIES AND MATERIALS,03-09,ARAMARK REFRESHMENT SERVICES,03/04/16,03/04/16,FOOD & BEVERAGE,"1,656.54",2016,AP,Accounts payable,E0379842,ARAMARK REFRESHMENT SERVICES
,REPUBLICAN CONFERENCE,2016Q1,SUPPLIES AND MATERIALS,03-15,ARAMARK REFRESHMENT SERVICES,03/01/16,03/31/16,FOOD & BEVERAGE,108.00,2016,AP,Accounts payable,E0381487,ARAMARK REFRESHMENT SERVICES
,REPUBLICAN CONFERENCE,2016Q1,SUPPLIES AND MATERIALS,03-18,CITI PCARD-ADOBE CREATIVE CLOUD,01/29/16,02/28/16,SOFTWARE LESS THAN $500,370.07,2016,AP,Accounts payable,00849255,CITI PCARD-ADOBE CREATIVE CLOUD
,REPUBLICAN CONFERENCE,2016Q1,SUPPLIES AND MATERIALS,03-18,CITI PCARD-AMAZON.COM,01/29/16,02/28/16,PUBLICATIONS/REFERENCE MAT'L,15.48,2016,AP,Accounts payable,00849255,CITI PCARD-AMAZON.COM
,REPUBLICAN CONFERENCE,2016Q1,SUPPLIES AND MATERIALS,03-18,CITI PCARD-CHICK-FIL-A,01/29/16,02/28/16,FOOD & BEVERAGE,"1,788.30",2016,AP,Accounts payable,00849255,CITI PCARD-CHICK-FIL-A
,REPUBLICAN CONFERENCE,2016Q1,SUPPLIES AND MATERIALS,03-18,CITI PCARD-CORNER BAKERY,01/29/16,02/28/16,FOOD & BEVERAGE,"1,560.00",2016,AP,Accounts payable,00849255,CITI PCARD-CORNER BAKERY
,REPUBLICAN CONFERENCE,2016Q1,SUPPLIES AND MATERIALS,03-18,CITI PCARD-DROPBOX,01/29/16,02/28/16,SOFTWARE LESS THAN $500,99.00,2016,AP,Accounts payable,00849255,CITI PCARD-DROPBOX
,REPUBLICAN CONFERENCE,2016Q1,SUPPLIES AND MATERIALS,03-18,CITI PCARD-NEW YORK TIMES DIGITAL,01/29/16,02/28/16,PUBLICATIONS/REFERENCE MAT'L,15.00,2016,AP,Accounts payable,00849255,CITI PCARD-NEW YORK TIMES DIGITAL
,REPUBLICAN CONFERENCE,2016Q1,SUPPLIES AND MATERIALS,03-18,CITI PCARD-POTBELLY,01/29/16,02/28/16,FOOD & BEVERAGE,563.62,2016,AP,Accounts payable,00849255,CITI PCARD-POTBELLY
,REPUBLICAN CONFERENCE,2016Q1,SUPPLIES AND MATERIALS,03-18,CITI PCARD-QDOBA MEXICAN GRIL,01/29/16,02/28/16,FOOD & BEVERAGE,529.76,2016,AP,Accounts payable,00849255,CITI PCARD-QDOBA MEXICAN GRIL
,REPUBLICAN CONFERENCE,2016Q1,SUPPLIES AND MATERIALS,03-18,CITI PCARD-SQ ZORBA'S CAFE,01/29/16,02/28/16,FOOD & BEVERAGE,598.50,2016,AP,Accounts payable,00849255,CITI PCARD-SQ ZORBA'S CAFE
,REPUBLICAN CONFERENCE,2016Q1,SUPPLIES AND MATERIALS,03-21,DEER PARK,01/31/16,01/31/16,WATER,363.55,2016,AP,Accounts payable,00845191,DEER PARK
,REPUBLICAN CONFERENCE,2016Q1,SUPPLIES AND MATERIALS,03-23,ARAMARK REFRESHMENT SERVICES,03/04/16,03/04/16,FOOD & BEVERAGE,75.00,2016,AP,Accounts payable,E0385065,ARAMARK REFRESHMENT SERVICES
,REPUBLICAN CONFERENCE,2016Q1,SUPPLIES AND MATERIALS,03-25,ARAMARK REFRESHMENT SERVICES,03/04/16,03/04/16,WATER,60.00,2016,AP,Accounts payable,E0385979,ARAMARK REFRESHMENT SERVICES
,REPUBLICAN CONFERENCE,2016Q1,SUPPLIES AND MATERIALS,03-28,"STEVENS, PAMELA R",03/20/16,03/20/16,PUBLICATIONS/REFERENCE MAT'L,22.50,2016,AP,Accounts payable,E0385980,"STEVENS, PAMELA R"
,REPUBLICAN CONFERENCE,2016Q1,SUPPLIES AND MATERIALS,03-31,DEER PARK,02/29/16,02/29/16,WATER,183.75,2016,AP,Accounts payable,00849744,DEER PARK
,REPUBLICAN CONFERENCE,2016Q1,PERSONNEL COMPENSATION,"","BUCHELI,DANIEL C",12/01/15,01/02/16,SPECIALTY MEDIA PRESS SECRETAR,"2,305.56",2015,"","","","BUCHELI,DANIEL C"
,REPUBLICAN CONFERENCE,2016Q1,PERSONNEL COMPENSATION,"","CROCKER,NICHOLAS L",12/01/15,01/02/16,MEMBER SERVICES COORDINATOR,"4,222.22",2015,"","","","CROCKER,NICHOLAS L"
,REPUBLICAN CONFERENCE,2016Q1,PERSONNEL COMPENSATION,"","DAINES,ANNE C",12/01/15,01/02/16,COMMUNICATIONS ASSISTANT,"2,680.56",2015,"","","","DAINES,ANNE C"
,REPUBLICAN CONFERENCE,2016Q1,PERSONNEL COMPENSATION,"","DEUTSCH,JEREMY",01/01/16,01/02/16,CHIEF OF STAFF,666.67,2015,"","","","DEUTSCH,JEREMY"
,REPUBLICAN CONFERENCE,2016Q1,PERSONNEL COMPENSATION,"","DUPPLER,MARTHA C",12/01/15,01/02/16,COALITIONS DIRECTOR,"2,972.22",2015,"","","","DUPPLER,MARTHA C"
,REPUBLICAN CONFERENCE,2016Q1,PERSONNEL COMPENSATION,"","FIELD,IAN A",12/01/15,01/02/16,PRESS SECRETARY,"2,611.11",2015,"","","","FIELD,IAN A"
,REPUBLICAN CONFERENCE,2016Q1,PERSONNEL COMPENSATION,"","HALL, MIKAYLA M",12/01/15,01/02/16,SPEECH WRITER,"1,288.89",2015,"","","","HALL, MIKAYLA M"
,REPUBLICAN CONFERENCE,2016Q1,PERSONNEL COMPENSATION,"","HAUCK,KARA",01/01/16,01/02/16,COMMUNICATIONS DIRECTOR,527.78,2015,"","","","HAUCK,KARA"
,REPUBLICAN CONFERENCE,2016Q1,PERSONNEL COMPENSATION,"","HODSON,NATHAN M",12/01/15,01/02/16,DEPUTY CHIEF OF STAFF,"2,755.56",2015,"","","","HODSON,NATHAN M"
,REPUBLICAN CONFERENCE,2016Q1,PERSONNEL COMPENSATION,"","HODSON,NATHAN M",01/01/16,01/02/16,DEPUTY CHIEF OF STAFF (OTHER COMPENSATION),"1,050.00",2015,"","","","HODSON,NATHAN M"
,REPUBLICAN CONFERENCE,2016Q1,PERSONNEL COMPENSATION,"","MARK,REBECCA",12/01/15,01/02/16,SR. ADVISOR TECH POLICY/WOMEN,"2,888.89",2015,"","","","MARK,REBECCA"
,REPUBLICAN CONFERENCE,2016Q1,PERSONNEL COMPENSATION,"","MCMULLIN,DAVID E",01/01/16,01/02/16,POLICY DIRECTOR,727.78,2015,"","","","MCMULLIN,DAVID E"
,REPUBLICAN CONFERENCE,2016Q1,PERSONNEL COMPENSATION,"","NEIGHBORS,MATTHEW P",12/01/15,01/02/16,STAFF ASSISTANT,"1,666.67",2015,"","","","NEIGHBORS,MATTHEW P"
,REPUBLICAN CONFERENCE,2016Q1,PERSONNEL COMPENSATION,"","PEREZ,MEGAN C",01/01/16,01/02/16,POLICY ADVISOR,194.44,2015,"","","","PEREZ,MEGAN C"
,REPUBLICAN CONFERENCE,2016Q1,PERSONNEL COMPENSATION,"","ROGERS,SARAH E",12/01/15,01/02/16,DIRECTOR OF MEMBER SERVICES,"3,122.22",2015,"","","","ROGERS,SARAH E"
,REPUBLICAN CONFERENCE,2016Q1,PERSONNEL COMPENSATION,"","ROOS,AMBER E",01/01/16,01/02/16,FINANCE ASSISTANT,51.67,2015,"","","","ROOS,AMBER E"
,REPUBLICAN CONFERENCE,2016Q1,PERSONNEL COMPENSATION,"","ROSS, JOHN E",01/01/16,01/02/16,FINANCE DIRECTOR,58.89,2015,"","","","ROSS, JOHN E"
,REPUBLICAN CONFERENCE,2016Q1,PERSONNEL COMPENSATION,"","SMENTEK,DAVID",12/01/15,01/02/16,POLICY COORDINATOR,"2,750.00",2015,"","","","SMENTEK,DAVID"
,REPUBLICAN CONFERENCE,2016Q1,PERSONNEL COMPENSATION,"","STEVENS,PAMELA R",12/01/15,01/02/16,DIRECTOR OF MEDIA AFFAIRS,"2,730.56",2015,"","","","STEVENS,PAMELA R"
,REPUBLICAN CONFERENCE,2016Q1,PERSONNEL COMPENSATION,"","SUNDAY,JESSICA M",12/01/15,01/02/16,SCHEDULER,"5,190.89",2015,"","","","SUNDAY,JESSICA M"
,REPUBLICAN CONFERENCE,2016Q1,PERSONNEL COMPENSATION,"","THORNE,DRAY A",01/01/16,01/02/16,SYSTEMS ADMINISTRATOR,66.67,2015,"","","","THORNE,DRAY A"
,REPUBLICAN CONFERENCE,2016Q1,TRAVEL,01-21,CITI PCARD-UBER TECHNOLOGIES INC,11/29/15,12/28/15,TAXI/PARKING/TOLLS,182.07,2015,AP,Accounts payable,00838422,CITI PCARD-UBER TECHNOLOGIES INC
,REPUBLICAN CONFERENCE,2016Q1,TRAVEL,03-09,"STEVENS, PAMELA R",08/06/15,12/17/15,TAXI/PARKING/TOLLS,82.05,2015,AP,Accounts payable,E0379837,"STEVENS, PAMELA R"
,REPUBLICAN CONFERENCE,2016Q1,"RENT, COMMUNICATION, UTILITIES",01-04,JOHN DAVID GILMORE,12/29/15,12/29/15,RECORDING (OUTSIDE),"1,000.00",2015,AP,Accounts payable,E0357299,JOHN DAVID GILMORE
,REPUBLICAN CONFERENCE,2016Q1,PRINTING AND REPRODUCTION,01-21,CITI PCARD-GETTY IMAGES,11/29/15,12/28/15,PRINTING & REPRODUCTION,199.00,2015,AP,Accounts payable,00838422,CITI PCARD-GETTY IMAGES
,REPUBLICAN CONFERENCE,2016Q1,PRINTING AND REPRODUCTION,01-21,CITI PCARD-WWW.ISTOCK.COM,11/29/15,12/28/15,PRINTING & REPRODUCTION,93.00,2015,AP,Accounts payable,00838422,CITI PCARD-WWW.ISTOCK.COM
,REPUBLICAN CONFERENCE,2016Q1,PRINTING AND REPRODUCTION,02-12,SHARP ELECTRONICS CORPORATION,10/01/15,01/01/16,PRINTING & REPRODUCTION,"1,094.28",2015,AP,Accounts payable,E0370617,SHARP ELECTRONICS CORPORATION
,REPUBLICAN CONFERENCE,2016Q1,OTHER SERVICES,01-28,SEAN R PARNELL,11/01/15,12/31/15,CONSULTANT CONTRACT SERVICE,"8,300.00",2015,AP,Accounts payable,E0364291,SEAN R PARNELL
,REPUBLICAN CONFERENCE,2016Q1,SUPPLIES AND MATERIALS,01-21,CITI PCARD-ADOBE CREATIVE CLOUD,11/29/15,12/28/15,SOFTWARE LESS THAN $500,370.07,2015,AP,Accounts payable,00838422,CITI PCARD-ADOBE CREATIVE CLOUD
,REPUBLICAN CONFERENCE,2016Q1,SUPPLIES AND MATERIALS,01-21,CITI PCARD-CHICK-FIL-A,11/29/15,12/28/15,FOOD & BEVERAGE,"3,074.30",2015,AP,Accounts payable,00838422,CITI PCARD-CHICK-FIL-A
,REPUBLICAN CONFERENCE,2016Q1,SUPPLIES AND MATERIALS,01-21,CITI PCARD-CORNER BAKERY,11/29/15,12/28/15,FOOD & BEVERAGE,"4,276.53",2015,AP,Accounts payable,00838422,CITI PCARD-CORNER BAKERY
,REPUBLICAN CONFERENCE,2016Q1,SUPPLIES AND MATERIALS,01-21,CITI PCARD-GIANT,11/29/15,12/28/15,FOOD & BEVERAGE,25.96,2015,AP,Accounts payable,00838422,CITI PCARD-GIANT
,REPUBLICAN CONFERENCE,2016Q1,SUPPLIES AND MATERIALS,01-21,CITI PCARD-NEW YORK TIMES DIGITAL,11/29/15,12/28/15,PUBLICATIONS/REFERENCE MAT'L,15.00,2015,AP,Accounts payable,00838422,CITI PCARD-NEW YORK TIMES DIGITAL
,REPUBLICAN CONFERENCE,2016Q1,SUPPLIES AND MATERIALS,01-21,CITI PCARD-PANERA BREAD,11/29/15,12/28/15,FOOD & BEVERAGE,242.86,2015,AP,Accounts payable,00838422,CITI PCARD-PANERA BREAD
,REPUBLICAN CONFERENCE,2016Q1,SUPPLIES AND MATERIALS,01-21,CITI PCARD-PARTY DEPOT,11/29/15,12/28/15,HABITATION EXPENSE,90.23,2015,AP,Accounts payable,00838422,CITI PCARD-PARTY DEPOT
,REPUBLICAN CONFERENCE,2016Q1,SUPPLIES AND MATERIALS,01-21,CITI PCARD-QDOBA MEXICAN GRIL,11/29/15,12/28/15,FOOD & BEVERAGE,"3,832.98",2015,AP,Accounts payable,00838422,CITI PCARD-QDOBA MEXICAN GRIL
,REPUBLICAN CONFERENCE,2016Q1,SUPPLIES AND MATERIALS,01-21,CITI PCARD-SQ ZORBA'S CAFE,11/29/15,12/28/15,FOOD & BEVERAGE,"1,497.00",2015,AP,Accounts payable,00838422,CITI PCARD-SQ ZORBA'S CAFE
,REPUBLICAN CONFERENCE,2016Q1,SUPPLIES AND MATERIALS,01-21,"CITI PCARD-WE, THE PIZZA",11/29/15,12/28/15,FOOD & BEVERAGE,369.36,2015,AP,Accounts payable,00838422,"CITI PCARD-WE, THE PIZZA"
,REPUBLICAN CONFERENCE,2016Q1,SUPPLIES AND MATERIALS,01-21,CITI PCARD-ZORBA'S CAFE,11/29/15,12/28/15,FOOD & BEVERAGE,-369.00,2015,AP,Accounts payable,00838422,CITI PCARD-ZORBA'S CAFE
,REPUBLICAN CONFERENCE,2016Q1,SUPPLIES AND MATERIALS,01-29,DEER PARK,12/31/15,12/31/15,WATER,449.50,2015,AP,Accounts payable,00838624,DEER PARK
,CHIEF ADMIN OFCR OF THE HOUSE,2016Q1,PERSONNEL COMPENSATION,"","ABBOTT, JESSICA A",01/01/16,03/31/16,FINANCIAL ANALYST,"33,189.51",FISCAL YEAR 2016,"","","","ABBOTT, JESSICA A"
,CHIEF ADMIN OFCR OF THE HOUSE,2016Q1,PERSONNEL COMPENSATION,"","ABEL, TIMOTHY",01/01/16,03/31/16,SR TECHNICAL SUPPORT REP (A),"24,724.26",FISCAL YEAR 2016,"","","","ABEL, TIMOTHY"
,CHIEF ADMIN OFCR OF THE HOUSE,2016Q1,PERSONNEL COMPENSATION,"","ACUESTA,JULY J",01/01/16,03/31/16,SENIOR SYSTEMS ENGINEER,"28,397.01",FISCAL YEAR 2016,"","","","ACUESTA,JULY J"
,CHIEF ADMIN OFCR OF THE HOUSE,2016Q1,PERSONNEL COMPENSATION,"","ADDISON, TRACY",01/01/16,03/31/16,LOGISTICS & DIST SPEC (A),"11,972.25",FISCAL YEAR 2016,"","","","ADDISON, TRACY"
,CHIEF ADMIN OFCR OF THE HOUSE,2016Q1,PERSONNEL COMPENSATION,"","ADELAKUN, DEEN A",01/01/16,03/31/16,SR TECH SOLUTIONS ENGINEER,"23,340.00",FISCAL YEAR 2016,"","","","ADELAKUN, DEEN A"
,CHIEF ADMIN OFCR OF THE HOUSE,2016Q1,PERSONNEL COMPENSATION,"","ADENIJI,ADERONKE F",01/01/16,03/31/16,TEAM LEAD ASSURANCE &RISK MGMT,"33,762.75",FISCAL YEAR 2016,"","","","ADENIJI,ADERONKE F"
,CHIEF ADMIN OFCR OF THE HOUSE,2016Q1,PERSONNEL COMPENSATION,"","AGEE, MATTHEW P",01/01/16,03/31/16,RESOURCE MANAGER,"32,043.51",FISCAL YEAR 2016,"","","","AGEE, MATTHEW P"
,CHIEF ADMIN OFCR OF THE HOUSE,2016Q1,PERSONNEL COMPENSATION,"","AGEE, TINA M",12/01/15,12/09/15,DIRECTOR PHOTOGRAPHY (OTHER COMPENSATION),"9,329.42",FISCAL YEAR 2016,"","","","AGEE, TINA M"
,CHIEF ADMIN OFCR OF THE HOUSE,2016Q1,PERSONNEL COMPENSATION,"","AGNEW, ROSE M",01/01/16,03/31/16,SR PAYROLL & BENS GENERALIST,"21,498.24",FISCAL YEAR 2016,"","","","AGNEW, ROSE M"
,CHIEF ADMIN OFCR OF THE HOUSE,2016Q1,PERSONNEL COMPENSATION,"","AGNEW, ROSE M",12/01/15,01/31/16,SR PAYROLL & BENS GENERALIST (OVERTIME),"4,351.64",FISCAL YEAR 2016,"","","","AGNEW, ROSE M"
,CHIEF ADMIN OFCR OF THE HOUSE,2016Q1,PERSONNEL COMPENSATION,"","AHUJA, KALPANA A",01/01/16,03/31/16,DIRECTOR WEB SYSTEMS,"33,859.50",FISCAL YEAR 2016,"","","","AHUJA, KALPANA A"
,CHIEF ADMIN OFCR OF THE HOUSE,2016Q1,PERSONNEL COMPENSATION,"","ALBERS,BARBARA V",01/01/16,03/31/16,MANAGER WEB SERVICES,"31,469.01",FISCAL YEAR 2016,"","","","ALBERS,BARBARA V"
,CHIEF ADMIN OFCR OF THE HOUSE,2016Q1,PERSONNEL COMPENSATION,"","ALEXANDER, GORDON",01/01/16,03/31/16,TECH SOLUTIONS ENGINEER,"18,757.74",FISCAL YEAR 2016,"","","","ALEXANDER, GORDON"
,CHIEF ADMIN OFCR OF THE HOUSE,2016Q1,PERSONNEL COMPENSATION,"","ALLEN,STEPHANIE D",01/01/16,02/29/16,ADMINISTRATIVE SPECIALIST,"7,488.16",FISCAL YEAR 2016,"","","","ALLEN,STEPHANIE D"
,CHIEF ADMIN OFCR OF THE HOUSE,2016Q1,PERSONNEL COMPENSATION,"","ALLEN,STEPHANIE D",02/01/16,02/29/16,ADMINISTRATIVE SPECIALIST (OTHER COMPENSATION),31.20,FISCAL YEAR 2016,"","","","ALLEN,STEPHANIE D"
,CHIEF ADMIN OFCR OF THE HOUSE,2016Q1,PERSONNEL COMPENSATION,"","ALLISON, KEVIN M",01/01/16,03/31/16,LOGISTICS & DIST SPEC (A),"13,976.01",FISCAL YEAR 2016,"","","","ALLISON, KEVIN M"
,CHIEF ADMIN OFCR OF THE HOUSE,2016Q1,PERSONNEL COMPENSATION,"","ALLISON, KEVIN M",01/01/16,01/31/16,LOGISTICS & DIST SPEC (A) (OVERTIME),161.26,FISCAL YEAR 2016,"","","","ALLISON, KEVIN M"
,CHIEF ADMIN OFCR OF THE HOUSE,2016Q1,PERSONNEL COMPENSATION,"","ALSTON,MARK A",01/01/16,03/31/16,TECH SOLUTIONS ENGINEER,"18,356.49",FISCAL YEAR 2016,"","","","ALSTON,MARK A"
,CHIEF ADMIN OFCR OF THE HOUSE,2016Q1,PERSONNEL COMPENSATION,"","ALVEY, LISA M",01/01/16,03/31/16,FINANCIAL COUNSELOR,"21,400.50",FISCAL YEAR 2016,"","","","ALVEY, LISA M"
,CHIEF ADMIN OFCR OF THE HOUSE,2016Q1,PERSONNEL COMPENSATION,"","ANDERSEN, FREDERIC E",01/01/16,03/31/16,ASSISTANT DIRECTOR,"23,340.00",FISCAL YEAR 2016,"","","","ANDERSEN, FREDERIC E"
,CHIEF ADMIN OFCR OF THE HOUSE,2016Q1,PERSONNEL COMPENSATION,"","ANDERSON, DONTRELL",01/01/16,03/31/16,FINANCIAL COUNSELOR,"17,148.99",FISCAL YEAR 2016,"","","","ANDERSON, DONTRELL"
,CHIEF ADMIN OFCR OF THE HOUSE,2016Q1,PERSONNEL COMPENSATION,"","ANDREWS,THOMAS",01/01/16,03/31/16,VOICE & VIDEO BRANCH MGR (A),"35,126.01",FISCAL YEAR 2016,"","","","ANDREWS,THOMAS"
,CHIEF ADMIN OFCR OF THE HOUSE,2016Q1,PERSONNEL COMPENSATION,"","ANDREWS-MOBLEY, RACHELLE G",01/01/16,03/31/16,PRINCIPAL TECHNICAL TRAINER,"27,347.25",FISCAL YEAR 2016,"","","","ANDREWS-MOBLEY, RACHELLE G"
,CHIEF ADMIN OFCR OF THE HOUSE,2016Q1,PERSONNEL COMPENSATION,"","APPIAH,JOYCE S",02/22/16,03/31/16,SENIOR BENEFITS SPECIALIST,"11,633.92",FISCAL YEAR 2016,"","","","APPIAH,JOYCE S"
,CHIEF ADMIN OFCR OF THE HOUSE,2016Q1,PERSONNEL COMPENSATION,"","ARMSTRONG,JANCIERA C",01/01/16,03/31/16,"MANAGER, ACCOUNTING","27,870.75",FISCAL YEAR 2016,"","","","ARMSTRONG,JANCIERA C"
,CHIEF ADMIN OFCR OF THE HOUSE,2016Q1,PERSONNEL COMPENSATION,"","ARTHUR, CAMILLA S",01/01/16,03/31/16,ASSISTANT CAO,"42,102.75",FISCAL YEAR 2016,"","","","ARTHUR, CAMILLA S"
,CHIEF ADMIN OFCR OF THE HOUSE,2016Q1,PERSONNEL COMPENSATION,"","ASATA,HEATHER O",01/01/16,03/31/16,ADMINISTRATIVE SPECIALIST,"14,292.51",FISCAL YEAR 2016,"","","","ASATA,HEATHER O"
,CHIEF ADMIN OFCR OF THE HOUSE,2016Q1,PERSONNEL COMPENSATION,"","ATCHISON, DARRYL A",01/01/16,03/31/16,DEPUTY CHIEF ENGINEER,"32,615.25",FISCAL YEAR 2016,"","","","ATCHISON, DARRYL A"
,CHIEF ADMIN OFCR OF THE HOUSE,2016Q1,PERSONNEL COMPENSATION,"","AWAN, OMAR",01/01/16,03/31/16,SR BUSINESS PROCESS APPL SPEC,"37,027.26",FISCAL YEAR 2016,"","","","AWAN, OMAR"
,CHIEF ADMIN OFCR OF THE HOUSE,2016Q1,PERSONNEL COMPENSATION,"","BAHAM,TODD",01/01/16,03/31/16,BROADCAST PRODUCTION TECHNICIA,"19,779.24",FISCAL YEAR 2016,"","","","BAHAM,TODD"
,CHIEF ADMIN OFCR OF THE HOUSE,2016Q1,PERSONNEL COMPENSATION,"","BAHAM,TODD",12/01/15,02/29/16,BROADCAST PRODUCTION TECHNICIA (OVERTIME),"2,544.01",FISCAL YEAR 2016,"","","","BAHAM,TODD"
,CHIEF ADMIN OFCR OF THE HOUSE,2016Q1,PERSONNEL COMPENSATION,"","BAILEY, DAVID E",01/01/16,03/31/16,SR TECHNICAL SUPPORT REP (A),"25,644.24",FISCAL YEAR 2016,"","","","BAILEY, DAVID E"
,CHIEF ADMIN OFCR OF THE HOUSE,2016Q1,PERSONNEL COMPENSATION,"","BAKER, DARRELL F",01/01/16,03/31/16,SR NETWORK COMM SPEC,"26,819.76",FISCAL YEAR 2016,"","","","BAKER, DARRELL F"
,CHIEF ADMIN OFCR OF THE HOUSE,2016Q1,PERSONNEL COMPENSATION,"","BANFIELD,KELLI C",01/01/16,03/31/16,BROADCAST ENGINEER/PROD SPEC,"22,421.25",FISCAL YEAR 2016,"","","","BANFIELD,KELLI C"
,CHIEF ADMIN OFCR OF THE HOUSE,2016Q1,PERSONNEL COMPENSATION,"","BANKS,BIANCA N",01/01/16,03/31/16,RETAIL INVENTORY SPECIALIST,"17,550.51",FISCAL YEAR 2016,"","","","BANKS,BIANCA N"
,CHIEF ADMIN OFCR OF THE HOUSE,2016Q1,PERSONNEL COMPENSATION,"","BARBEE, GLENN",01/01/16,03/31/16,NETWORK TECHNICIAN,"23,340.00",FISCAL YEAR 2016,"","","","BARBEE, GLENN"
,CHIEF ADMIN OFCR OF THE HOUSE,2016Q1,PERSONNEL COMPENSATION,"","BARBEE,DONELL G",01/01/16,03/31/16,RETAIL INVENTORY SPECIALIST,"10,754.76",FISCAL YEAR 2016,"","","","BARBEE,DONELL G"
,CHIEF ADMIN OFCR OF THE HOUSE,2016Q1,PERSONNEL COMPENSATION,"","BARBOUR, JUNE M",01/01/16,03/31/16,BROADCAST PRODUCTION TECHNICIA,"19,779.24",FISCAL YEAR 2016,"","","","BARBOUR, JUNE M"
,CHIEF ADMIN OFCR OF THE HOUSE,2016Q1,PERSONNEL COMPENSATION,"","BARBOUR, JUNE M",12/01/15,02/29/16,BROADCAST PRODUCTION TECHNICIA (OVERTIME),312.16,FISCAL YEAR 2016,"","","","BARBOUR, JUNE M"
,CHIEF ADMIN OFCR OF THE HOUSE,2016Q1,PERSONNEL COMPENSATION,"","BARCINIAK, DANA L",01/01/16,03/31/16,SENIOR PHOTOGRAPHER,"22,618.74",FISCAL YEAR 2016,"","","","BARCINIAK, DANA L"
,CHIEF ADMIN OFCR OF THE HOUSE,2016Q1,PERSONNEL COMPENSATION,"","BARCINIAK, DANA L",01/01/16,01/31/16,SENIOR PHOTOGRAPHER (OVERTIME),108.74,FISCAL YEAR 2016,"","","","BARCINIAK, DANA L"
,CHIEF ADMIN OFCR OF THE HOUSE,2016Q1,PERSONNEL COMPENSATION,"","BAREFOOT,JEFFREY",01/01/16,03/31/16,BROADCAST ENGINEER/PROD SPEC,"20,572.74",FISCAL YEAR 2016,"","","","BAREFOOT,JEFFREY"
,CHIEF ADMIN OFCR OF THE HOUSE,2016Q1,PERSONNEL COMPENSATION,"","BAREFOOT,JEFFREY",12/01/15,12/31/15,BROADCAST ENGINEER/PROD SPEC. (OVERTIME),44.06,FISCAL YEAR 2016,"","","","BAREFOOT,JEFFREY"
,CHIEF ADMIN OFCR OF THE HOUSE,2016Q1,PERSONNEL COMPENSATION,"","BARNABAE, MONICA M",01/01/16,03/31/16,DIRECTOR-HOUSE CHILD CARE CNTR,"28,397.01",FISCAL YEAR 2016,"","","","BARNABAE, MONICA M"
,CHIEF ADMIN OFCR OF THE HOUSE,2016Q1,PERSONNEL COMPENSATION,"","BARR,PAUL",12/01/15,12/23/15,RECEIVING/WAREHOUSE SPECIALIST,-961.26,FISCAL YEAR 2016,"","","","BARR,PAUL"
,CHIEF ADMIN OFCR OF THE HOUSE,2016Q1,PERSONNEL COMPENSATION,"","BARR,PAUL",12/01/15,03/31/16,"SUPERVISOR,LOGISTICS & DIST (A","17,162.73",FISCAL YEAR 2016,"","","","BARR,PAUL"
,CHIEF ADMIN OFCR OF THE HOUSE,2016Q1,PERSONNEL COMPENSATION,"","BARRETT, ROBERT R",01/01/16,03/31/16,"DIRECTOR, ENTERPRISE APPLICATI","38,692.26",FISCAL YEAR 2016,"","","","BARRETT, ROBERT R"
,CHIEF ADMIN OFCR OF THE HOUSE,2016Q1,PERSONNEL COMPENSATION,"","BARTON,TISHA R",01/01/16,03/31/16,EXECUTIVE ASSISTANT,"18,158.49",FISCAL YEAR 2016,"","","","BARTON,TISHA R"
,CHIEF ADMIN OFCR OF THE HOUSE,2016Q1,PERSONNEL COMPENSATION,"","BASILIO, TYRONE A",01/01/16,03/31/16,TECHNICAL SUPPORT REP,"20,591.01",FISCAL YEAR 2016,"","","","BASILIO, TYRONE A"
,CHIEF ADMIN OFCR OF THE HOUSE,2016Q1,PERSONNEL COMPENSATION,"","BATES, DEBORAH A",01/01/16,03/31/16,PRODUCTION/ENGINEER SPEC (TEMP,"10,692.35",FISCAL YEAR 2016,"","","","BATES, DEBORAH A"
,CHIEF ADMIN OFCR OF THE HOUSE,2016Q1,PERSONNEL COMPENSATION,"","BATH,GEORGE J",01/01/16,03/31/16,SENIOR ADVISOR,"42,102.75",FISCAL YEAR 2016,"","","","BATH,GEORGE J"
,CHIEF ADMIN OFCR OF THE HOUSE,2016Q1,PERSONNEL COMPENSATION,"","BEAUBIAN, TRACI R",01/01/16,03/31/16,CHIEF FINANCIAL OFFICER,"42,102.75",FISCAL YEAR 2016,"","","","BEAUBIAN, TRACI R"
,CHIEF ADMIN OFCR OF THE HOUSE,2016Q1,PERSONNEL COMPENSATION,"","BEIDEL, BERNARD E",01/01/16,03/31/16,"DIR, OFFICE OF EMPLOYEE ASSIST","42,102.75",FISCAL YEAR 2016,"","","","BEIDEL, BERNARD E"
,CHIEF ADMIN OFCR OF THE HOUSE,2016Q1,PERSONNEL COMPENSATION,"","BELL,FRANK E",01/01/16,03/31/16,SENIOR TECHNICAL ADVISOR,"35,126.01",FISCAL YEAR 2016,"","","","BELL,FRANK E"
,CHIEF ADMIN OFCR OF THE HOUSE,2016Q1,PERSONNEL COMPENSATION,"","BENN, PHILLIP F",01/01/16,03/31/16,ELECTRONICS TECHNICIAN (A),"23,803.26",FISCAL YEAR 2016,"","","","BENN, PHILLIP F"
,CHIEF ADMIN OFCR OF THE HOUSE,2016Q1,PERSONNEL COMPENSATION,"","BENN, PHILLIP F",01/01/16,02/29/16,ELECTRONICS TECHNICIAN (A) (OVERTIME),457.75,FISCAL YEAR 2016,"","","","BENN, PHILLIP F"
,CHIEF ADMIN OFCR OF THE HOUSE,2016Q1,PERSONNEL COMPENSATION,"","BENT,BENETO",03/01/16,03/31/16,JOURNEYMAN TEXTILE SPEC,"4,296.33",FISCAL YEAR 2016,"","","","BENT,BENETO"
,CHIEF ADMIN OFCR OF THE HOUSE,2016Q1,PERSONNEL COMPENSATION,"","BERGER, DONALD W",01/01/16,03/31/16,TECHNICAL DIRECTOR (A),"23,915.50",FISCAL YEAR 2016,"","","","BERGER, DONALD W"
,CHIEF ADMIN OFCR OF THE HOUSE,2016Q1,PERSONNEL COMPENSATION,"","BERGER, DONALD W",12/01/15,01/31/16,TECHNICAL DIRECTOR (A) (OVERTIME),249.03,FISCAL YEAR 2016,"","","","BERGER, DONALD W"
,CHIEF ADMIN OFCR OF THE HOUSE,2016Q1,PERSONNEL COMPENSATION,"","BERRY,JOSEPH B",01/01/16,03/31/16,SYSTEMS ENGINEER,"23,369.41",FISCAL YEAR 2016,"","","","BERRY,JOSEPH B"
,CHIEF ADMIN OFCR OF THE HOUSE,2016Q1,PERSONNEL COMPENSATION,"","BEST, CHARLENE",01/01/16,03/31/16,MANAGER,"24,687.92",FISCAL YEAR 2016,"","","","BEST, CHARLENE"
,CHIEF ADMIN OFCR OF THE HOUSE,2016Q1,PERSONNEL COMPENSATION,"","BETHEA,LASHON L",01/01/16,03/31/16,TECHNICAL TRAINER,"26,229.49",FISCAL YEAR 2016,"","","","BETHEA,LASHON L"
,CHIEF ADMIN OFCR OF THE HOUSE,2016Q1,PERSONNEL COMPENSATION,"","BILLARD, MICHAEL A",01/01/16,03/31/16,COMMUNICATIONS SPEC,"25,920.99",FISCAL YEAR 2016,"","","","BILLARD, MICHAEL A"
,CHIEF ADMIN OFCR OF THE HOUSE,2016Q1,PERSONNEL COMPENSATION,"","BILLUPS, BRIAN E",01/01/16,03/31/16,NETWORK TECHNICIAN (A),"20,184.99",FISCAL YEAR 2016,"","","","BILLUPS, BRIAN E"
,CHIEF ADMIN OFCR OF THE HOUSE,2016Q1,PERSONNEL COMPENSATION,"","BLAKLEY,JEFFREY S",03/07/16,03/31/16,DIRECTOR PHOTOGRAPHY,"7,011.33",FISCAL YEAR 2016,"","","","BLAKLEY,JEFFREY S"
,CHIEF ADMIN OFCR OF THE HOUSE,2016Q1,PERSONNEL COMPENSATION,"","BLAKNEY, HAROLD",01/01/16,03/31/16,SENIOR SYSTEMS ENGINEER,"38,929.74",FISCAL YEAR 2016,"","","","BLAKNEY, HAROLD"
,CHIEF ADMIN OFCR OF THE HOUSE,2016Q1,PERSONNEL COMPENSATION,"","BOGAN, DAVID S",01/01/16,03/31/16,"SUPERVISOR, RETAIL INVENTORY","20,591.01",FISCAL YEAR 2016,"","","","BOGAN, DAVID S"
,CHIEF ADMIN OFCR OF THE HOUSE,2016Q1,PERSONNEL COMPENSATION,"","BOGER, KELLY M",01/01/16,03/31/16,ACCOUNT MANAGEMENT COUNSELOR,"20,591.01",FISCAL YEAR 2016,"","","","BOGER, KELLY M"
,CHIEF ADMIN OFCR OF THE HOUSE,2016Q1,PERSONNEL COMPENSATION,"","BOGER, KELLY M",11/01/15,11/30/15,ACCOUNT MANAGEMENT COUNSELOR (OVERTIME),941.80,FISCAL YEAR 2016,"","","","BOGER, KELLY M"
,CHIEF ADMIN OFCR OF THE HOUSE,2016Q1,PERSONNEL COMPENSATION,"","BOLDIG, CHRISTOPHER R",01/01/16,03/31/16,ASSOCIATE ADMIN. COUNSEL,"30,898.74",FISCAL YEAR 2016,"","","","BOLDIG, CHRISTOPHER R"
,CHIEF ADMIN OFCR OF THE HOUSE,2016Q1,PERSONNEL COMPENSATION,"","BOOKER, CARLOS",01/01/16,03/31/16,SALES SPECIALIST,"10,754.76",FISCAL YEAR 2016,"","","","BOOKER, CARLOS"
,CHIEF ADMIN OFCR OF THE HOUSE,2016Q1,PERSONNEL COMPENSATION,"","BOONE, RUSSELL",01/01/16,03/31/16,TECHNICAL SUPPORT REP,"22,618.74",FISCAL YEAR 2016,"","","","BOONE, RUSSELL"
,CHIEF ADMIN OFCR OF THE HOUSE,2016Q1,PERSONNEL COMPENSATION,"","BOWERS,KAREN L",01/01/16,03/31/16,FINANCIAL COUNSELOR,"20,184.99",FISCAL YEAR 2016,"","","","BOWERS,KAREN L"
,CHIEF ADMIN OFCR OF THE HOUSE,2016Q1,PERSONNEL COMPENSATION,"","BOWLDING, SONIA R",01/01/16,03/31/16,REC/WAREHOUSE SPEC (A),"11,668.50",FISCAL YEAR 2016,"","","","BOWLDING, SONIA R"
,CHIEF ADMIN OFCR OF THE HOUSE,2016Q1,PERSONNEL COMPENSATION,"","BOWLES, JAMES A",01/01/16,02/29/16,JOURNEYMAN FURNITURE SPEC,"13,579.34",FISCAL YEAR 2016,"","","","BOWLES, JAMES A"
,CHIEF ADMIN OFCR OF THE HOUSE,2016Q1,PERSONNEL COMPENSATION,"","BOWLES, JAMES A",02/01/16,02/29/16,JOURNEYMAN FURNITURE SPEC. (OTHER COMPENSATION),"6,591.63",FISCAL YEAR 2016,"","","","BOWLES, JAMES A"
,CHIEF ADMIN OFCR OF THE HOUSE,2016Q1,PERSONNEL COMPENSATION,"","BOWLING-STOKES,CHAUNETTE L",01/01/16,03/31/16,MANAGEMENT ANALYST,"24,534.00",FISCAL YEAR 2016,"","","","BOWLING-STOKES,CHAUNETTE L"
,CHIEF ADMIN OFCR OF THE HOUSE,2016Q1,PERSONNEL COMPENSATION,"","BOWMAN,SHELIA",01/01/16,03/31/16,FINANCIAL COUNSELOR,"17,416.67",FISCAL YEAR 2016,"","","","BOWMAN,SHELIA"
,CHIEF ADMIN OFCR OF THE HOUSE,2016Q1,PERSONNEL COMPENSATION,"","BOYD, KRISTIE N",12/01/15,02/29/16,PHOTOGRAPHER/LAB TECH (TEMP),"12,207.46",FISCAL YEAR 2016,"","","","BOYD, KRISTIE N"
,CHIEF ADMIN OFCR OF THE HOUSE,2016Q1,PERSONNEL COMPENSATION,"","BOYD, PETRINA",01/01/16,03/31/16,SALES SPECIALIST,"12,145.74",FISCAL YEAR 2016,"","","","BOYD, PETRINA"
,CHIEF ADMIN OFCR OF THE HOUSE,2016Q1,PERSONNEL COMPENSATION,"","BOYLE, KEVIN J",01/01/16,03/31/16,SR BUSINESS PROCESS APPL SPEC,"40,200.00",FISCAL YEAR 2016,"","","","BOYLE, KEVIN J"
,CHIEF ADMIN OFCR OF THE HOUSE,2016Q1,PERSONNEL COMPENSATION,"","BRACKENS, ROBERT",01/01/16,03/31/16,BROADCAST PRODUCTION TECHNICIA,"22,421.25",FISCAL YEAR 2016,"","","","BRACKENS, ROBERT"
,CHIEF ADMIN OFCR OF THE HOUSE,2016Q1,PERSONNEL COMPENSATION,"","BRACKENS, ROBERT",01/01/16,02/29/16,BROADCAST PRODUCTION TECHNICIA (OVERTIME),668.32,FISCAL YEAR 2016,"","","","BRACKENS, ROBERT"
,CHIEF ADMIN OFCR OF THE HOUSE,2016Q1,PERSONNEL COMPENSATION,"","BRADLEY,NATHANIEL R",01/01/16,03/31/16,"DIRECTOR, TECHNOLOGY SUPPORT","33,219.24",FISCAL YEAR 2016,"","","","BRADLEY,NATHANIEL R"
,CHIEF ADMIN OFCR OF THE HOUSE,2016Q1,PERSONNEL COMPENSATION,"","BRADY,JOHN R",01/01/16,03/31/16,JOURNEYMAN TEXTILE SPEC,"12,539.49",FISCAL YEAR 2016,"","","","BRADY,JOHN R"
,CHIEF ADMIN OFCR OF THE HOUSE,2016Q1,PERSONNEL COMPENSATION,"","BRAXTON, BRANDON A",01/01/16,03/31/16,LOGISTICS & DIST SPEC (A),"11,364.24",FISCAL YEAR 2016,"","","","BRAXTON, BRANDON A"
,CHIEF ADMIN OFCR OF THE HOUSE,2016Q1,PERSONNEL COMPENSATION,"","BREWSTER III,JAMES E",01/01/16,03/31/16,LOGISTICS & DIST SPEC (A),"9,579.00",FISCAL YEAR 2016,"","","","BREWSTER III,JAMES E"
,CHIEF ADMIN OFCR OF THE HOUSE,2016Q1,PERSONNEL COMPENSATION,"","BREWSTER,CHRISTOPHER A",01/01/16,03/31/16,ADMINISTRATIVE COUNSEL,"42,102.75",FISCAL YEAR 2016,"","","","BREWSTER,CHRISTOPHER A"
,CHIEF ADMIN OFCR OF THE HOUSE,2016Q1,PERSONNEL COMPENSATION,"","BRIDGEFORTH, TOINETTA A",01/01/16,03/31/16,CONTRACTS SPECIALIST,"23,340.00",FISCAL YEAR 2016,"","","","BRIDGEFORTH, TOINETTA A"
,CHIEF ADMIN OFCR OF THE HOUSE,2016Q1,PERSONNEL COMPENSATION,"","BRISCOE, KEVIN",01/01/16,03/31/16,LOGISTICS & DIST SPEC (A),"11,364.24",FISCAL YEAR 2016,"","","","BRISCOE, KEVIN"
,CHIEF ADMIN OFCR OF THE HOUSE,2016Q1,PERSONNEL COMPENSATION,"","BROBBEY-MENSAH, KWAME",01/01/16,03/31/16,SR INFO SYST. SECURITY ANALYST,"29,625.24",FISCAL YEAR 2016,"","","","BROBBEY-MENSAH, KWAME"
,CHIEF ADMIN OFCR OF THE HOUSE,2016Q1,PERSONNEL COMPENSATION,"","BROWN SR, DEMETRICE T",01/01/16,03/31/16,SUPERVISOR,"27,870.75",FISCAL YEAR 2016,"","","","BROWN SR, DEMETRICE T"
,CHIEF ADMIN OFCR OF THE HOUSE,2016Q1,PERSONNEL COMPENSATION,"","BROWN, ANNETTE G",01/01/16,01/03/16,SR SOFTWARE ENGINEER,941.17,FISCAL YEAR 2016,"","","","BROWN, ANNETTE G"
,CHIEF ADMIN OFCR OF THE HOUSE,2016Q1,PERSONNEL COMPENSATION,"","BROWN, ANNETTE G",01/01/16,01/03/16,SR SOFTWARE ENGINEER (OTHER COMPENSATION),"4,254.86",FISCAL YEAR 2016,"","","","BROWN, ANNETTE G"
,CHIEF ADMIN OFCR OF THE HOUSE,2016Q1,PERSONNEL COMPENSATION,"","BROWN, KEITH S",01/01/16,03/31/16,JOURNEYMAN FURNITURE SPEC,"14,629.26",FISCAL YEAR 2016,"","","","BROWN, KEITH S"
,CHIEF ADMIN OFCR OF THE HOUSE,2016Q1,PERSONNEL COMPENSATION,"","BROWN, PAMELA L",01/01/16,03/31/16,CUSTOMER SOLUTIONS REP,"19,161.24",FISCAL YEAR 2016,"","","","BROWN, PAMELA L"
,CHIEF ADMIN OFCR OF THE HOUSE,2016Q1,PERSONNEL COMPENSATION,"","BROWN,DAVID D",01/01/16,03/31/16,FINANCIAL COUNSELOR,"17,148.99",FISCAL YEAR 2016,"","","","BROWN,DAVID D"
,CHIEF ADMIN OFCR OF THE HOUSE,2016Q1,PERSONNEL COMPENSATION,"","BROWN,JASON",01/01/16,03/31/16,BROADCAST PRODUCTION TECHNICIA,"19,779.24",FISCAL YEAR 2016,"","","","BROWN,JASON"
,CHIEF ADMIN OFCR OF THE HOUSE,2016Q1,PERSONNEL COMPENSATION,"","BROWN,JASON",01/01/16,01/31/16,BROADCAST PRODUCTION TECHNICIA (OVERTIME),294.78,FISCAL YEAR 2016,"","","","BROWN,JASON"
,CHIEF ADMIN OFCR OF THE HOUSE,2016Q1,PERSONNEL COMPENSATION,"","BROWN,KIMBERLY K",01/01/16,03/31/16,BUSINESS PROC APPLIC SPEC,"20,572.74",FISCAL YEAR 2016,"","","","BROWN,KIMBERLY K"
,CHIEF ADMIN OFCR OF THE HOUSE,2016Q1,PERSONNEL COMPENSATION,"","BROWN,LAWRENCE",01/01/16,03/31/16,BROADCAST ENGINEER/PROD SPEC,"22,880.49",FISCAL YEAR 2016,"","","","BROWN,LAWRENCE"
,CHIEF ADMIN OFCR OF THE HOUSE,2016Q1,PERSONNEL COMPENSATION,"","BROWN,LAWRENCE",02/01/16,02/29/16,BROADCAST ENGINEER/PROD SPEC. (OVERTIME),22.00,FISCAL YEAR 2016,"","","","BROWN,LAWRENCE"
,CHIEF ADMIN OFCR OF THE HOUSE,2016Q1,PERSONNEL COMPENSATION,"","BRUMMELL,JENELLE L",01/01/16,03/31/16,PARALEGAL,"18,970.26",FISCAL YEAR 2016,"","","","BRUMMELL,JENELLE L"
,CHIEF ADMIN OFCR OF THE HOUSE,2016Q1,PERSONNEL COMPENSATION,"","BUCKLER, RICKY L",01/01/16,03/31/16,PURCHASING AGENT,"19,779.24",FISCAL YEAR 2016,"","","","BUCKLER, RICKY L"
,CHIEF ADMIN OFCR OF THE HOUSE,2016Q1,PERSONNEL COMPENSATION,"","BUCKLER, TROY D",01/01/16,03/31/16,PURCHASING AGENT,"16,732.74",FISCAL YEAR 2016,"","","","BUCKLER, TROY D"
,CHIEF ADMIN OFCR OF THE HOUSE,2016Q1,PERSONNEL COMPENSATION,"","BUFORD, MARCIA L",01/01/16,03/31/16,COMPUTER FAC OP SUPERVISOR,"27,307.74",FISCAL YEAR 2016,"","","","BUFORD, MARCIA L"
,CHIEF ADMIN OFCR OF THE HOUSE,2016Q1,PERSONNEL COMPENSATION,"","BURCH, KENNETH J",01/01/16,03/31/16,BUSINESS PROC APPLIC SPEC,"31,027.74",FISCAL YEAR 2016,"","","","BURCH, KENNETH J"
,CHIEF ADMIN OFCR OF THE HOUSE,2016Q1,PERSONNEL COMPENSATION,"","BUTLER, CLARENCE G",01/01/16,03/31/16,JOURNEYMAN FURNITURE SPEC,"16,033.26",FISCAL YEAR 2016,"","","","BUTLER, CLARENCE G"
,CHIEF ADMIN OFCR OF THE HOUSE,2016Q1,PERSONNEL COMPENSATION,"","BUTLER, JAMES F",01/01/16,03/31/16,"MANAGER, PAYROLL & BENEFITS","28,924.26",FISCAL YEAR 2016,"","","","BUTLER, JAMES F"
,CHIEF ADMIN OFCR OF THE HOUSE,2016Q1,PERSONNEL COMPENSATION,"","CALLAWAY, ROBERT M",01/01/16,03/31/16,SR BROADCAST ENG./PROD SPEC,"24,995.76",FISCAL YEAR 2016,"","","","CALLAWAY, ROBERT M"
,CHIEF ADMIN OFCR OF THE HOUSE,2016Q1,PERSONNEL COMPENSATION,"","CALLAWAY, ROBERT M",12/01/15,12/31/15,SR BROADCAST ENG./PROD SPEC. (OVERTIME),23.69,FISCAL YEAR 2016,"","","","CALLAWAY, ROBERT M"
,CHIEF ADMIN OFCR OF THE HOUSE,2016Q1,PERSONNEL COMPENSATION,"","CARCAMO, ALICIA L",01/01/16,03/31/16,ACCOUNTING TECHNICIAN,"19,564.74",FISCAL YEAR 2016,"","","","CARCAMO, ALICIA L"
,CHIEF ADMIN OFCR OF THE HOUSE,2016Q1,PERSONNEL COMPENSATION,"","CARNEY, MICHAEL T",01/01/16,03/31/16,MANAGER (CAO COMPLIANCE),"28,924.26",FISCAL YEAR 2016,"","","","CARNEY, MICHAEL T"
,CHIEF ADMIN OFCR OF THE HOUSE,2016Q1,PERSONNEL COMPENSATION,"","CARNNIA,CASEY",01/01/16,03/31/16,INTERNET SYSTEMS SPECIALIST,"21,368.09",FISCAL YEAR 2016,"","","","CARNNIA,CASEY"
,CHIEF ADMIN OFCR OF THE HOUSE,2016Q1,PERSONNEL COMPENSATION,"","CARR, JOSH D",01/01/16,03/31/16,SENIOR SYSTEMS ENGINEER,"25,920.99",FISCAL YEAR 2016,"","","","CARR, JOSH D"
,CHIEF ADMIN OFCR OF THE HOUSE,2016Q1,PERSONNEL COMPENSATION,"","CARRICO, RONALD",01/01/16,03/31/16,SR BUSINESS PROCESS APPL SPEC,"37,662.51",FISCAL YEAR 2016,"","","","CARRICO, RONALD"
,CHIEF ADMIN OFCR OF THE HOUSE,2016Q1,PERSONNEL COMPENSATION,"","CARSON,LAWRENCE T",01/01/16,03/31/16,SALES SPECIALIST,"10,754.76",FISCAL YEAR 2016,"","","","CARSON,LAWRENCE T"
,CHIEF ADMIN OFCR OF THE HOUSE,2016Q1,PERSONNEL COMPENSATION,"","CARTER JR, JOHN L",01/01/16,03/31/16,"MANAGER, FINISHING","25,644.24",FISCAL YEAR 2016,"","","","CARTER JR, JOHN L"
,CHIEF ADMIN OFCR OF THE HOUSE,2016Q1,PERSONNEL COMPENSATION,"","CARTER,DELISA D",01/01/16,03/31/16,SR. SOFTWARE SPECIALIST,"36,390.99",FISCAL YEAR 2016,"","","","CARTER,DELISA D"
,CHIEF ADMIN OFCR OF THE HOUSE,2016Q1,PERSONNEL COMPENSATION,"","CASSIDY, ED",01/01/16,03/01/16,SENIOR ADVISOR,"28,923.50",FISCAL YEAR 2016,"","","","CASSIDY, ED"
,CHIEF ADMIN OFCR OF THE HOUSE,2016Q1,PERSONNEL COMPENSATION,"","CAULK, ANDREW T",01/01/16,03/31/16,MANAGER,"25,456.26",FISCAL YEAR 2016,"","","","CAULK, ANDREW T"
,CHIEF ADMIN OFCR OF THE HOUSE,2016Q1,PERSONNEL COMPENSATION,"","CHABOT, ELLIOT C",01/01/16,03/31/16,SENIOR SYSTEMS ANALYST,"33,131.01",FISCAL YEAR 2016,"","","","CHABOT, ELLIOT C"
,CHIEF ADMIN OFCR OF THE HOUSE,2016Q1,PERSONNEL COMPENSATION,"","CHAMBERS, KEVIN N",01/01/16,03/31/16,SR CUSTOMER SOLUTIONS REP,"20,996.25",FISCAL YEAR 2016,"","","","CHAMBERS, KEVIN N"
,CHIEF ADMIN OFCR OF THE HOUSE,2016Q1,PERSONNEL COMPENSATION,"","CHAMBERS, KEVIN N",02/01/16,02/29/16,SR CUSTOMER SOLUTIONS REP. (OVERTIME),"1,332.44",FISCAL YEAR 2016,"","","","CHAMBERS, KEVIN N"
,CHIEF ADMIN OFCR OF THE HOUSE,2016Q1,PERSONNEL COMPENSATION,"","CHANG, SU-HWA",01/01/16,03/31/16,SENIOR SYSTEMS ENGINEER,"32,076.24",FISCAL YEAR 2016,"","","","CHANG, SU-HWA"
,CHIEF ADMIN OFCR OF THE HOUSE,2016Q1,PERSONNEL COMPENSATION,"","CHARGUALAF,JESSE",01/01/16,03/31/16,BROADCAST ENGINEER/PROD SPEC,"20,880.92",FISCAL YEAR 2016,"","","","CHARGUALAF,JESSE"
,CHIEF ADMIN OFCR OF THE HOUSE,2016Q1,PERSONNEL COMPENSATION,"","CHARGUALAF,JESSE",12/01/15,02/29/16,BROADCAST ENGINEER/PROD SPEC. (OVERTIME),"1,249.49",FISCAL YEAR 2016,"","","","CHARGUALAF,JESSE"
,CHIEF ADMIN OFCR OF THE HOUSE,2016Q1,PERSONNEL COMPENSATION,"","CHEN, SUSAN",01/01/16,03/31/16,FINANCIAL COUNSELOR,"17,148.99",FISCAL YEAR 2016,"","","","CHEN, SUSAN"
,CHIEF ADMIN OFCR OF THE HOUSE,2016Q1,PERSONNEL COMPENSATION,"","CHIU,JIMMY",01/01/16,03/31/16,HRIS APPLICATIONS SYST ANALYST,"26,292.51",FISCAL YEAR 2016,"","","","CHIU,JIMMY"
,CHIEF ADMIN OFCR OF THE HOUSE,2016Q1,PERSONNEL COMPENSATION,"","CICALE, MICHAEL P",01/01/16,03/31/16,SR CUSTOMER SOLUTIONS REP,"20,369.01",FISCAL YEAR 2016,"","","","CICALE, MICHAEL P"
,CHIEF ADMIN OFCR OF THE HOUSE,2016Q1,PERSONNEL COMPENSATION,"","CICALE, MICHAEL P",01/01/16,01/31/16,SR CUSTOMER SOLUTIONS REP. (OVERTIME),705.08,FISCAL YEAR 2016,"","","","CICALE, MICHAEL P"
,CHIEF ADMIN OFCR OF THE HOUSE,2016Q1,PERSONNEL COMPENSATION,"","CLAGGETT, TIMOTHY A",01/01/16,03/31/16,JOURNEYMAN TEXTILE SPEC,"19,564.74",FISCAL YEAR 2016,"","","","CLAGGETT, TIMOTHY A"
,CHIEF ADMIN OFCR OF THE HOUSE,2016Q1,PERSONNEL COMPENSATION,"","CLARK, MARION",01/01/16,03/31/16,SR TELECOMMUNICATIONS ADMIN,"18,356.49",FISCAL YEAR 2016,"","","","CLARK, MARION"
,CHIEF ADMIN OFCR OF THE HOUSE,2016Q1,PERSONNEL COMPENSATION,"","CLARKE, JOHN P",01/01/16,03/31/16,SUPERVISOR,"22,880.49",FISCAL YEAR 2016,"","","","CLARKE, JOHN P"
,CHIEF ADMIN OFCR OF THE HOUSE,2016Q1,PERSONNEL COMPENSATION,"","COAKLEY,KRISTEN J",01/01/16,01/31/16,SR TELECOMMUNICATIONS ADMIN,"5,850.17",FISCAL YEAR 2016,"","","","COAKLEY,KRISTEN J"
,CHIEF ADMIN OFCR OF THE HOUSE,2016Q1,PERSONNEL COMPENSATION,"","COAKLEY,KRISTEN J",01/01/16,03/31/16,TELEPHONE SYSTEMS CONSULTANT,"14,151.71",FISCAL YEAR 2016,"","","","COAKLEY,KRISTEN J"
,CHIEF ADMIN OFCR OF THE HOUSE,2016Q1,PERSONNEL COMPENSATION,"","COBB, FAYE C",01/01/16,03/31/16,"DIR, BUDGET, POLICY & PLANNING","41,187.00",FISCAL YEAR 2016,"","","","COBB, FAYE C"
,CHIEF ADMIN OFCR OF THE HOUSE,2016Q1,PERSONNEL COMPENSATION,"","COLBERT, RAY C",01/01/16,03/31/16,SR BROADCAST ENG/PROD SPECLST,"24,534.00",FISCAL YEAR 2016,"","","","COLBERT, RAY C"
,CHIEF ADMIN OFCR OF THE HOUSE,2016Q1,PERSONNEL COMPENSATION,"","COLBERT, RAY C",12/01/15,02/29/16,SR BROADCAST ENG/PROD SPECLST (OVERTIME),433.37,FISCAL YEAR 2016,"","","","COLBERT, RAY C"
,CHIEF ADMIN OFCR OF THE HOUSE,2016Q1,PERSONNEL COMPENSATION,"","COLLINS, JOHN B",01/01/16,03/31/16,BROADCAST PRODUCTION TECHNICIA,"24,265.26",FISCAL YEAR 2016,"","","","COLLINS, JOHN B"
,CHIEF ADMIN OFCR OF THE HOUSE,2016Q1,PERSONNEL COMPENSATION,"","COLLINS, JOHN B",01/01/16,02/29/16,BROADCAST PRODUCTION TECHNICIA (OVERTIME),"2,111.52",FISCAL YEAR 2016,"","","","COLLINS, JOHN B"
,CHIEF ADMIN OFCR OF THE HOUSE,2016Q1,PERSONNEL COMPENSATION,"","COLLINS,JOEL",01/01/16,03/31/16,SR INTERNET SYSTEMS SPECIALIST,"31,469.01",FISCAL YEAR 2016,"","","","COLLINS,JOEL"
,CHIEF ADMIN OFCR OF THE HOUSE,2016Q1,PERSONNEL COMPENSATION,"","CONNOLLY,ERIC",01/01/16,03/31/16,PHOTOGRAPHER,"15,686.01",FISCAL YEAR 2016,"","","","CONNOLLY,ERIC"
,CHIEF ADMIN OFCR OF THE HOUSE,2016Q1,PERSONNEL COMPENSATION,"","CONNOLLY,ERIC",01/01/16,01/31/16,PHOTOGRAPHER (OVERTIME),113.12,FISCAL YEAR 2016,"","","","CONNOLLY,ERIC"
,CHIEF ADMIN OFCR OF THE HOUSE,2016Q1,PERSONNEL COMPENSATION,"","COOK, ERIC H",01/01/16,03/31/16,NETWORK TECHNICIAN,"20,996.25",FISCAL YEAR 2016,"","","","COOK, ERIC H"
,CHIEF ADMIN OFCR OF THE HOUSE,2016Q1,PERSONNEL COMPENSATION,"","COOPER, RICHARD S",01/01/16,03/31/16,STAFF ACCOUNTANT (A),"26,383.74",FISCAL YEAR 2016,"","","","COOPER, RICHARD S"
,CHIEF ADMIN OFCR OF THE HOUSE,2016Q1,PERSONNEL COMPENSATION,"","CORNEJO, LUIS E",01/01/16,03/31/16,SENIOR SYSTEMS ENGINEER,"26,847.51",FISCAL YEAR 2016,"","","","CORNEJO, LUIS E"
,CHIEF ADMIN OFCR OF THE HOUSE,2016Q1,PERSONNEL COMPENSATION,"","COX, BRIDGET A",01/01/16,03/31/16,SENIOR SYSTEMS ANALYST,"31,027.74",FISCAL YEAR 2016,"","","","COX, BRIDGET A"
,CHIEF ADMIN OFCR OF THE HOUSE,2016Q1,PERSONNEL COMPENSATION,"","COYNE III, THOMAS E",01/01/16,03/31/16,CHIEF LOGISTICS OFFICER,"42,102.75",FISCAL YEAR 2016,"","","","COYNE III, THOMAS E"
,CHIEF ADMIN OFCR OF THE HOUSE,2016Q1,PERSONNEL COMPENSATION,"","CRUDUP III, WILLIAM D",01/01/16,03/31/16,LOGISTICS & DIST SPEC (A),"13,060.74",FISCAL YEAR 2016,"","","","CRUDUP III, WILLIAM D"
,CHIEF ADMIN OFCR OF THE HOUSE,2016Q1,PERSONNEL COMPENSATION,"","CUFF,LOREN D",01/01/16,03/31/16,INTERNET SYSTEMS SPECIALIST,"20,591.01",FISCAL YEAR 2016,"","","","CUFF,LOREN D"
,CHIEF ADMIN OFCR OF THE HOUSE,2016Q1,PERSONNEL COMPENSATION,"","CUFFEY, LAWRENCE",01/01/16,03/31/16,SR RECVNG AND WAREHOUSING SPEC,"18,473.01",FISCAL YEAR 2016,"","","","CUFFEY, LAWRENCE"
,CHIEF ADMIN OFCR OF THE HOUSE,2016Q1,PERSONNEL COMPENSATION,"","CUPRILL, CARLOS",01/01/16,03/31/16,SR TECHNICAL SUPPORT REP,"23,648.84",FISCAL YEAR 2016,"","","","CUPRILL, CARLOS"
,CHIEF ADMIN OFCR OF THE HOUSE,2016Q1,PERSONNEL COMPENSATION,"","CUTLER JR, BENJAMIN S",01/01/16,03/31/16,PAYROLL & BENEFITS ASSISTANT,"16,033.26",FISCAL YEAR 2016,"","","","CUTLER JR, BENJAMIN S"
,CHIEF ADMIN OFCR OF THE HOUSE,2016Q1,PERSONNEL COMPENSATION,"","CUTLER JR, BENJAMIN S",01/01/16,01/31/16,PAYROLL & BENEFITS ASSISTANT (OVERTIME),200.41,FISCAL YEAR 2016,"","","","CUTLER JR, BENJAMIN S"
,CHIEF ADMIN OFCR OF THE HOUSE,2016Q1,PERSONNEL COMPENSATION,"","DAHL,RYAN S",01/01/16,03/31/16,MEDIA LOGISTICS COORDINATOR,"16,745.50",FISCAL YEAR 2016,"","","","DAHL,RYAN S"
,CHIEF ADMIN OFCR OF THE HOUSE,2016Q1,PERSONNEL COMPENSATION,"","DAHLSTROM, DARREN",01/01/16,03/31/16,JOURNEYMAN FURNITURE SPEC,"20,369.01",FISCAL YEAR 2016,"","","","DAHLSTROM, DARREN"
,CHIEF ADMIN OFCR OF THE HOUSE,2016Q1,PERSONNEL COMPENSATION,"","DAVENPORT,KAREN V",01/01/16,03/31/16,FINANCIAL ANALYST,"22,880.49",FISCAL YEAR 2016,"","","","DAVENPORT,KAREN V"
,CHIEF ADMIN OFCR OF THE HOUSE,2016Q1,PERSONNEL COMPENSATION,"","DAVIS, JOHN J",01/01/16,03/31/16,BROADCAST PRODUCTION TECHNICIA,"23,648.84",FISCAL YEAR 2016,"","","","DAVIS, JOHN J"
,CHIEF ADMIN OFCR OF THE HOUSE,2016Q1,PERSONNEL COMPENSATION,"","DAVIS, JOHN J",12/01/15,02/29/16,BROADCAST PRODUCTION TECHNICIA (OVERTIME),247.43,FISCAL YEAR 2016,"","","","DAVIS, JOHN J"
,CHIEF ADMIN OFCR OF THE HOUSE,2016Q1,PERSONNEL COMPENSATION,"","DAVIS, STACHIA G",01/01/16,03/31/16,DIR MOD FURN & TRANSITION,"28,924.26",FISCAL YEAR 2016,"","","","DAVIS, STACHIA G"
,CHIEF ADMIN OFCR OF THE HOUSE,2016Q1,PERSONNEL COMPENSATION,"","DAVIS,SCOTT K",01/01/16,03/31/16,PAYROLL & BENEFITS GENERALIST,"17,550.51",FISCAL YEAR 2016,"","","","DAVIS,SCOTT K"
,CHIEF ADMIN OFCR OF THE HOUSE,2016Q1,PERSONNEL COMPENSATION,"","DAVIS,SCOTT K",01/01/16,01/31/16,PAYROLL & BENEFITS GENERALIST (OVERTIME),345.94,FISCAL YEAR 2016,"","","","DAVIS,SCOTT K"
,CHIEF ADMIN OFCR OF THE HOUSE,2016Q1,PERSONNEL COMPENSATION,"","DAWKINS, JOANN",01/01/16,03/31/16,SR TELECOMM ADMIN,"17,082.75",FISCAL YEAR 2016,"","","","DAWKINS, JOANN"
,CHIEF ADMIN OFCR OF THE HOUSE,2016Q1,PERSONNEL COMPENSATION,"","DEAN, JOSEPH M",01/01/16,03/31/16,JOURNEYMAN TEXTILE SPEC,"20,996.25",FISCAL YEAR 2016,"","","","DEAN, JOSEPH M"
,CHIEF ADMIN OFCR OF THE HOUSE,2016Q1,PERSONNEL COMPENSATION,"","DEAN, JOSEPH M",02/01/16,02/29/16,JOURNEYMAN TEXTILE SPEC (OVERTIME),"1,110.37",FISCAL YEAR 2016,"","","","DEAN, JOSEPH M"
,CHIEF ADMIN OFCR OF THE HOUSE,2016Q1,PERSONNEL COMPENSATION,"","DEAVER,JAMES",01/01/16,03/31/16,SENIOR SYSTEMS ENGINEER,"33,189.51",FISCAL YEAR 2016,"","","","DEAVER,JAMES"
,CHIEF ADMIN OFCR OF THE HOUSE,2016Q1,PERSONNEL COMPENSATION,"","DELISLE,KALDON A",01/01/16,03/31/16,JOURNEYMAN FURNITURE SPEC,"14,988.51",FISCAL YEAR 2016,"","","","DELISLE,KALDON A"
,CHIEF ADMIN OFCR OF THE HOUSE,2016Q1,PERSONNEL COMPENSATION,"","DELUCA, ALAN",01/01/16,03/31/16,COMPUTER FACILITIES OP MGR (A),"37,027.26",FISCAL YEAR 2016,"","","","DELUCA, ALAN"
,CHIEF ADMIN OFCR OF THE HOUSE,2016Q1,PERSONNEL COMPENSATION,"","DENT,RICHARD H",01/01/16,03/31/16,JOURNEYMAN TEXTILE SPEC,"13,233.99",FISCAL YEAR 2016,"","","","DENT,RICHARD H"
,CHIEF ADMIN OFCR OF THE HOUSE,2016Q1,PERSONNEL COMPENSATION,"","DERRICK, SCOTT",01/01/16,03/31/16,GRAPHICS & DESKTOP PUBL SPEC,"23,803.26",FISCAL YEAR 2016,"","","","DERRICK, SCOTT"
,CHIEF ADMIN OFCR OF THE HOUSE,2016Q1,PERSONNEL COMPENSATION,"","DICKIE, JAMES",01/01/16,03/31/16,ENGINEERING OPS MANAGER,"32,043.51",FISCAL YEAR 2016,"","","","DICKIE, JAMES"
,CHIEF ADMIN OFCR OF THE HOUSE,2016Q1,PERSONNEL COMPENSATION,"","DIEFFENDERFER, GARY L",01/01/16,03/31/16,SR. APPLICATION DBA SPECIALIST,"33,189.51",FISCAL YEAR 2016,"","","","DIEFFENDERFER, GARY L"
,CHIEF ADMIN OFCR OF THE HOUSE,2016Q1,PERSONNEL COMPENSATION,"","DOBBINS, MARK",01/01/16,03/31/16,"MANAGER, PURCHASING","24,265.26",FISCAL YEAR 2016,"","","","DOBBINS, MARK"
,CHIEF ADMIN OFCR OF THE HOUSE,2016Q1,PERSONNEL COMPENSATION,"","DOODY,ERICA",01/01/16,01/14/16,ADMINISTRATIVE SPECIALIST,"1,841.82",FISCAL YEAR 2016,"","","","DOODY,ERICA"
,CHIEF ADMIN OFCR OF THE HOUSE,2016Q1,PERSONNEL COMPENSATION,"","DOOLEY,GENEVA",01/01/16,03/31/16,SENIOR SOFTWARE SPECIALIST,"33,762.75",FISCAL YEAR 2016,"","","","DOOLEY,GENEVA"
,CHIEF ADMIN OFCR OF THE HOUSE,2016Q1,PERSONNEL COMPENSATION,"","DOZIER, BRIAN A",01/01/16,03/31/16,INVENTORY ADMINISTRATOR,"16,033.26",FISCAL YEAR 2016,"","","","DOZIER, BRIAN A"
,CHIEF ADMIN OFCR OF THE HOUSE,2016Q1,PERSONNEL COMPENSATION,"","DUENAS, JOSEPH E",01/01/16,03/31/16,TECHNICAL SUPPORT REP,"19,779.24",FISCAL YEAR 2016,"","","","DUENAS, JOSEPH E"
,CHIEF ADMIN OFCR OF THE HOUSE,2016Q1,PERSONNEL COMPENSATION,"","DUNKLIN, KELDA Y",01/01/16,03/31/16,SR TECHNICAL SUPPORT REP,"27,307.74",FISCAL YEAR 2016,"","","","DUNKLIN, KELDA Y"
,CHIEF ADMIN OFCR OF THE HOUSE,2016Q1,PERSONNEL COMPENSATION,"","DURAN, ROLANDO",01/01/16,03/31/16,ELECTRONICS TECHNICIAN (A),"23,340.00",FISCAL YEAR 2016,"","","","DURAN, ROLANDO"
,CHIEF ADMIN OFCR OF THE HOUSE,2016Q1,PERSONNEL COMPENSATION,"","DURAN, ROLANDO",01/01/16,01/31/16,ELECTRONICS TECHNICIAN (A) (OVERTIME),179.54,FISCAL YEAR 2016,"","","","DURAN, ROLANDO"
,CHIEF ADMIN OFCR OF THE HOUSE,2016Q1,PERSONNEL COMPENSATION,"","DYSON,LAURA",01/25/16,03/31/16,SR ENTERPRISE ARCHITECT,"23,498.57",FISCAL YEAR 2016,"","","","DYSON,LAURA"
,CHIEF ADMIN OFCR OF THE HOUSE,2016Q1,PERSONNEL COMPENSATION,"","EAGLIN,HOPE J",01/01/16,03/31/16,SENIOR SECURITY ANALYST,"27,870.75",FISCAL YEAR 2016,"","","","EAGLIN,HOPE J"
,CHIEF ADMIN OFCR OF THE HOUSE,2016Q1,PERSONNEL COMPENSATION,"","EGERSON, TROY H",01/01/16,03/31/16,JOURNEYMAN TEXTILE SPEC,"19,161.24",FISCAL YEAR 2016,"","","","EGERSON, TROY H"
,CHIEF ADMIN OFCR OF THE HOUSE,2016Q1,PERSONNEL COMPENSATION,"","EGERSON, TROY H",01/01/16,02/29/16,JOURNEYMAN TEXTILE SPEC (OVERTIME),589.58,FISCAL YEAR 2016,"","","","EGERSON, TROY H"
,CHIEF ADMIN OFCR OF THE HOUSE,2016Q1,PERSONNEL COMPENSATION,"","ELIAS, ANDREW C",01/01/16,03/31/16,DEPUTY DIRECTOR,"32,076.24",FISCAL YEAR 2016,"","","","ELIAS, ANDREW C"
,CHIEF ADMIN OFCR OF THE HOUSE,2016Q1,PERSONNEL COMPENSATION,"","ELLIN, JAMES B",01/01/16,03/31/16,SR NETWORK SYSTEMS ENGINEER,"31,469.01",FISCAL YEAR 2016,"","","","ELLIN, JAMES B"
,CHIEF ADMIN OFCR OF THE HOUSE,2016Q1,PERSONNEL COMPENSATION,"","ELLIOTT, RONALD",01/01/16,03/31/16,SR INFO SYST. SECURITY ANALYST,"26,383.74",FISCAL YEAR 2016,"","","","ELLIOTT, RONALD"
,CHIEF ADMIN OFCR OF THE HOUSE,2016Q1,PERSONNEL COMPENSATION,"","ELLIS,FRANKLIN M",01/01/16,03/31/16,SR SYSTEMS SUPPORT ENGINEER,"23,607.00",FISCAL YEAR 2016,"","","","ELLIS,FRANKLIN M"
,CHIEF ADMIN OFCR OF THE HOUSE,2016Q1,PERSONNEL COMPENSATION,"","ELLIS-GREGG, SHARON",01/01/16,03/31/16,PAYROLL & BENEFITS ASSISTANT,"14,861.08",FISCAL YEAR 2016,"","","","ELLIS-GREGG, SHARON"
,CHIEF ADMIN OFCR OF THE HOUSE,2016Q1,PERSONNEL COMPENSATION,"","ELLIS-JONES, DEBORAH",01/01/16,03/31/16,ADMIN-FINANCE & PAYROLL,"24,534.00",FISCAL YEAR 2016,"","","","ELLIS-JONES, DEBORAH"
,CHIEF ADMIN OFCR OF THE HOUSE,2016Q1,PERSONNEL COMPENSATION,"","EMAMALI, NICOLE S",01/01/16,03/31/16,SR TECHNICAL SUPPORT REP,"28,924.26",FISCAL YEAR 2016,"","","","EMAMALI, NICOLE S"
,CHIEF ADMIN OFCR OF THE HOUSE,2016Q1,PERSONNEL COMPENSATION,"","ENGLISH IV, JAMES H",01/01/16,03/31/16,JOURNEYMAN FURNITURE SPEC,"14,292.51",FISCAL YEAR 2016,"","","","ENGLISH IV, JAMES H"
